Department,Entity,Transaction Date,Expense Type,Expense Area,Supplier,Transaction No.,Amount
"Department for Business, Energy and Industrial Strategy",The Coal Authority,22/07/2021,CY - Minewater Scheme - Additions,ENV - Projects & Delivery,George Leslie Limited,109043,"41,094.13"
"Department for Business, Energy and Industrial Strategy",The Coal Authority,22/07/2021,Contract Hire Vehicles,ENV - Projects & Delivery,Kinto UK Limited,109044,"6,686.09"
"Department for Business, Energy and Industrial Strategy",The Coal Authority,22/07/2021,Contract Hire Vehicles,ENV - Projects & Delivery,Kinto UK Limited,109044,796.47
"Department for Business, Energy and Industrial Strategy",The Coal Authority,22/07/2021,Contract Hire Vehicles,ENV - Projects & Delivery,Kinto UK Limited,109044,668.61
"Department for Business, Energy and Industrial Strategy",The Coal Authority,28/07/2021,Fuel (Vehicle),PS&S - General Claims,Allstar Business Solutions Ltd,109058,29.58
"Department for Business, Energy and Industrial Strategy",The Coal Authority,28/07/2021,Fuel (Vehicle),PS&S - General Claims,Allstar Business Solutions Ltd,109058,38.33
"Department for Business, Energy and Industrial Strategy",The Coal Authority,28/07/2021,Fuel (Vehicle),PS&S - General Claims,Allstar Business Solutions Ltd,109058,69.05
"Department for Business, Energy and Industrial Strategy",The Coal Authority,28/07/2021,Fuel (Vehicle),PS&S - General Claims,Allstar Business Solutions Ltd,109058,35.83
"Department for Business, Energy and Industrial Strategy",The Coal Authority,28/07/2021,Fuel (Vehicle),PS&S - General Claims,Allstar Business Solutions Ltd,109058,54.16
"Department for Business, Energy and Industrial Strategy",The Coal Authority,28/07/2021,Fuel (Vehicle),PS&S - General Claims,Allstar Business Solutions Ltd,109058,9.50
"Department for Business, Energy and Industrial Strategy",The Coal Authority,14/07/2021,Fuel (Vehicle),PS&S - General Claims,Allstar Business Solutions Ltd,109059,36.58
"Department for Business, Energy and Industrial Strategy",The Coal Authority,14/07/2021,Fuel (Vehicle),PS&S - General Claims,Allstar Business Solutions Ltd,109059,46.04
"Department for Business, Energy and Industrial Strategy",The Coal Authority,14/07/2021,Fuel (Vehicle),PS&S - General Claims,Allstar Business Solutions Ltd,109059,69.31
"Department for Business, Energy and Industrial Strategy",The Coal Authority,14/07/2021,Fuel (Vehicle),PS&S - General Claims,Allstar Business Solutions Ltd,109059,56.81
"Department for Business, Energy and Industrial Strategy",The Coal Authority,14/07/2021,Fuel (Vehicle),PS&S - General Claims,Allstar Business Solutions Ltd,109059,47.51
"Department for Business, Energy and Industrial Strategy",The Coal Authority,14/07/2021,Fuel (Vehicle),PS&S - General Claims,Allstar Business Solutions Ltd,109059,7.60
"Department for Business, Energy and Industrial Strategy",The Coal Authority,21/07/2021,Fuel (Vehicle),PS&S - General Claims,Allstar Business Solutions Ltd,109076,51.08
"Department for Business, Energy and Industrial Strategy",The Coal Authority,21/07/2021,Fuel (Vehicle),PS&S - General Claims,Allstar Business Solutions Ltd,109076,13.30
"Department for Business, Energy and Industrial Strategy",The Coal Authority,21/07/2021,Fuel (Vehicle),PS&S - General Claims,Allstar Business Solutions Ltd,109076,36.74
"Department for Business, Energy and Industrial Strategy",The Coal Authority,21/07/2021,Fuel (Vehicle),PS&S - General Claims,Allstar Business Solutions Ltd,109076,49.30
"Department for Business, Energy and Industrial Strategy",The Coal Authority,21/07/2021,Fuel (Vehicle),PS&S - General Claims,Allstar Business Solutions Ltd,109076,54.08
"Department for Business, Energy and Industrial Strategy",The Coal Authority,21/07/2021,Fuel (Vehicle),PS&S - General Claims,Allstar Business Solutions Ltd,109076,66.69
"Department for Business, Energy and Industrial Strategy",The Coal Authority,21/07/2021,Fuel (Vehicle),PS&S - General Claims,Allstar Business Solutions Ltd,109076,52.10
"Department for Business, Energy and Industrial Strategy",The Coal Authority,21/07/2021,Fuel (Vehicle),Tips Response,Allstar Business Solutions Ltd,109076,75.11
"Department for Business, Energy and Industrial Strategy",The Coal Authority,14/07/2021,Fuel (Vehicle),PS&S - Industry Claims,Staff Expenses Control,109084,16.67
"Department for Business, Energy and Industrial Strategy",The Coal Authority,19/07/2021,Fuel (Vehicle),PS&S - Industry Claims,Staff Expenses Control,109084,20.83
"Department for Business, Energy and Industrial Strategy",The Coal Authority,20/07/2021,Fuel (Vehicle),PS&S - Industry Claims,Staff Expenses Control,109084,29.17
"Department for Business, Energy and Industrial Strategy",The Coal Authority,20/07/2021,Fuel (Vehicle),PS&S - Industry Claims,Staff Expenses Control,109084,25.02
"Department for Business, Energy and Industrial Strategy",The Coal Authority,22/07/2021,Fuel (Vehicle),PS&S - Industry Claims,Staff Expenses Control,109084,16.67
"Department for Business, Energy and Industrial Strategy",The Coal Authority,27/07/2021,Incidentals,Innovation By-Product & Services Delivery,Staff Expenses Control,109084,1.90
"Department for Business, Energy and Industrial Strategy",The Coal Authority,27/07/2021,Incidentals,Innovation By-Product & Services Delivery,Staff Expenses Control,109084,1.90
"Department for Business, Energy and Industrial Strategy",The Coal Authority,26/07/2021,Innovation Costs,Heat & By-Product Innovation,Staff Expenses Control,109084,9.36
"Department for Business, Energy and Industrial Strategy",The Coal Authority,28/07/2021,Innovation Costs,Heat & By-Product Innovation,Staff Expenses Control,109084,29.00
"Department for Business, Energy and Industrial Strategy",The Coal Authority,29/06/2021,Mileage Payments,Tip Management Services,Staff Expenses Control,109084,7.77
"Department for Business, Energy and Industrial Strategy",The Coal Authority,29/06/2021,Mileage Payments,Tip Management Services,Staff Expenses Control,109084,8.49
"Department for Business, Energy and Industrial Strategy",The Coal Authority,30/06/2021,Mileage Payments,PS&S - Industry Claims,Staff Expenses Control,109084,5.43
"Department for Business, Energy and Industrial Strategy",The Coal Authority,30/06/2021,Mileage Payments,PS&S - Industry Claims,Staff Expenses Control,109084,4.78
"Department for Business, Energy and Industrial Strategy",The Coal Authority,30/06/2021,Mileage Payments,Tip Management Services,Staff Expenses Control,109084,4.89
"Department for Business, Energy and Industrial Strategy",The Coal Authority,30/06/2021,Mileage Payments,Tip Management Services,Staff Expenses Control,109084,4.94
"Department for Business, Energy and Industrial Strategy",The Coal Authority,05/07/2021,Mileage Payments,Tip Management Services,Staff Expenses Control,109084,10.91
"Department for Business, Energy and Industrial Strategy",The Coal Authority,05/07/2021,Mileage Payments,Tip Management Services,Staff Expenses Control,109084,11.08
"Department for Business, Energy and Industrial Strategy",The Coal Authority,06/07/2021,Mileage Payments,Tip Management Services,Staff Expenses Control,109084,4.45
"Department for Business, Energy and Industrial Strategy",The Coal Authority,06/07/2021,Mileage Payments,Tip Management Services,Staff Expenses Control,109084,4.49
"Department for Business, Energy and Industrial Strategy",The Coal Authority,07/07/2021,Mileage Payments,DIG - Service & Assurance,Staff Expenses Control,109084,50.94
"Department for Business, Energy and Industrial Strategy",The Coal Authority,07/07/2021,Mileage Payments,"Health, Safety & Wellbeing",Staff Expenses Control,109084,23.85
"Department for Business, Energy and Industrial Strategy",The Coal Authority,07/07/2021,Mileage Payments,"Health, Safety & Wellbeing",Staff Expenses Control,109084,23.85
"Department for Business, Energy and Industrial Strategy",The Coal Authority,07/07/2021,Mileage Payments,Tip Management Services,Staff Expenses Control,109084,10.24
"Department for Business, Energy and Industrial Strategy",The Coal Authority,07/07/2021,Mileage Payments,Tip Management Services,Staff Expenses Control,109084,10.41
"Department for Business, Energy and Industrial Strategy",The Coal Authority,08/07/2021,Mileage Payments,PS&S - Industry Claims,Staff Expenses Control,109084,5.44
"Department for Business, Energy and Industrial Strategy",The Coal Authority,08/07/2021,Mileage Payments,PS&S - Industry Claims,Staff Expenses Control,109084,4.78
"Department for Business, Energy and Industrial Strategy",The Coal Authority,08/07/2021,Mileage Payments,Tip Management Services,Staff Expenses Control,109084,9.83
"Department for Business, Energy and Industrial Strategy",The Coal Authority,08/07/2021,Mileage Payments,Tip Management Services,Staff Expenses Control,109084,9.66
"Department for Business, Energy and Industrial Strategy",The Coal Authority,09/07/2021,Mileage Payments,Innovation By-Product & Services Delivery,Staff Expenses Control,109084,36.00
"Department for Business, Energy and Industrial Strategy",The Coal Authority,09/07/2021,Mileage Payments,PS&S - Industry Claims,Staff Expenses Control,109084,21.15
"Department for Business, Energy and Industrial Strategy",The Coal Authority,09/07/2021,Mileage Payments,PS&S - Industry Claims,Staff Expenses Control,109084,21.36
"Department for Business, Energy and Industrial Strategy",The Coal Authority,12/07/2021,Mileage Payments,Tip Management Services,Staff Expenses Control,109084,11.35
"Department for Business, Energy and Industrial Strategy",The Coal Authority,12/07/2021,Mileage Payments,Tip Management Services,Staff Expenses Control,109084,11.17
"Department for Business, Energy and Industrial Strategy",The Coal Authority,14/07/2021,Mileage Payments,Tip Management Services,Staff Expenses Control,109084,10.39
"Department for Business, Energy and Industrial Strategy",The Coal Authority,14/07/2021,Mileage Payments,Tip Management Services,Staff Expenses Control,109084,10.36
"Department for Business, Energy and Industrial Strategy",The Coal Authority,15/07/2021,Mileage Payments,Innovation By-Product & Services Delivery,Staff Expenses Control,109084,103.50
"Department for Business, Energy and Industrial Strategy",The Coal Authority,15/07/2021,Mileage Payments,Innovation By-Product & Services Delivery,Staff Expenses Control,109084,36.00
"Department for Business, Energy and Industrial Strategy",The Coal Authority,15/07/2021,Mileage Payments,PS&S - Industry Claims,Staff Expenses Control,109084,4.78
"Department for Business, Energy and Industrial Strategy",The Coal Authority,15/07/2021,Mileage Payments,PS&S - Industry Claims,Staff Expenses Control,109084,5.43
"Department for Business, Energy and Industrial Strategy",The Coal Authority,16/07/2021,Mileage Payments,"Health, Safety & Wellbeing",Staff Expenses Control,109084,23.85
"Department for Business, Energy and Industrial Strategy",The Coal Authority,16/07/2021,Mileage Payments,"Health, Safety & Wellbeing",Staff Expenses Control,109084,23.85
"Department for Business, Energy and Industrial Strategy",The Coal Authority,20/07/2021,Mileage Payments,PS&S - Industry Claims,Staff Expenses Control,109084,58.50
"Department for Business, Energy and Industrial Strategy",The Coal Authority,21/07/2021,Mileage Payments,ENV - Technical,Staff Expenses Control,109084,14.73
"Department for Business, Energy and Industrial Strategy",The Coal Authority,21/07/2021,Mileage Payments,ENV - Technical,Staff Expenses Control,109084,45.74
"Department for Business, Energy and Industrial Strategy",The Coal Authority,21/07/2021,Mileage Payments,"Health, Safety & Wellbeing",Staff Expenses Control,109084,72.00
"Department for Business, Energy and Industrial Strategy",The Coal Authority,21/07/2021,Mileage Payments,"Health, Safety & Wellbeing",Staff Expenses Control,109084,51.75
"Department for Business, Energy and Industrial Strategy",The Coal Authority,21/07/2021,Mileage Payments,"Health, Safety & Wellbeing",Staff Expenses Control,109084,1.58
"Department for Business, Energy and Industrial Strategy",The Coal Authority,21/07/2021,Mileage Payments,"Health, Safety & Wellbeing",Staff Expenses Control,109084,19.12
"Department for Business, Energy and Industrial Strategy",The Coal Authority,21/07/2021,Mileage Payments,PS&S - Industry Claims,Staff Expenses Control,109084,5.44
"Department for Business, Energy and Industrial Strategy",The Coal Authority,21/07/2021,Mileage Payments,PS&S - Industry Claims,Staff Expenses Control,109084,4.78
"Department for Business, Energy and Industrial Strategy",The Coal Authority,22/07/2021,Mileage Payments,"Health, Safety & Wellbeing",Staff Expenses Control,109084,9.99
"Department for Business, Energy and Industrial Strategy",The Coal Authority,22/07/2021,Mileage Payments,"Health, Safety & Wellbeing",Staff Expenses Control,109084,3.83
"Department for Business, Energy and Industrial Strategy",The Coal Authority,22/07/2021,Mileage Payments,"Health, Safety & Wellbeing",Staff Expenses Control,109084,3.60
"Department for Business, Energy and Industrial Strategy",The Coal Authority,22/07/2021,Mileage Payments,"Health, Safety & Wellbeing",Staff Expenses Control,109084,22.50
"Department for Business, Energy and Industrial Strategy",The Coal Authority,22/07/2021,Mileage Payments,PS&S - Industry Claims,Staff Expenses Control,109084,16.20
"Department for Business, Energy and Industrial Strategy",The Coal Authority,23/07/2021,Mileage Payments,"Health, Safety & Wellbeing",Staff Expenses Control,109084,157.50
"Department for Business, Energy and Industrial Strategy",The Coal Authority,23/07/2021,Mileage Payments,"Health, Safety & Wellbeing",Staff Expenses Control,109084,4.59
"Department for Business, Energy and Industrial Strategy",The Coal Authority,23/07/2021,Mileage Payments,"Health, Safety & Wellbeing",Staff Expenses Control,109084,1.57
"Department for Business, Energy and Industrial Strategy",The Coal Authority,23/07/2021,Mileage Payments,PS&S - Industry Claims,Staff Expenses Control,109084,16.20
"Department for Business, Energy and Industrial Strategy",The Coal Authority,26/07/2021,Mileage Payments,DEV - Property Management,Staff Expenses Control,109084,1.69
"Department for Business, Energy and Industrial Strategy",The Coal Authority,26/07/2021,Mileage Payments,DEV - Property Management,Staff Expenses Control,109084,0.74
"Department for Business, Energy and Industrial Strategy",The Coal Authority,26/07/2021,Mileage Payments,DEV - Property Management,Staff Expenses Control,109084,78.79
"Department for Business, Energy and Industrial Strategy",The Coal Authority,26/07/2021,Mileage Payments,DEV - Property Management,Staff Expenses Control,109084,71.63
"Department for Business, Energy and Industrial Strategy",The Coal Authority,26/07/2021,Mileage Payments,DIG - Technical Delivery,Staff Expenses Control,109084,13.95
"Department for Business, Energy and Industrial Strategy",The Coal Authority,26/07/2021,Mileage Payments,DIG - Technical Delivery,Staff Expenses Control,109084,13.95
"Department for Business, Energy and Industrial Strategy",The Coal Authority,26/07/2021,Mileage Payments,Heat & By-Product Innovation,Staff Expenses Control,109084,21.42
"Department for Business, Energy and Industrial Strategy",The Coal Authority,26/07/2021,Mileage Payments,Heat & By-Product Innovation,Staff Expenses Control,109084,24.13
"Department for Business, Energy and Industrial Strategy",The Coal Authority,26/07/2021,Mileage Payments,Heat & By-Product Innovation,Staff Expenses Control,109084,3.48
"Department for Business, Energy and Industrial Strategy",The Coal Authority,26/07/2021,Mileage Payments,Tip Management Services,Staff Expenses Control,109084,8.55
"Department for Business, Energy and Industrial Strategy",The Coal Authority,26/07/2021,Mileage Payments,Tip Management Services,Staff Expenses Control,109084,8.47
"Department for Business, Energy and Industrial Strategy",The Coal Authority,27/07/2021,Mileage Payments,Innovation By-Product & Services Delivery,Staff Expenses Control,109084,79.49
"Department for Business, Energy and Industrial Strategy",The Coal Authority,27/07/2021,Mileage Payments,Innovation By-Product & Services Delivery,Staff Expenses Control,109084,79.33
"Department for Business, Energy and Industrial Strategy",The Coal Authority,27/07/2021,Mileage Payments,Tip Management Services,Staff Expenses Control,109084,12.05
"Department for Business, Energy and Industrial Strategy",The Coal Authority,27/07/2021,Mileage Payments,Tip Management Services,Staff Expenses Control,109084,11.87
"Department for Business, Energy and Industrial Strategy",The Coal Authority,28/07/2021,Mileage Payments,Heat & By-Product Innovation,Staff Expenses Control,109084,10.57
"Department for Business, Energy and Industrial Strategy",The Coal Authority,28/07/2021,Mileage Payments,Heat & By-Product Innovation,Staff Expenses Control,109084,26.70
"Department for Business, Energy and Industrial Strategy",The Coal Authority,28/07/2021,Mileage Payments,Heat & By-Product Innovation,Staff Expenses Control,109084,24.13
"Department for Business, Energy and Industrial Strategy",The Coal Authority,28/07/2021,Mileage Payments,Tip Management Services,Staff Expenses Control,109084,9.66
"Department for Business, Energy and Industrial Strategy",The Coal Authority,28/07/2021,Mileage Payments,Tip Management Services,Staff Expenses Control,109084,9.84
"Department for Business, Energy and Industrial Strategy",The Coal Authority,29/07/2021,Mileage Payments,Tip Management Services,Staff Expenses Control,109084,9.64
"Department for Business, Energy and Industrial Strategy",The Coal Authority,29/07/2021,Mileage Payments,Tip Management Services,Staff Expenses Control,109084,3.45
"Department for Business, Energy and Industrial Strategy",The Coal Authority,29/07/2021,Mileage Payments,Tip Management Services,Staff Expenses Control,109084,10.24
"Department for Business, Energy and Industrial Strategy",The Coal Authority,19/07/2021,Office Furniture,PS&S - Industry Claims,Staff Expenses Control,109084,68.14
"Department for Business, Energy and Industrial Strategy",The Coal Authority,19/07/2021,Office Furniture,PS&S - Industry Claims,Staff Expenses Control,109084,244.14
"Department for Business, Energy and Industrial Strategy",The Coal Authority,21/07/2021,Peripherals / Consumables (MEP),Finance,Staff Expenses Control,109084,39.97
"Department for Business, Energy and Industrial Strategy",The Coal Authority,21/07/2021,Stationery,Finance,Staff Expenses Control,109084,2.54
"Department for Business, Energy and Industrial Strategy",The Coal Authority,23/07/2021,Stationery,PS&S - Industry Claims,Staff Expenses Control,109084,2.91
"Department for Business, Energy and Industrial Strategy",The Coal Authority,07/07/2021,Subsistence Allowances,DIG - Service & Assurance,Staff Expenses Control,109084,5.25
"Department for Business, Energy and Industrial Strategy",The Coal Authority,07/07/2021,Subsistence Allowances,"Health, Safety & Wellbeing",Staff Expenses Control,109084,4.90
"Department for Business, Energy and Industrial Strategy",The Coal Authority,09/07/2021,Subsistence Allowances,PS&S - Industry Claims,Staff Expenses Control,109084,4.28
"Department for Business, Energy and Industrial Strategy",The Coal Authority,19/07/2021,Subsistence Allowances,PS&S - Industry Claims,Staff Expenses Control,109084,4.22
"Department for Business, Energy and Industrial Strategy",The Coal Authority,20/07/2021,Subsistence Allowances,PS&S - Industry Claims,Staff Expenses Control,109084,4.02
"Department for Business, Energy and Industrial Strategy",The Coal Authority,22/07/2021,Subsistence Allowances,PS&S - Industry Claims,Staff Expenses Control,109084,1.90
"Department for Business, Energy and Industrial Strategy",The Coal Authority,27/07/2021,Subsistence Allowances,Innovation By-Product & Services Delivery,Staff Expenses Control,109084,8.00
"Department for Business, Energy and Industrial Strategy",The Coal Authority,21/07/2021,Fuel (Vehicle),Facilities,Allstar Business Solutions Ltd,109100,58.28
"Department for Business, Energy and Industrial Strategy",The Coal Authority,21/07/2021,Fuel (Vehicle),Facilities,Allstar Business Solutions Ltd,109100,51.83
"Department for Business, Energy and Industrial Strategy",The Coal Authority,21/07/2021,Fuel (Vehicle),Facilities,Allstar Business Solutions Ltd,109100,48.49
"Department for Business, Energy and Industrial Strategy",The Coal Authority,21/07/2021,Fuel (Vehicle),Facilities,Allstar Business Solutions Ltd,109100,5.70
"Department for Business, Energy and Industrial Strategy",The Coal Authority,28/07/2021,Fuel (Vehicle),Facilities,Allstar Business Solutions Ltd,109101,68.00
"Department for Business, Energy and Industrial Strategy",The Coal Authority,28/07/2021,Fuel (Vehicle),Facilities,Allstar Business Solutions Ltd,109101,57.26
"Department for Business, Energy and Industrial Strategy",The Coal Authority,14/07/2021,Fuel (Vehicle),Facilities,Allstar Business Solutions Ltd,109102,65.99
"Department for Business, Energy and Industrial Strategy",The Coal Authority,14/07/2021,Fuel (Vehicle),Facilities,Allstar Business Solutions Ltd,109102,63.03
"Department for Business, Energy and Industrial Strategy",The Coal Authority,14/07/2021,Fuel (Vehicle),Facilities,Allstar Business Solutions Ltd,109102,17.01
"Department for Business, Energy and Industrial Strategy",The Coal Authority,14/07/2021,Fuel (Vehicle),Facilities,Allstar Business Solutions Ltd,109102,1.90
"Department for Business, Energy and Industrial Strategy",The Coal Authority,29/03/2021,Minewater Monitoring & Flow Measurement,ENV - Technical,Hydro-Logic Services Int Limited,109117,"1,349.40"
"Department for Business, Energy and Industrial Strategy",The Coal Authority,30/04/2021,Surface Hazards - Contractor Costs,PS&S - General Claims,Pump Supplies ltd,109130,"4,488.80"
"Department for Business, Energy and Industrial Strategy",The Coal Authority,30/04/2021,Surface Hazards - Contractor Costs,PS&S - General Claims,Pump Supplies ltd,109131,"1,980.00"
"Department for Business, Energy and Industrial Strategy",The Coal Authority,30/04/2021,Surface Hazards - Contractor Costs,PS&S - General Claims,Pump Supplies ltd,109132,"1,311.68"
"Department for Business, Energy and Industrial Strategy",The Coal Authority,31/05/2021,Surface Hazards - Contractor Costs,PS&S - General Claims,Pump Supplies ltd,109133,"1,890.00"
"Department for Business, Energy and Industrial Strategy",The Coal Authority,31/03/2021,Surface Hazards - Contractor Costs,PS&S - General Claims,Pump Supplies ltd,109134,"1,499.60"
"Department for Business, Energy and Industrial Strategy",The Coal Authority,30/04/2021,Surface Hazards - Contractor Costs,PS&S - General Claims,Pump Supplies ltd,109135,500.00
"Department for Business, Energy and Industrial Strategy",The Coal Authority,31/05/2021,Surface Hazards - Contractor Costs,PS&S - General Claims,Pump Supplies ltd,109137,"2,024.40"
"Department for Business, Energy and Industrial Strategy",The Coal Authority,28/07/2021,Minewater Feasibility / Scoping,DEFRA Metal Mine Programme,Socotec,109138,157.86
"Department for Business, Energy and Industrial Strategy",The Coal Authority,21/07/2021,Minewater Power Costs,ENV - Mine Water Operations,IMServ Europe Limited,109139,8.07
"Department for Business, Energy and Industrial Strategy",The Coal Authority,28/07/2021,Subsidence - Contractor Costs,PS&S - General Claims,Geol-Consultants Ltd,109140,251.75
"Department for Business, Energy and Industrial Strategy",The Coal Authority,28/07/2021,Subsidence - Contractor Costs,PS&S - General Claims,Geol-Consultants Ltd,109140,302.10
"Department for Business, Energy and Industrial Strategy",The Coal Authority,28/07/2021,Subsidence - Contractor Costs,PS&S - General Claims,Geol-Consultants Ltd,109140,60.44
"Department for Business, Energy and Industrial Strategy",The Coal Authority,28/07/2021,Subsidence - Contractor Costs,PS&S - General Claims,Geol-Consultants Ltd,109140,"1,611.20"
"Department for Business, Energy and Industrial Strategy",The Coal Authority,28/07/2021,Subsidence - Contractor Costs,PS&S - General Claims,Geol-Consultants Ltd,109140,27.63
"Department for Business, Energy and Industrial Strategy",The Coal Authority,28/07/2021,Subsidence - Contractor Costs,PS&S - General Claims,Geol-Consultants Ltd,109140,151.05
"Department for Business, Energy and Industrial Strategy",The Coal Authority,28/07/2021,Subsidence - Contractor Costs,PS&S - General Claims,Geol-Consultants Ltd,109141,0.02
"Department for Business, Energy and Industrial Strategy",The Coal Authority,28/07/2021,Subsidence - Contractor Costs,PS&S - General Claims,Geol-Consultants Ltd,109141,251.75
"Department for Business, Energy and Industrial Strategy",The Coal Authority,28/07/2021,Subsidence - Contractor Costs,PS&S - General Claims,Geol-Consultants Ltd,109141,"1,611.20"
"Department for Business, Energy and Industrial Strategy",The Coal Authority,28/07/2021,Subsidence - Contractor Costs,PS&S - General Claims,Geol-Consultants Ltd,109141,302.10
"Department for Business, Energy and Industrial Strategy",The Coal Authority,28/07/2021,Subsidence - Contractor Costs,PS&S - General Claims,Geol-Consultants Ltd,109141,23.45
"Department for Business, Energy and Industrial Strategy",The Coal Authority,28/07/2021,Subsidence - Contractor Costs,PS&S - General Claims,Geol-Consultants Ltd,109141,151.05
"Department for Business, Energy and Industrial Strategy",The Coal Authority,30/07/2021,Surface Hazards - Contractor Costs,PS&S - General Claims,Whitehouse Construction,109190,294.56
"Department for Business, Energy and Industrial Strategy",The Coal Authority,30/07/2021,Surface Hazards - Contractor Costs,PS&S - General Claims,Whitehouse Construction,109190,6.00
"Department for Business, Energy and Industrial Strategy",The Coal Authority,30/07/2021,Surface Hazards - Contractor Costs,PS&S - General Claims,Whitehouse Construction,109190,154.70
"Department for Business, Energy and Industrial Strategy",The Coal Authority,30/07/2021,Surface Hazards - Contractor Costs,PS&S - General Claims,Whitehouse Construction,109190,48.86
"Department for Business, Energy and Industrial Strategy",The Coal Authority,30/07/2021,Surface Hazards - Contractor Costs,PS&S - General Claims,Whitehouse Construction,109190,135.30
"Department for Business, Energy and Industrial Strategy",The Coal Authority,30/07/2021,Surface Hazards - Contractor Costs,PS&S - General Claims,Whitehouse Construction,109190,147.25
"Department for Business, Energy and Industrial Strategy",The Coal Authority,30/07/2021,Surface Hazards - Contractor Costs,PS&S - General Claims,Whitehouse Construction,109190,4.34
"Department for Business, Energy and Industrial Strategy",The Coal Authority,30/07/2021,Surface Hazards - Contractor Costs,PS&S - General Claims,Whitehouse Construction,109190,135.60
"Department for Business, Energy and Industrial Strategy",The Coal Authority,30/07/2021,Surface Hazards - Contractor Costs,PS&S - General Claims,Whitehouse Construction,109190,469.76
"Department for Business, Energy and Industrial Strategy",The Coal Authority,30/07/2021,Surface Hazards - Contractor Costs,PS&S - General Claims,Whitehouse Construction,109190,55.20
"Department for Business, Energy and Industrial Strategy",The Coal Authority,30/07/2021,Surface Hazards - Contractor Costs,PS&S - General Claims,Whitehouse Construction,109190,115.06
"Department for Business, Energy and Industrial Strategy",The Coal Authority,30/07/2021,Surface Hazards - Contractor Costs,PS&S - General Claims,Whitehouse Construction,109190,44.00
"Department for Business, Energy and Industrial Strategy",The Coal Authority,30/07/2021,Surface Hazards - Contractor Costs,PS&S - General Claims,Whitehouse Construction,109190,455.84
"Department for Business, Energy and Industrial Strategy",The Coal Authority,31/07/2021,Surface Hazards - Contractor Costs,PS&S - General Claims,Thomas Menzies Builders Ltd,109192,540.00
"Department for Business, Energy and Industrial Strategy",The Coal Authority,27/07/2021,Surface Hazards - Contractor Costs,PS&S - General Claims,Hydrock Consultants Ltd,109193,110.00
"Department for Business, Energy and Industrial Strategy",The Coal Authority,30/07/2021,Subsidence - Contractor Costs,PS&S - Kellingley,A & A Arable Ltd,109194,950.00
"Department for Business, Energy and Industrial Strategy",The Coal Authority,30/07/2021,CY - Minewater Scheme - Additions,ENV - Projects & Delivery,AECOM Ltd,109199,"2,491.72"
"Department for Business, Energy and Industrial Strategy",The Coal Authority,30/07/2021,CY - Minewater Scheme - Additions,ENV - Projects & Delivery,AECOM Ltd,109199,823.80
"Department for Business, Energy and Industrial Strategy",The Coal Authority,30/07/2021,CY - Minewater Scheme - Additions,ENV - Projects & Delivery,AECOM Ltd,109202,"2,135.76"
"Department for Business, Energy and Industrial Strategy",The Coal Authority,30/07/2021,CY - Minewater Scheme - Additions,ENV - Projects & Delivery,AECOM Ltd,109202,"2,917.63"
"Department for Business, Energy and Industrial Strategy",The Coal Authority,30/07/2021,CY - Minewater Scheme - Additions,ENV - Projects & Delivery,AECOM Ltd,109202,126.00
"Department for Business, Energy and Industrial Strategy",The Coal Authority,30/07/2021,CY - Minewater Scheme - Additions,ENV - Projects & Delivery,AECOM Ltd,109202,607.50
"Department for Business, Energy and Industrial Strategy",The Coal Authority,30/07/2021,CY - Minewater Scheme - Additions,ENV - Projects & Delivery,AECOM Ltd,109202,89.25
"Department for Business, Energy and Industrial Strategy",The Coal Authority,30/07/2021,Temporary Contractors,Procurement,Hays Specialist Recruitment,109203,"2,173.55"
"Department for Business, Energy and Industrial Strategy",The Coal Authority,30/07/2021,Temporary Contractors,Procurement,Hays Specialist Recruitment,109203,4.85
"Department for Business, Energy and Industrial Strategy",The Coal Authority,28/05/2021,CY - Minewater Scheme - Additions,ENV - Projects & Delivery,J N Bentley Limited,109231,"4,792.60"
"Department for Business, Energy and Industrial Strategy",The Coal Authority,28/05/2021,Minewater Pumping Tests,ENV - Projects & Delivery,J N Bentley Limited,109231,"37,449.87"
"Department for Business, Energy and Industrial Strategy",The Coal Authority,30/07/2021,Subsidence - Contractor Costs,PS&S - General Claims,Compensation Payment,109232,"2,000.00"
"Department for Business, Energy and Industrial Strategy",The Coal Authority,28/04/2021,CY - Minewater Scheme - Additions,ENV - Projects & Delivery,J N Bentley Limited,109233,"25,755.12"
"Department for Business, Energy and Industrial Strategy",The Coal Authority,28/04/2021,CY - Minewater Scheme - Additions,ENV - Projects & Delivery,J N Bentley Limited,109233,"15,258.37"
"Department for Business, Energy and Industrial Strategy",The Coal Authority,28/04/2021,CY - Minewater Scheme - Additions,ENV - Projects & Delivery,J N Bentley Limited,109233,"52,487.28"
"Department for Business, Energy and Industrial Strategy",The Coal Authority,28/04/2021,CY - Minewater Scheme - Additions,ENV - Projects & Delivery,J N Bentley Limited,109233,"26,813.66"
"Department for Business, Energy and Industrial Strategy",The Coal Authority,28/04/2021,Minewater Pumping Tests,ENV - Projects & Delivery,J N Bentley Limited,109233,"60,786.38"
"Department for Business, Energy and Industrial Strategy",The Coal Authority,28/04/2021,Minewater Pumping Tests,ENV - Projects & Delivery,J N Bentley Limited,109233,"9,372.63"
"Department for Business, Energy and Industrial Strategy",The Coal Authority,02/08/2021,Minewater Pumping Tests,ENV - Projects & Delivery,J N Bentley Limited,109234,"23,072.48"
"Department for Business, Energy and Industrial Strategy",The Coal Authority,21/07/2021,Innovation Costs,Environment - Innovation Concept & Feasibility,H2O WEM Ltd,109235,"1,800.00"
"Department for Business, Energy and Industrial Strategy",The Coal Authority,07/07/2021,CY - Minewater Scheme - Additions,ENV - Projects & Delivery,JBA Bentley Ltd,109236,"99,132.38"
"Department for Business, Energy and Industrial Strategy",The Coal Authority,29/07/2021,Subsidence - Contractor Costs,PS&S - Thoresby,Pierrepont Estate Management Ltd,109245,"4,639.29"
"Department for Business, Energy and Industrial Strategy",The Coal Authority,31/07/2021,Subsidence - Contractor Costs,PS&S - General Claims,Thomas Menzies Builders Ltd,109255,"5,656.50"
"Department for Business, Energy and Industrial Strategy",The Coal Authority,31/07/2021,Subsidence - Contractor Costs,PS&S - General Claims,Thomas Menzies Builders Ltd,109255,352.60
"Department for Business, Energy and Industrial Strategy",The Coal Authority,31/07/2021,Subsidence - Contractor Costs,PS&S - General Claims,Thomas Menzies Builders Ltd,109255,37.40
"Department for Business, Energy and Industrial Strategy",The Coal Authority,31/07/2021,Subsidence - Contractor Costs,PS&S - General Claims,Thomas Menzies Builders Ltd,109255,9.93
"Department for Business, Energy and Industrial Strategy",The Coal Authority,31/07/2021,Subsidence - Contractor Costs,PS&S - General Claims,Thomas Menzies Builders Ltd,109255,26.00
"Department for Business, Energy and Industrial Strategy",The Coal Authority,31/07/2021,Subsidence - Contractor Costs,PS&S - General Claims,Thomas Menzies Builders Ltd,109255,76.80
"Department for Business, Energy and Industrial Strategy",The Coal Authority,31/07/2021,Subsidence - Contractor Costs,PS&S - General Claims,Thomas Menzies Builders Ltd,109255,152.60
"Department for Business, Energy and Industrial Strategy",The Coal Authority,31/07/2021,Subsidence - Contractor Costs,PS&S - General Claims,Thomas Menzies Builders Ltd,109255,35.00
"Department for Business, Energy and Industrial Strategy",The Coal Authority,31/07/2021,Subsidence - Contractor Costs,PS&S - General Claims,Thomas Menzies Builders Ltd,109255,57.06
"Department for Business, Energy and Industrial Strategy",The Coal Authority,31/07/2021,Subsidence - Contractor Costs,PS&S - General Claims,Thomas Menzies Builders Ltd,109255,"2,755.16"
"Department for Business, Energy and Industrial Strategy",The Coal Authority,31/07/2021,Subsidence - Contractor Costs,PS&S - General Claims,Thomas Menzies Builders Ltd,109255,27.01
"Department for Business, Energy and Industrial Strategy",The Coal Authority,31/07/2021,Subsidence - Contractor Costs,PS&S - General Claims,Thomas Menzies Builders Ltd,109255,181.28
"Department for Business, Energy and Industrial Strategy",The Coal Authority,31/07/2021,Subsidence - Contractor Costs,PS&S - General Claims,Thomas Menzies Builders Ltd,109255,9.53
"Department for Business, Energy and Industrial Strategy",The Coal Authority,31/07/2021,Subsidence - Contractor Costs,PS&S - General Claims,Thomas Menzies Builders Ltd,109255,5.09
"Department for Business, Energy and Industrial Strategy",The Coal Authority,31/07/2021,Subsidence - Contractor Costs,PS&S - General Claims,Thomas Menzies Builders Ltd,109255,26.50
"Department for Business, Energy and Industrial Strategy",The Coal Authority,31/07/2021,Subsidence - Contractor Costs,PS&S - General Claims,Thomas Menzies Builders Ltd,109255,11.98
"Department for Business, Energy and Industrial Strategy",The Coal Authority,31/07/2021,Subsidence - Contractor Costs,PS&S - General Claims,Thomas Menzies Builders Ltd,109255,74.40
"Department for Business, Energy and Industrial Strategy",The Coal Authority,31/07/2021,Subsidence - Contractor Costs,PS&S - General Claims,Thomas Menzies Builders Ltd,109255,46.80
"Department for Business, Energy and Industrial Strategy",The Coal Authority,31/07/2021,Subsidence - Contractor Costs,PS&S - General Claims,Thomas Menzies Builders Ltd,109255,393.90
"Department for Business, Energy and Industrial Strategy",The Coal Authority,31/07/2021,Subsidence - Contractor Costs,PS&S - General Claims,Thomas Menzies Builders Ltd,109255,658.71
"Department for Business, Energy and Industrial Strategy",The Coal Authority,31/07/2021,Subsidence - Contractor Costs,PS&S - General Claims,Thomas Menzies Builders Ltd,109255,"4,746.00"
"Department for Business, Energy and Industrial Strategy",The Coal Authority,31/07/2021,Subsidence - Contractor Costs,PS&S - General Claims,Thomas Menzies Builders Ltd,109255,64.63
"Department for Business, Energy and Industrial Strategy",The Coal Authority,31/07/2021,Subsidence - Contractor Costs,PS&S - General Claims,Thomas Menzies Builders Ltd,109255,"1,350.00"
"Department for Business, Energy and Industrial Strategy",The Coal Authority,31/07/2021,Subsidence - Contractor Costs,PS&S - General Claims,Thomas Menzies Builders Ltd,109255,24.99
"Department for Business, Energy and Industrial Strategy",The Coal Authority,31/07/2021,Subsidence - Contractor Costs,PS&S - General Claims,Thomas Menzies Builders Ltd,109255,37.62
"Department for Business, Energy and Industrial Strategy",The Coal Authority,31/07/2021,Subsidence - Contractor Costs,PS&S - General Claims,Thomas Menzies Builders Ltd,109255,58.00
"Department for Business, Energy and Industrial Strategy",The Coal Authority,31/07/2021,Subsidence - Contractor Costs,PS&S - General Claims,Thomas Menzies Builders Ltd,109255,352.80
"Department for Business, Energy and Industrial Strategy",The Coal Authority,31/07/2021,Subsidence - Contractor Costs,PS&S - General Claims,Thomas Menzies Builders Ltd,109255,"1,354.84"
"Department for Business, Energy and Industrial Strategy",The Coal Authority,31/07/2021,Subsidence - Contractor Costs,PS&S - General Claims,Thomas Menzies Builders Ltd,109255,139.56
"Department for Business, Energy and Industrial Strategy",The Coal Authority,31/07/2021,Subsidence - Contractor Costs,PS&S - General Claims,Thomas Menzies Builders Ltd,109255,8.50
"Department for Business, Energy and Industrial Strategy",The Coal Authority,31/07/2021,Subsidence - Contractor Costs,PS&S - General Claims,Thomas Menzies Builders Ltd,109255,"1,121.60"
"Department for Business, Energy and Industrial Strategy",The Coal Authority,31/07/2021,Subsidence - Contractor Costs,PS&S - General Claims,Thomas Menzies Builders Ltd,109255,274.92
"Department for Business, Energy and Industrial Strategy",The Coal Authority,31/07/2021,Subsidence - Contractor Costs,PS&S - General Claims,Thomas Menzies Builders Ltd,109255,882.00
"Department for Business, Energy and Industrial Strategy",The Coal Authority,31/07/2021,Subsidence - Contractor Costs,PS&S - General Claims,Thomas Menzies Builders Ltd,109255,12.93
"Department for Business, Energy and Industrial Strategy",The Coal Authority,31/07/2021,Subsidence - Contractor Costs,PS&S - General Claims,Thomas Menzies Builders Ltd,109255,13.00
"Department for Business, Energy and Industrial Strategy",The Coal Authority,31/07/2021,Subsidence - Contractor Costs,PS&S - General Claims,Thomas Menzies Builders Ltd,109255,383.29
"Department for Business, Energy and Industrial Strategy",The Coal Authority,31/07/2021,Subsidence - Contractor Costs,PS&S - General Claims,Thomas Menzies Builders Ltd,109255,11.36
"Department for Business, Energy and Industrial Strategy",The Coal Authority,31/07/2021,Subsidence - Contractor Costs,PS&S - General Claims,Thomas Menzies Builders Ltd,109255,70.00
"Department for Business, Energy and Industrial Strategy",The Coal Authority,31/07/2021,Subsidence - Contractor Costs,PS&S - General Claims,Thomas Menzies Builders Ltd,109255,"2,950.00"
"Department for Business, Energy and Industrial Strategy",The Coal Authority,31/07/2021,Subsidence - Contractor Costs,PS&S - General Claims,Thomas Menzies Builders Ltd,109255,572.14
"Department for Business, Energy and Industrial Strategy",The Coal Authority,31/07/2021,Subsidence - Contractor Costs,PS&S - General Claims,Thomas Menzies Builders Ltd,109255,43.08
"Department for Business, Energy and Industrial Strategy",The Coal Authority,31/07/2021,Subsidence - Contractor Costs,PS&S - General Claims,Thomas Menzies Builders Ltd,109255,72.90
"Department for Business, Energy and Industrial Strategy",The Coal Authority,31/07/2021,Subsidence - Contractor Costs,PS&S - General Claims,Thomas Menzies Builders Ltd,109255,154.00
"Department for Business, Energy and Industrial Strategy",The Coal Authority,31/07/2021,Subsidence - Contractor Costs,PS&S - General Claims,Thomas Menzies Builders Ltd,109255,76.44
"Department for Business, Energy and Industrial Strategy",The Coal Authority,31/07/2021,Subsidence - Contractor Costs,PS&S - General Claims,Thomas Menzies Builders Ltd,109255,"1,125.00"
"Department for Business, Energy and Industrial Strategy",The Coal Authority,31/07/2021,Subsidence - Contractor Costs,PS&S - General Claims,Thomas Menzies Builders Ltd,109255,106.14
"Department for Business, Energy and Industrial Strategy",The Coal Authority,31/07/2021,Subsidence - Contractor Costs,PS&S - General Claims,Thomas Menzies Builders Ltd,109255,144.00
"Department for Business, Energy and Industrial Strategy",The Coal Authority,31/07/2021,Subsidence - Contractor Costs,PS&S - General Claims,Thomas Menzies Builders Ltd,109255,35.05
"Department for Business, Energy and Industrial Strategy",The Coal Authority,31/07/2021,Subsidence - Contractor Costs,PS&S - General Claims,Thomas Menzies Builders Ltd,109255,4.65
"Department for Business, Energy and Industrial Strategy",The Coal Authority,31/07/2021,Subsidence - Contractor Costs,PS&S - General Claims,Thomas Menzies Builders Ltd,109255,264.00
"Department for Business, Energy and Industrial Strategy",The Coal Authority,31/07/2021,Subsidence - Contractor Costs,PS&S - General Claims,Thomas Menzies Builders Ltd,109255,"1,800.00"
"Department for Business, Energy and Industrial Strategy",The Coal Authority,07/07/2021,Minewater Site Surveys,NRW Metal Mine Programme,Onsite Central Limited,109264,750.00
"Department for Business, Energy and Industrial Strategy",The Coal Authority,05/07/2021,Contract Hire Vehicles,PS&S - General Claims,Lex Autolease Ltd,109267,232.84
"Department for Business, Energy and Industrial Strategy",The Coal Authority,05/07/2021,Contract Hire Vehicles,PS&S - General Claims,Lex Autolease Ltd,109267,33.76
"Department for Business, Energy and Industrial Strategy",The Coal Authority,05/07/2021,Contract Hire Vehicles,PS&S - General Claims,Lex Autolease Ltd,109267,23.28
"Department for Business, Energy and Industrial Strategy",The Coal Authority,20/07/2021,Innovation Costs,Innovation By-Product & Services Delivery,Centurion Industrial Packaging,109280,"2,570.00"
"Department for Business, Energy and Industrial Strategy",The Coal Authority,20/07/2021,Innovation Costs,Innovation By-Product & Services Delivery,Centurion Industrial Packaging,109280,411.20
"Department for Business, Energy and Industrial Strategy",The Coal Authority,25/07/2021,Minewater Monitoring & Flow Measurement,ENV - Projects & Delivery,Hydro-Logic Services Int Limited,109283,"1,509.00"
"Department for Business, Energy and Industrial Strategy",The Coal Authority,25/07/2021,Minewater Monitoring & Flow Measurement,ENV - Projects & Delivery,Hydro-Logic Services Int Limited,109283,582.00
"Department for Business, Energy and Industrial Strategy",The Coal Authority,28/07/2021,Legal - General,Legal & Governance,Walker Morris,109296,497.60
"Department for Business, Energy and Industrial Strategy",The Coal Authority,18/07/2021,Minewater Water Charges,ENV - Mine Water Operations,Wave Utilities,109302,"1,892.87"
"Department for Business, Energy and Industrial Strategy",The Coal Authority,23/07/2021,Public Relations,Business Intelligence,DeHavilland Political Intelligence,109312,"1,050.00"
"Department for Business, Energy and Industrial Strategy",The Coal Authority,26/07/2021,Surface Hazards - Contractor Costs,PS&S - General Claims,PMC Surveys,109313,"1,000.00"
"Department for Business, Energy and Industrial Strategy",The Coal Authority,26/07/2021,Surface Hazards - Contractor Costs,PS&S - General Claims,PMC Surveys,109314,"5,660.00"
"Department for Business, Energy and Industrial Strategy",The Coal Authority,26/07/2021,Subsidence - Contractor Costs,PS&S - General Claims,PMC Surveys,109315,800.00
"Department for Business, Energy and Industrial Strategy",The Coal Authority,26/07/2021,Surface Hazards - Contractor Costs,PS&S - General Claims,PMC Surveys,109316,"1,168.00"
"Department for Business, Energy and Industrial Strategy",The Coal Authority,26/07/2021,Subsidence - Contractor Costs,PS&S - General Claims,PMC Surveys,109322,200.00
"Department for Business, Energy and Industrial Strategy",The Coal Authority,26/07/2021,Subsidence - Contractor Costs,PS&S - General Claims,PMC Surveys,109322,740.00
"Department for Business, Energy and Industrial Strategy",The Coal Authority,26/07/2021,Subsidence - Contractor Costs,PS&S - General Claims,PMC Surveys,109323,99.66
"Department for Business, Energy and Industrial Strategy",The Coal Authority,26/07/2021,Subsidence - Contractor Costs,PS&S - General Claims,PMC Surveys,109323,79.32
"Department for Business, Energy and Industrial Strategy",The Coal Authority,26/07/2021,Subsidence - Contractor Costs,PS&S - General Claims,PMC Surveys,109323,86.40
"Department for Business, Energy and Industrial Strategy",The Coal Authority,14/07/2021,Subsidence - Contractor Costs,PS&S - General Claims,British Gas Trading Ltd,109324,384.29
"Department for Business, Energy and Industrial Strategy",The Coal Authority,29/07/2021,Subsidence - Contractor Costs,PS&S - General Claims,Nal Plant Limited,109339,147.78
"Department for Business, Energy and Industrial Strategy",The Coal Authority,29/07/2021,Subsidence - Contractor Costs,PS&S - General Claims,Nal Plant Limited,109339,106.14
"Department for Business, Energy and Industrial Strategy",The Coal Authority,29/07/2021,Subsidence - Contractor Costs,PS&S - General Claims,Nal Plant Limited,109339,240.00
"Department for Business, Energy and Industrial Strategy",The Coal Authority,29/07/2021,Subsidence - Contractor Costs,PS&S - General Claims,Nal Plant Limited,109340,39.83
"Department for Business, Energy and Industrial Strategy",The Coal Authority,29/07/2021,Subsidence - Contractor Costs,PS&S - General Claims,Nal Plant Limited,109340,197.04
"Department for Business, Energy and Industrial Strategy",The Coal Authority,29/07/2021,Subsidence - Contractor Costs,PS&S - General Claims,Nal Plant Limited,109340,24.49
"Department for Business, Energy and Industrial Strategy",The Coal Authority,29/07/2021,Subsidence - Contractor Costs,PS&S - General Claims,Nal Plant Limited,109340,300.00
"Department for Business, Energy and Industrial Strategy",The Coal Authority,29/07/2021,Subsidence - Contractor Costs,PS&S - General Claims,Nal Plant Limited,109340,119.40
"Department for Business, Energy and Industrial Strategy",The Coal Authority,29/07/2021,Subsidence - Contractor Costs,PS&S - General Claims,Nal Plant Limited,109340,45.32
"Department for Business, Energy and Industrial Strategy",The Coal Authority,29/07/2021,Subsidence - Contractor Costs,PS&S - General Claims,Nal Plant Limited,109340,113.40
"Department for Business, Energy and Industrial Strategy",The Coal Authority,29/07/2021,Subsidence - Contractor Costs,PS&S - General Claims,Nal Plant Limited,109340,320.00
"Department for Business, Energy and Industrial Strategy",The Coal Authority,29/07/2021,Subsidence - Contractor Costs,PS&S - General Claims,Nal Plant Limited,109340,70.76
"Department for Business, Energy and Industrial Strategy",The Coal Authority,29/07/2021,Surface Hazards - Contractor Costs,PS&S - General Claims,Nal Plant Limited,109341,17.84
"Department for Business, Energy and Industrial Strategy",The Coal Authority,29/07/2021,Surface Hazards - Contractor Costs,PS&S - General Claims,Nal Plant Limited,109341,30.00
"Department for Business, Energy and Industrial Strategy",The Coal Authority,29/07/2021,Surface Hazards - Contractor Costs,PS&S - General Claims,Nal Plant Limited,109341,30.00
"Department for Business, Energy and Industrial Strategy",The Coal Authority,29/07/2021,Surface Hazards - Contractor Costs,PS&S - General Claims,Nal Plant Limited,109341,197.04
"Department for Business, Energy and Industrial Strategy",The Coal Authority,29/07/2021,Surface Hazards - Contractor Costs,PS&S - General Claims,Nal Plant Limited,109341,50.00
"Department for Business, Energy and Industrial Strategy",The Coal Authority,29/07/2021,Surface Hazards - Contractor Costs,PS&S - General Claims,Nal Plant Limited,109341,29.40
"Department for Business, Energy and Industrial Strategy",The Coal Authority,29/07/2021,Surface Hazards - Contractor Costs,PS&S - General Claims,Nal Plant Limited,109341,75.00
"Department for Business, Energy and Industrial Strategy",The Coal Authority,29/07/2021,Surface Hazards - Contractor Costs,PS&S - General Claims,Nal Plant Limited,109341,283.04
"Department for Business, Energy and Industrial Strategy",The Coal Authority,29/07/2021,Surface Hazards - Contractor Costs,PS&S - General Claims,Nal Plant Limited,109341,10.00
"Department for Business, Energy and Industrial Strategy",The Coal Authority,29/07/2021,Surface Hazards - Contractor Costs,PS&S - General Claims,Nal Plant Limited,109341,50.00
"Department for Business, Energy and Industrial Strategy",The Coal Authority,29/07/2021,Surface Hazards - Contractor Costs,PS&S - General Claims,Nal Plant Limited,109341,20.84
"Department for Business, Energy and Industrial Strategy",The Coal Authority,29/07/2021,Surface Hazards - Contractor Costs,PS&S - General Claims,Nal Plant Limited,109341,720.00
"Department for Business, Energy and Industrial Strategy",The Coal Authority,29/07/2021,Surface Hazards - Contractor Costs,PS&S - General Claims,Nal Plant Limited,109341,20.00
"Department for Business, Energy and Industrial Strategy",The Coal Authority,29/07/2021,Surface Hazards - Contractor Costs,PS&S - General Claims,Nal Plant Limited,109341,43.35
"Department for Business, Energy and Industrial Strategy",The Coal Authority,29/07/2021,Subsidence - Contractor Costs,PS&S - General Claims,Nal Plant Limited,109346,6.00
"Department for Business, Energy and Industrial Strategy",The Coal Authority,29/07/2021,Subsidence - Contractor Costs,PS&S - General Claims,Nal Plant Limited,109346,212.28
"Department for Business, Energy and Industrial Strategy",The Coal Authority,29/07/2021,Subsidence - Contractor Costs,PS&S - General Claims,Nal Plant Limited,109346,284.00
"Department for Business, Energy and Industrial Strategy",The Coal Authority,29/07/2021,Subsidence - Contractor Costs,PS&S - General Claims,Nal Plant Limited,109346,320.00
"Department for Business, Energy and Industrial Strategy",The Coal Authority,29/07/2021,Subsidence - Contractor Costs,PS&S - General Claims,Nal Plant Limited,109346,81.00
"Department for Business, Energy and Industrial Strategy",The Coal Authority,29/07/2021,Subsidence - Contractor Costs,PS&S - General Claims,Nal Plant Limited,109346,5.00
"Department for Business, Energy and Industrial Strategy",The Coal Authority,29/07/2021,Subsidence - Contractor Costs,PS&S - General Claims,Nal Plant Limited,109346,80.00
"Department for Business, Energy and Industrial Strategy",The Coal Authority,29/07/2021,Subsidence - Contractor Costs,PS&S - General Claims,Nal Plant Limited,109346,17.84
"Department for Business, Energy and Industrial Strategy",The Coal Authority,29/07/2021,Subsidence - Contractor Costs,PS&S - General Claims,Nal Plant Limited,109346,225.00
"Department for Business, Energy and Industrial Strategy",The Coal Authority,29/07/2021,Subsidence - Contractor Costs,PS&S - General Claims,Nal Plant Limited,109346,200.00
"Department for Business, Energy and Industrial Strategy",The Coal Authority,29/07/2021,Subsidence - Contractor Costs,PS&S - General Claims,Nal Plant Limited,109346,10.00
"Department for Business, Energy and Industrial Strategy",The Coal Authority,02/08/2021,CY - Non-coal Minewater - Additions,DEFRA Metal Mine Programme,Jeremy Benn Associates Ltd,109347,"4,643.54"
"Department for Business, Energy and Industrial Strategy",The Coal Authority,03/08/2021,Subsidence - Contractor Costs,PS&S - General Claims,Cornerstone  Projects Ltd,109348,303.70
"Department for Business, Energy and Industrial Strategy",The Coal Authority,03/08/2021,Surface Hazards - Contractor Costs,PS&S - General Claims,Cornerstone  Projects Ltd,109349,277.70
"Department for Business, Energy and Industrial Strategy",The Coal Authority,14/07/2021,Fuel (Vehicle),ENV - Projects & Delivery,Allstar Business Solutions Ltd,109384,61.21
"Department for Business, Energy and Industrial Strategy",The Coal Authority,21/07/2021,Fuel (Vehicle),ENV - Projects & Delivery,Allstar Business Solutions Ltd,109385,24.46
"Department for Business, Energy and Industrial Strategy",The Coal Authority,28/07/2021,Fuel (Vehicle),ENV - Projects & Delivery,Allstar Business Solutions Ltd,109386,32.88
"Department for Business, Energy and Industrial Strategy",The Coal Authority,30/06/2021,Property Rates Payable,DEV - Historic Property Liabilities,Business Stream,109408,"3,155.27"
"Department for Business, Energy and Industrial Strategy",The Coal Authority,03/08/2021,Temporary Contractors,ICT Development,94 Group Limited,109425,"11,250.00"
"Department for Business, Energy and Industrial Strategy",The Coal Authority,03/08/2021,Software Support & Maintenance - SaaS,ENV - Mine Water Operations,Hyde Park Solutions Limited,109426,"4,700.00"
"Department for Business, Energy and Industrial Strategy",The Coal Authority,04/08/2021,Temporary Contractors,Finance,Cherry Professional Limited,109427,"1,465.86"
"Department for Business, Energy and Industrial Strategy",The Coal Authority,29/07/2021,Professional Subscriptions,Executive,Stonewall Equality Limited,109428,"2,500.00"
"Department for Business, Energy and Industrial Strategy",The Coal Authority,16/07/2021,Training & Education,Executive,Elder Professional,109430,800.00
"Department for Business, Energy and Industrial Strategy",The Coal Authority,29/06/2021,Stationery,Customer Services & Strategy,Banner Business Solutions,109464,13.44
"Department for Business, Energy and Industrial Strategy",The Coal Authority,29/06/2021,Stationery,Customer Services & Strategy,Banner Business Solutions,109464,60.06
"Department for Business, Energy and Industrial Strategy",The Coal Authority,29/06/2021,Stationery,Customer Services & Strategy,Banner Business Solutions,109464,9.28
"Department for Business, Energy and Industrial Strategy",The Coal Authority,29/06/2021,Stationery,Customer Services & Strategy,Banner Business Solutions,109464,10.68
"Department for Business, Energy and Industrial Strategy",The Coal Authority,29/07/2021,Minewater Monitoring & Flow Measurement,ENV - Technical,Van Walt Ltd,109492,480.88
"Department for Business, Energy and Industrial Strategy",The Coal Authority,30/07/2021,Bank Charges,Finance,National Westminster Bank Plc,109496,70.03
"Department for Business, Energy and Industrial Strategy",The Coal Authority,02/08/2021,Temporary Contractors,ENV - Technical,Jeremy Benn Associates Ltd,109497,"4,999.50"
"Department for Business, Energy and Industrial Strategy",The Coal Authority,04/08/2021,Temporary Contractors,Business Intelligence,Pitch Consultants (Temporary) Ltd,109502,837.05
"Department for Business, Energy and Industrial Strategy",The Coal Authority,31/07/2021,Surface Hazards - Contractor Costs,PS&S - General Claims,Amberon Ltd,109508,"9,837.86"
"Department for Business, Energy and Industrial Strategy",The Coal Authority,03/08/2021,Surface Hazards - Contractor Costs,PS&S - General Claims,Cornerstone  Projects Ltd,109522,267.70
"Department for Business, Energy and Industrial Strategy",The Coal Authority,25/07/2021,Canteen Equipment,Facilities,Eden Springs UK LTD,109523,129.12
"Department for Business, Energy and Industrial Strategy",The Coal Authority,30/07/2021,Site Repairs & Maintenance,Facilities,Ulyett Landscapes Ltd,109524,"1,406.25"
"Department for Business, Energy and Industrial Strategy",The Coal Authority,30/07/2021,Postage & Couriers,Customer Services & Strategy,FedEx Express UK Transportaion Limited,109525,24.12
"Department for Business, Energy and Industrial Strategy",The Coal Authority,29/07/2021,Stationery,Customer Services & Strategy,Banner Business Solutions,109526,96.00
"Department for Business, Energy and Industrial Strategy",The Coal Authority,29/07/2021,Stationery,Customer Services & Strategy,Banner Business Solutions,109526,205.76
"Department for Business, Energy and Industrial Strategy",The Coal Authority,29/07/2021,Stationery,Customer Services & Strategy,Banner Business Solutions,109526,63.02
"Department for Business, Energy and Industrial Strategy",The Coal Authority,29/07/2021,Stationery,Customer Services & Strategy,Banner Business Solutions,109526,93.50
"Department for Business, Energy and Industrial Strategy",The Coal Authority,29/07/2021,Stationery,Customer Services & Strategy,Banner Business Solutions,109526,63.70
"Department for Business, Energy and Industrial Strategy",The Coal Authority,29/07/2021,Stationery,Customer Services & Strategy,Banner Business Solutions,109526,59.96
"Department for Business, Energy and Industrial Strategy",The Coal Authority,29/07/2021,Stationery,Customer Services & Strategy,Banner Business Solutions,109526,59.96
"Department for Business, Energy and Industrial Strategy",The Coal Authority,29/07/2021,Stationery,Customer Services & Strategy,Banner Business Solutions,109526,1.80
"Department for Business, Energy and Industrial Strategy",The Coal Authority,29/07/2021,Stationery,Customer Services & Strategy,Banner Business Solutions,109526,90.09
"Department for Business, Energy and Industrial Strategy",The Coal Authority,29/07/2021,Stationery,Customer Services & Strategy,Banner Business Solutions,109526,58.73
"Department for Business, Energy and Industrial Strategy",The Coal Authority,29/07/2021,Stationery,Customer Services & Strategy,Banner Business Solutions,109526,9.70
"Department for Business, Energy and Industrial Strategy",The Coal Authority,29/07/2021,Stationery,Customer Services & Strategy,Banner Business Solutions,109526,6.34
"Department for Business, Energy and Industrial Strategy",The Coal Authority,29/07/2021,Stationery,Customer Services & Strategy,Banner Business Solutions,109526,13.00
"Department for Business, Energy and Industrial Strategy",The Coal Authority,29/07/2021,Stationery,Facilities,Banner Business Solutions,109526,404.19
"Department for Business, Energy and Industrial Strategy",The Coal Authority,03/08/2021,CY - Subsidence Pumping - Additions,ENV - Projects & Delivery,Cornerstone  Projects Ltd,109530,188.54
"Department for Business, Energy and Industrial Strategy",The Coal Authority,30/07/2021,CY - Minewater Scheme - Additions,ENV - Projects & Delivery,Turner and Townsend Project Management Ltd.,109531,"5,733.08"
"Department for Business, Energy and Industrial Strategy",The Coal Authority,31/05/2021,CY - Minewater Scheme - Additions,ENV - Projects & Delivery,Alliance Contracting Solutions Ltd,109536,"11,562.50"
"Department for Business, Energy and Industrial Strategy",The Coal Authority,23/07/2021,Plant Maintenance,Facilities,Total Integrated Solutions,109540,102.57
"Department for Business, Energy and Industrial Strategy",The Coal Authority,29/07/2021,Mine Entry Inspection - Contractor Costs,Tips Response,Socotec,109552,"12,964.80"
"Department for Business, Energy and Industrial Strategy",The Coal Authority,01/07/2021,Surface Hazards - Contractor Costs,PS&S - General Claims,Alliance Contracting Solutions Ltd,109561,22.50
"Department for Business, Energy and Industrial Strategy",The Coal Authority,01/07/2021,Surface Hazards - Contractor Costs,PS&S - General Claims,Alliance Contracting Solutions Ltd,109561,10.08
"Department for Business, Energy and Industrial Strategy",The Coal Authority,01/07/2021,Surface Hazards - Contractor Costs,PS&S - General Claims,Alliance Contracting Solutions Ltd,109561,9.61
"Department for Business, Energy and Industrial Strategy",The Coal Authority,01/07/2021,Surface Hazards - Contractor Costs,PS&S - General Claims,Alliance Contracting Solutions Ltd,109561,5.84
"Department for Business, Energy and Industrial Strategy",The Coal Authority,01/07/2021,Surface Hazards - Contractor Costs,PS&S - General Claims,Alliance Contracting Solutions Ltd,109561,230.16
"Department for Business, Energy and Industrial Strategy",The Coal Authority,01/07/2021,Surface Hazards - Contractor Costs,PS&S - General Claims,Alliance Contracting Solutions Ltd,109561,3.35
"Department for Business, Energy and Industrial Strategy",The Coal Authority,01/07/2021,Surface Hazards - Contractor Costs,PS&S - General Claims,Alliance Contracting Solutions Ltd,109561,88.60
"Department for Business, Energy and Industrial Strategy",The Coal Authority,01/07/2021,Surface Hazards - Contractor Costs,PS&S - General Claims,Alliance Contracting Solutions Ltd,109561,50.00
"Department for Business, Energy and Industrial Strategy",The Coal Authority,01/07/2021,Surface Hazards - Contractor Costs,PS&S - General Claims,Alliance Contracting Solutions Ltd,109561,230.16
"Department for Business, Energy and Industrial Strategy",The Coal Authority,01/07/2021,Surface Hazards - Contractor Costs,PS&S - General Claims,Alliance Contracting Solutions Ltd,109561,191.20
"Department for Business, Energy and Industrial Strategy",The Coal Authority,30/07/2021,Subsidence - Contractor Costs,PS&S - General Claims,Geol-Consultants Ltd,109562,251.75
"Department for Business, Energy and Industrial Strategy",The Coal Authority,30/07/2021,Subsidence - Contractor Costs,PS&S - General Claims,Geol-Consultants Ltd,109562,"1,611.20"
"Department for Business, Energy and Industrial Strategy",The Coal Authority,30/07/2021,Subsidence - Contractor Costs,PS&S - General Claims,Geol-Consultants Ltd,109562,302.10
"Department for Business, Energy and Industrial Strategy",The Coal Authority,30/07/2021,Subsidence - Contractor Costs,PS&S - General Claims,Geol-Consultants Ltd,109562,18.14
"Department for Business, Energy and Industrial Strategy",The Coal Authority,30/07/2021,Subsidence - Contractor Costs,PS&S - General Claims,Geol-Consultants Ltd,109562,151.05
"Department for Business, Energy and Industrial Strategy",The Coal Authority,31/07/2021,Property Site Maintenance,DEV - Property Management,JMC Engineering Uk Ltd,109563,261.15
"Department for Business, Energy and Industrial Strategy",The Coal Authority,31/07/2021,Property Site Maintenance,DEV - Property Management,JMC Engineering Uk Ltd,109563,36.90
"Department for Business, Energy and Industrial Strategy",The Coal Authority,31/07/2021,Surface Hazards - Contractor Costs,PS&S - General Claims,Thomas Menzies Builders Ltd,109564,168.00
"Department for Business, Energy and Industrial Strategy",The Coal Authority,31/07/2021,Surface Hazards - Contractor Costs,PS&S - General Claims,Thomas Menzies Builders Ltd,109564,59.00
"Department for Business, Energy and Industrial Strategy",The Coal Authority,31/07/2021,Surface Hazards - Contractor Costs,PS&S - General Claims,Thomas Menzies Builders Ltd,109564,135.12
"Department for Business, Energy and Industrial Strategy",The Coal Authority,31/07/2021,Surface Hazards - Contractor Costs,PS&S - General Claims,Thomas Menzies Builders Ltd,109564,7.38
"Department for Business, Energy and Industrial Strategy",The Coal Authority,31/07/2021,Surface Hazards - Contractor Costs,PS&S - General Claims,Thomas Menzies Builders Ltd,109564,200.00
"Department for Business, Energy and Industrial Strategy",The Coal Authority,31/07/2021,Surface Hazards - Contractor Costs,PS&S - General Claims,Thomas Menzies Builders Ltd,109564,19.20
"Department for Business, Energy and Industrial Strategy",The Coal Authority,31/07/2021,Surface Hazards - Contractor Costs,PS&S - General Claims,Thomas Menzies Builders Ltd,109564,185.20
"Department for Business, Energy and Industrial Strategy",The Coal Authority,31/07/2021,Surface Hazards - Contractor Costs,PS&S - General Claims,Thomas Menzies Builders Ltd,109564,16.42
"Department for Business, Energy and Industrial Strategy",The Coal Authority,31/07/2021,Surface Hazards - Contractor Costs,PS&S - General Claims,Thomas Menzies Builders Ltd,109564,280.40
"Department for Business, Energy and Industrial Strategy",The Coal Authority,31/07/2021,Surface Hazards - Contractor Costs,PS&S - General Claims,Thomas Menzies Builders Ltd,109564,168.00
"Department for Business, Energy and Industrial Strategy",The Coal Authority,31/07/2021,Surface Hazards - Contractor Costs,PS&S - General Claims,Thomas Menzies Builders Ltd,109564,50.00
"Department for Business, Energy and Industrial Strategy",The Coal Authority,31/07/2021,Surface Hazards - Contractor Costs,PS&S - General Claims,Thomas Menzies Builders Ltd,109564,46.11
"Department for Business, Energy and Industrial Strategy",The Coal Authority,31/07/2021,Property Site Maintenance,DEV - Property Management,JMC Engineering Uk Ltd,109565,609.35
"Department for Business, Energy and Industrial Strategy",The Coal Authority,31/07/2021,Property Site Maintenance,DEV - Property Management,JMC Engineering Uk Ltd,109565,3.60
"Department for Business, Energy and Industrial Strategy",The Coal Authority,31/07/2021,Surface Hazards - Contractor Costs,PS&S - General Claims,Thomas Menzies Builders Ltd,109574,600.00
"Department for Business, Energy and Industrial Strategy",The Coal Authority,31/07/2021,Surface Hazards - Contractor Costs,PS&S - General Claims,Thomas Menzies Builders Ltd,109574,705.12
"Department for Business, Energy and Industrial Strategy",The Coal Authority,31/07/2021,Surface Hazards - Contractor Costs,PS&S - General Claims,Thomas Menzies Builders Ltd,109574,75.20
"Department for Business, Energy and Industrial Strategy",The Coal Authority,31/07/2021,Surface Hazards - Contractor Costs,PS&S - General Claims,Thomas Menzies Builders Ltd,109574,108.00
"Department for Business, Energy and Industrial Strategy",The Coal Authority,31/07/2021,Surface Hazards - Contractor Costs,PS&S - General Claims,Thomas Menzies Builders Ltd,109574,86.40
"Department for Business, Energy and Industrial Strategy",The Coal Authority,31/07/2021,Surface Hazards - Contractor Costs,PS&S - General Claims,Thomas Menzies Builders Ltd,109574,106.14
"Department for Business, Energy and Industrial Strategy",The Coal Authority,31/07/2021,Surface Hazards - Contractor Costs,PS&S - General Claims,Thomas Menzies Builders Ltd,109574,407.88
"Department for Business, Energy and Industrial Strategy",The Coal Authority,31/07/2021,Surface Hazards - Contractor Costs,PS&S - General Claims,Thomas Menzies Builders Ltd,109574,150.00
"Department for Business, Energy and Industrial Strategy",The Coal Authority,31/07/2021,Surface Hazards - Contractor Costs,PS&S - General Claims,Thomas Menzies Builders Ltd,109574,32.84
"Department for Business, Energy and Industrial Strategy",The Coal Authority,31/07/2021,Surface Hazards - Contractor Costs,PS&S - General Claims,Thomas Menzies Builders Ltd,109574,504.00
"Department for Business, Energy and Industrial Strategy",The Coal Authority,31/07/2021,Surface Hazards - Contractor Costs,PS&S - General Claims,Thomas Menzies Builders Ltd,109574,33.70
"Department for Business, Energy and Industrial Strategy",The Coal Authority,31/07/2021,Surface Hazards - Contractor Costs,PS&S - General Claims,Thomas Menzies Builders Ltd,109574,555.60
"Department for Business, Energy and Industrial Strategy",The Coal Authority,31/07/2021,Surface Hazards - Contractor Costs,PS&S - General Claims,Thomas Menzies Builders Ltd,109574,315.00
"Department for Business, Energy and Industrial Strategy",The Coal Authority,31/07/2021,Surface Hazards - Contractor Costs,PS&S - General Claims,Thomas Menzies Builders Ltd,109574,61.48
"Department for Business, Energy and Industrial Strategy",The Coal Authority,31/07/2021,Surface Hazards - Contractor Costs,PS&S - General Claims,Thomas Menzies Builders Ltd,109574,242.40
"Department for Business, Energy and Industrial Strategy",The Coal Authority,06/08/2021,Surface Hazards - Contractor Costs,PS&S - General Claims,Cornerstone  Projects Ltd,109575,212.18
"Department for Business, Energy and Industrial Strategy",The Coal Authority,05/08/2021,Surface Hazards - Contractor Costs,PS&S - General Claims,Cornerstone  Projects Ltd,109576,117.48
"Department for Business, Energy and Industrial Strategy",The Coal Authority,09/08/2021,Surface Hazards - Contractor Costs,PS&S - General Claims,Cornerstone  Projects Ltd,109577,98.00
"Department for Business, Energy and Industrial Strategy",The Coal Authority,31/05/2021,Subsidence - Contractor Costs,PS&S - General Claims,Mar Scaffolding Scotland Ltd,109578,179.80
"Department for Business, Energy and Industrial Strategy",The Coal Authority,05/08/2021,Central Training,"Health, Safety & Wellbeing",Astutis Ltd,109579,"2,156.00"
"Department for Business, Energy and Industrial Strategy",The Coal Authority,07/08/2021,Site Services,Facilities,Restore Datashred,109580,79.99
"Department for Business, Energy and Industrial Strategy",The Coal Authority,07/08/2021,Site Services,Facilities,Restore Datashred,109580,0.01
"Department for Business, Energy and Industrial Strategy",The Coal Authority,07/08/2021,Site Services,Facilities,Restore Datashred,109581,69.95
"Department for Business, Energy and Industrial Strategy",The Coal Authority,06/08/2021,CY - Non-coal Minewater - Additions,DEFRA LEP Funding,I & H Brown Limited,109590,"544,016.36"
"Department for Business, Energy and Industrial Strategy",The Coal Authority,05/08/2021,Surface Hazards - Contractor Costs,PS&S - General Claims,Jim Davies Civil Engineering,109591,18.90
"Department for Business, Energy and Industrial Strategy",The Coal Authority,05/08/2021,Surface Hazards - Contractor Costs,PS&S - General Claims,Jim Davies Civil Engineering,109591,427.50
"Department for Business, Energy and Industrial Strategy",The Coal Authority,05/08/2021,Surface Hazards - Contractor Costs,PS&S - General Claims,Jim Davies Civil Engineering,109591,31.50
"Department for Business, Energy and Industrial Strategy",The Coal Authority,04/08/2021,Legal - General,Legal & Governance,Anderson Strathern,109592,187.00
"Department for Business, Energy and Industrial Strategy",The Coal Authority,04/08/2021,Legal - General,Legal & Governance,Anderson Strathern,109593,117.00
"Department for Business, Energy and Industrial Strategy",The Coal Authority,04/08/2021,Legal - General,Legal & Governance,Anderson Strathern,109594,13.00
"Department for Business, Energy and Industrial Strategy",The Coal Authority,28/06/2021,Hotel & Accommodation,NRW Metal Mine Programme,Staff Expenses Control,109595,257.14
"Department for Business, Energy and Industrial Strategy",The Coal Authority,01/07/2021,Hotel & Accommodation,NRW Metal Mine Programme,Staff Expenses Control,109595,238.10
"Department for Business, Energy and Industrial Strategy",The Coal Authority,30/06/2021,Incidentals,ENV - Technical,Staff Expenses Control,109595,63.00
"Department for Business, Energy and Industrial Strategy",The Coal Authority,02/07/2021,Incidentals,NRW Metal Mine Programme,Staff Expenses Control,109595,3.42
"Department for Business, Energy and Industrial Strategy",The Coal Authority,21/07/2021,Incidentals,Innovation By-Product & Services Delivery,Staff Expenses Control,109595,1.90
"Department for Business, Energy and Industrial Strategy",The Coal Authority,26/07/2021,Incidentals,Innovation By-Product & Services Delivery,Staff Expenses Control,109595,1.90
"Department for Business, Energy and Industrial Strategy",The Coal Authority,29/07/2021,Incidentals,Innovation By-Product & Services Delivery,Staff Expenses Control,109595,1.90
"Department for Business, Energy and Industrial Strategy",The Coal Authority,14/07/2021,Mileage Payments,Engineering,Staff Expenses Control,109595,6.30
"Department for Business, Energy and Industrial Strategy",The Coal Authority,21/07/2021,Mileage Payments,Innovation By-Product & Services Delivery,Staff Expenses Control,109595,83.42
"Department for Business, Energy and Industrial Strategy",The Coal Authority,21/07/2021,Mileage Payments,Innovation By-Product & Services Delivery,Staff Expenses Control,109595,83.31
"Department for Business, Energy and Industrial Strategy",The Coal Authority,22/07/2021,Mileage Payments,DEV - Planning & Local Authority Liaison,Staff Expenses Control,109595,187.20
"Department for Business, Energy and Industrial Strategy",The Coal Authority,22/07/2021,Mileage Payments,ENV - Technical,Staff Expenses Control,109595,40.77
"Department for Business, Energy and Industrial Strategy",The Coal Authority,22/07/2021,Mileage Payments,ENV - Technical,Staff Expenses Control,109595,40.50
"Department for Business, Energy and Industrial Strategy",The Coal Authority,22/07/2021,Mileage Payments,Innovation By-Product & Services Delivery,Staff Expenses Control,109595,5.40
"Department for Business, Energy and Industrial Strategy",The Coal Authority,22/07/2021,Mileage Payments,Innovation By-Product & Services Delivery,Staff Expenses Control,109595,5.40
"Department for Business, Energy and Industrial Strategy",The Coal Authority,26/07/2021,Mileage Payments,Innovation By-Product & Services Delivery,Staff Expenses Control,109595,87.75
"Department for Business, Energy and Industrial Strategy",The Coal Authority,26/07/2021,Mileage Payments,Innovation By-Product & Services Delivery,Staff Expenses Control,109595,85.50
"Department for Business, Energy and Industrial Strategy",The Coal Authority,26/07/2021,Mileage Payments,PS&S - Industry Claims,Staff Expenses Control,109595,16.20
"Department for Business, Energy and Industrial Strategy",The Coal Authority,27/07/2021,Mileage Payments,PS&S - Industry Claims,Staff Expenses Control,109595,16.20
"Department for Business, Energy and Industrial Strategy",The Coal Authority,28/07/2021,Mileage Payments,Innovation By-Product & Services Delivery,Staff Expenses Control,109595,6.13
"Department for Business, Energy and Industrial Strategy",The Coal Authority,28/07/2021,Mileage Payments,Innovation By-Product & Services Delivery,Staff Expenses Control,109595,83.42
"Department for Business, Energy and Industrial Strategy",The Coal Authority,28/07/2021,Mileage Payments,PS&S - Industry Claims,Staff Expenses Control,109595,16.20
"Department for Business, Energy and Industrial Strategy",The Coal Authority,29/07/2021,Mileage Payments,Innovation By-Product & Services Delivery,Staff Expenses Control,109595,6.11
"Department for Business, Energy and Industrial Strategy",The Coal Authority,29/07/2021,Mileage Payments,Innovation By-Product & Services Delivery,Staff Expenses Control,109595,83.32
"Department for Business, Energy and Industrial Strategy",The Coal Authority,29/07/2021,Mileage Payments,PS&S - Industry Claims,Staff Expenses Control,109595,16.20
"Department for Business, Energy and Industrial Strategy",The Coal Authority,30/07/2021,Mileage Payments,PS&S - Industry Claims,Staff Expenses Control,109595,16.20
"Department for Business, Energy and Industrial Strategy",The Coal Authority,02/08/2021,Mileage Payments,PS&S - General Claims,Staff Expenses Control,109595,94.50
"Department for Business, Energy and Industrial Strategy",The Coal Authority,02/08/2021,Mileage Payments,PS&S - General Claims,Staff Expenses Control,109595,92.25
"Department for Business, Energy and Industrial Strategy",The Coal Authority,03/08/2021,Mileage Payments,Heat & By-Product Innovation,Staff Expenses Control,109595,66.71
"Department for Business, Energy and Industrial Strategy",The Coal Authority,03/08/2021,Mileage Payments,Heat & By-Product Innovation,Staff Expenses Control,109595,63.96
"Department for Business, Energy and Industrial Strategy",The Coal Authority,03/08/2021,Mileage Payments,Heat & By-Product Innovation,Staff Expenses Control,109595,8.89
"Department for Business, Energy and Industrial Strategy",The Coal Authority,30/06/2021,Postage & Couriers,DEV - Property Management,Staff Expenses Control,109595,22.50
"Department for Business, Energy and Industrial Strategy",The Coal Authority,06/03/2021,Subsistence Allowances,Facilities,Staff Expenses Control,109595,10.25
"Department for Business, Energy and Industrial Strategy",The Coal Authority,30/06/2021,Subsistence Allowances,NRW Metal Mine Programme,Staff Expenses Control,109595,22.63
"Department for Business, Energy and Industrial Strategy",The Coal Authority,30/06/2021,Subsistence Allowances,NRW Metal Mine Programme,Staff Expenses Control,109595,22.62
"Department for Business, Energy and Industrial Strategy",The Coal Authority,04/08/2021,Subsistence Allowances,Heat & By-Product Innovation,Staff Expenses Control,109595,7.95
"Department for Business, Energy and Industrial Strategy",The Coal Authority,05/08/2021,CY - Minewater Scheme - Additions,ENV - Projects & Delivery,J N Bentley Limited,109601,"1,070.98"
"Department for Business, Energy and Industrial Strategy",The Coal Authority,05/08/2021,CY - Minewater Scheme - Additions,ENV - Projects & Delivery,J N Bentley Limited,109601,"3,219.32"
"Department for Business, Energy and Industrial Strategy",The Coal Authority,05/08/2021,CY - Minewater Scheme - Additions,ENV - Projects & Delivery,J N Bentley Limited,109601,"1,071.29"
"Department for Business, Energy and Industrial Strategy",The Coal Authority,03/08/2021,Subsidence - Contractor Costs,PS&S - General Claims,Compensation Payment,109602,"900,000.00"
"Department for Business, Energy and Industrial Strategy",The Coal Authority,06/08/2021,Surface Hazards - Contractor Costs,PS&S - General Claims,Alliance Contracting Solutions Ltd,109603,191.20
"Department for Business, Energy and Industrial Strategy",The Coal Authority,06/08/2021,Surface Hazards - Contractor Costs,PS&S - General Claims,Alliance Contracting Solutions Ltd,109603,15.53
"Department for Business, Energy and Industrial Strategy",The Coal Authority,06/08/2021,Surface Hazards - Contractor Costs,PS&S - General Claims,Alliance Contracting Solutions Ltd,109603,45.00
"Department for Business, Energy and Industrial Strategy",The Coal Authority,06/08/2021,Surface Hazards - Contractor Costs,PS&S - General Claims,Alliance Contracting Solutions Ltd,109603,230.16
"Department for Business, Energy and Industrial Strategy",The Coal Authority,06/08/2021,Surface Hazards - Contractor Costs,PS&S - General Claims,Alliance Contracting Solutions Ltd,109603,22.50
"Department for Business, Energy and Industrial Strategy",The Coal Authority,06/08/2021,Surface Hazards - Contractor Costs,PS&S - General Claims,Alliance Contracting Solutions Ltd,109603,230.16
"Department for Business, Energy and Industrial Strategy",The Coal Authority,02/08/2021,Surface Hazards - Contractor Costs,PS&S - General Claims,Luddon Construction Limited,109604,"78,451.44"
"Department for Business, Energy and Industrial Strategy",The Coal Authority,09/08/2021,Surface Hazards - Contractor Costs,PS&S - General Claims,Compensation Payment,109606,360.00
"Department for Business, Energy and Industrial Strategy",The Coal Authority,26/07/2021,Surface Hazards - Contractor Costs,PS&S - General Claims,PMC Surveys,109620,678.40
"Department for Business, Energy and Industrial Strategy",The Coal Authority,16/07/2021,Surface Hazards - Contractor Costs,PS&S - General Claims,Storage Giant Limited,109621,343.06
"Department for Business, Energy and Industrial Strategy",The Coal Authority,16/07/2021,Surface Hazards - Contractor Costs,PS&S - General Claims,Storage Giant Limited,109621,32.00
"Department for Business, Energy and Industrial Strategy",The Coal Authority,09/08/2021,Surface Hazards - Contractor Costs,PS&S - General Claims,Compensation Payment,109622,628.50
"Department for Business, Energy and Industrial Strategy",The Coal Authority,03/08/2021,Subsidence - Contractor Costs,PS&S - General Claims,Compensation Payment,109623,"2,000.00"
"Department for Business, Energy and Industrial Strategy",The Coal Authority,03/08/2021,Subsidence - Contractor Costs,PS&S - General Claims,Compensation Payment,109623,502.08
"Department for Business, Energy and Industrial Strategy",The Coal Authority,06/08/2021,Surface Hazards - Contractor Costs,PS&S - General Claims,Davies Management Group Limited,109624,"17,100.00"
"Department for Business, Energy and Industrial Strategy",The Coal Authority,29/07/2021,Surface Hazards - Contractor Costs,PS&S - General Claims,Just Stay Wales Limited,109625,"21,175.00"
"Department for Business, Energy and Industrial Strategy",The Coal Authority,09/08/2021,Surface Hazards - Contractor Costs,PS&S - General Claims,Compensation Payment,109626,667.00
"Department for Business, Energy and Industrial Strategy",The Coal Authority,30/07/2021,Minewater Sampling - 'Non-operational' Sites,DEFRA Metal Mine Programme,Socotec,109632,60.38
"Department for Business, Energy and Industrial Strategy",The Coal Authority,30/07/2021,Minewater Sampling - 'Non-operational' Sites,DEFRA Metal Mine Programme,Socotec,109632,60.38
"Department for Business, Energy and Industrial Strategy",The Coal Authority,30/07/2021,Minewater Sampling - 'Non-operational' Sites,DEFRA Metal Mine Programme,Socotec,109632,10.00
"Department for Business, Energy and Industrial Strategy",The Coal Authority,30/07/2021,Minewater Sampling - 'Non-operational' Sites,DEFRA Metal Mine Programme,Socotec,109632,10.00
"Department for Business, Energy and Industrial Strategy",The Coal Authority,04/08/2021,Minewater Feasibility / Scoping,DEFRA Metal Mine Programme,Socotec,109633,651.44
"Department for Business, Energy and Industrial Strategy",The Coal Authority,04/08/2021,Minewater Feasibility / Scoping,DEFRA Metal Mine Programme,Socotec,109634,809.30
"Department for Business, Energy and Industrial Strategy",The Coal Authority,30/07/2021,Research & Development (BEIS Funded),DEFRA Metal Mine Programme,Enitial Limited,109635,700.00
"Department for Business, Energy and Industrial Strategy",The Coal Authority,30/07/2021,Research & Development (Non BEIS Funded),DEFRA Metal Mine Programme,Enitial Limited,109636,"1,439.90"
"Department for Business, Energy and Industrial Strategy",The Coal Authority,30/07/2021,Minewater Sludge Disposal,DEFRA Metal Mine Programme,Wheal Jane Ltd,109644,"33,333.60"
"Department for Business, Energy and Industrial Strategy",The Coal Authority,02/08/2021,Minewater Liability & Monitoring Sites - Ad-hoc,ENV - Technical,Detectronic Limited,109647,900.00
"Department for Business, Energy and Industrial Strategy",The Coal Authority,27/07/2021,Legal - General,Legal & Governance,Browne Jacobson Llp Client Account,109648,"1,474.00"
"Department for Business, Energy and Industrial Strategy",The Coal Authority,29/06/2021,Canteen Equipment,Facilities,All Shires Foods Ltd,109653,117.60
"Department for Business, Energy and Industrial Strategy",The Coal Authority,29/06/2021,Canteen Equipment,Facilities,All Shires Foods Ltd,109653,40.50
"Department for Business, Energy and Industrial Strategy",The Coal Authority,22/06/2021,Canteen Equipment,Facilities,All Shires Foods Ltd,109654,44.50
"Department for Business, Energy and Industrial Strategy",The Coal Authority,22/06/2021,Canteen Equipment,Facilities,All Shires Foods Ltd,109654,41.00
"Department for Business, Energy and Industrial Strategy",The Coal Authority,22/06/2021,Canteen Equipment,Facilities,All Shires Foods Ltd,109654,433.55
"Department for Business, Energy and Industrial Strategy",The Coal Authority,22/06/2021,Canteen Equipment,Facilities,All Shires Foods Ltd,109654,39.50
"Department for Business, Energy and Industrial Strategy",The Coal Authority,22/06/2021,Canteen Equipment,Facilities,All Shires Foods Ltd,109654,182.25
"Department for Business, Energy and Industrial Strategy",The Coal Authority,22/06/2021,Canteen Equipment,Facilities,All Shires Foods Ltd,109654,63.25
"Department for Business, Energy and Industrial Strategy",The Coal Authority,22/06/2021,Canteen Equipment,Facilities,All Shires Foods Ltd,109654,78.40
"Department for Business, Energy and Industrial Strategy",The Coal Authority,22/06/2021,Canteen Equipment,Facilities,All Shires Foods Ltd,109654,52.50
"Department for Business, Energy and Industrial Strategy",The Coal Authority,10/08/2021,Other Hosting / IaaS,Mining Reports,Bytemark Limited,109675,-0.19
"Department for Business, Energy and Industrial Strategy",The Coal Authority,10/08/2021,Other Hosting / IaaS,Mining Reports,Bytemark Limited,109678,-0.25
"Department for Business, Energy and Industrial Strategy",The Coal Authority,30/07/2021,Temporary Contractors,Heat & By-Product Innovation,Key Personnel Solutions Ltd,109686,"1,519.10"
"Department for Business, Energy and Industrial Strategy",The Coal Authority,01/08/2021,Contract Hire Vehicles,PS&S - General Claims,Days Fleet,109689,10.00
"Department for Business, Energy and Industrial Strategy",The Coal Authority,01/08/2021,Contract Hire Vehicles,PS&S - General Claims,Days Fleet,109690,"4,739.04"
"Department for Business, Energy and Industrial Strategy",The Coal Authority,01/08/2021,Contract Hire Vehicles,PS&S - General Claims,Days Fleet,109690,356.40
"Department for Business, Energy and Industrial Strategy",The Coal Authority,01/08/2021,Contract Hire Vehicles,PS&S - General Claims,Days Fleet,109690,473.91
"Department for Business, Energy and Industrial Strategy",The Coal Authority,01/08/2021,Contract Hire Vehicles,PS&S - General Claims,Days Fleet,109690,"4,331.98"
"Department for Business, Energy and Industrial Strategy",The Coal Authority,01/08/2021,Contract Hire Vehicles,PS&S - General Claims,Days Fleet,109690,465.00
"Department for Business, Energy and Industrial Strategy",The Coal Authority,01/08/2021,Contract Hire Vehicles,PS&S - General Claims,Days Fleet,109690,433.20
"Department for Business, Energy and Industrial Strategy",The Coal Authority,27/07/2021,Legal - General,Legal & Governance,Browne Jacobson Llp Client Account,109693,387.00
"Department for Business, Energy and Industrial Strategy",The Coal Authority,27/07/2021,Legal - General,Legal & Governance,Browne Jacobson Llp Client Account,109694,"1,197.00"
"Department for Business, Energy and Industrial Strategy",The Coal Authority,09/08/2021,Site Services,Facilities,Falcon Pest Services,109700,70.00
"Department for Business, Energy and Industrial Strategy",The Coal Authority,09/08/2021,Temporary Contractors,Procurement,Hays Specialist Recruitment,109701,"2,173.55"
"Department for Business, Energy and Industrial Strategy",The Coal Authority,09/08/2021,Temporary Contractors,Procurement,Hays Specialist Recruitment,109701,4.85
"Department for Business, Energy and Industrial Strategy",The Coal Authority,28/07/2021,Surface Hazards - Contractor Costs,PS&S - General Claims,Luddon Construction Limited,109702,440.00
"Department for Business, Energy and Industrial Strategy",The Coal Authority,31/07/2021,Surface Hazards - Contractor Costs,PS&S - General Claims,Luddon Construction Limited,109703,600.00
"Department for Business, Energy and Industrial Strategy",The Coal Authority,10/08/2021,Software Support & Maintenance - On Premise,DIG - Technical Delivery,BrowserStack Inc.,109706,-1.67
"Department for Business, Energy and Industrial Strategy",The Coal Authority,31/07/2021,Innovation Costs,Heat & By-Product Innovation,Carter Jonas,109709,"2,379.00"
"Department for Business, Energy and Industrial Strategy",The Coal Authority,02/08/2021,Subsidence - Contractor Costs,PS&S - General Claims,AMC Removals UK Ltd,109710,236.82
"Department for Business, Energy and Industrial Strategy",The Coal Authority,31/07/2021,Minewater Contractor Maint. Visits - Ops Site,ENV - Mine Water Operations,National Coal Mining Museum,109723,"2,980.00"
"Department for Business, Energy and Industrial Strategy",The Coal Authority,31/07/2021,Minewater Power Costs,ENV - Mine Water Operations,National Coal Mining Museum,109724,201.00
"Department for Business, Energy and Industrial Strategy",The Coal Authority,31/07/2021,Minewater Contractor Maint. Visits - Ops Site,ENV - Mine Water Operations,National Coal Mining Museum,109725,"6,532.14"
"Department for Business, Energy and Industrial Strategy",The Coal Authority,10/08/2021,Minewater Power Costs,ENV - Mine Water Operations,National Coal Mining Museum,109726,"17,123.99"
"Department for Business, Energy and Industrial Strategy",The Coal Authority,11/08/2021,Minewater Power Costs,ENV - Mine Water Operations,National Coal Mining Museum,109727,"-17,123.99"
"Department for Business, Energy and Industrial Strategy",The Coal Authority,10/08/2021,Minewater Contractor Maint. Visits - Ops Site,ENV - Mine Water Operations,National Coal Mining Museum,109735,201.00
"Department for Business, Energy and Industrial Strategy",The Coal Authority,10/08/2021,Minewater Power Costs,ENV - Mine Water Operations,National Coal Mining Museum,109735,"16,922.99"
"Department for Business, Energy and Industrial Strategy",The Coal Authority,06/08/2021,Electricity Usage,Facilities,Edf Energy,109736,"11,124.33"
"Department for Business, Energy and Industrial Strategy",The Coal Authority,06/08/2021,Minewater Power Costs,DEFRA Metal Mine Programme,Edf Energy,109736,"30,357.40"
"Department for Business, Energy and Industrial Strategy",The Coal Authority,06/08/2021,Minewater Power Costs,DEFRA Metal Mine Programme,Edf Energy,109736,"2,317.84"
"Department for Business, Energy and Industrial Strategy",The Coal Authority,06/08/2021,Minewater Power Costs,ENV - Mine Water Operations,Edf Energy,109736,"1,123.36"
"Department for Business, Energy and Industrial Strategy",The Coal Authority,06/08/2021,Minewater Power Costs,ENV - Mine Water Operations,Edf Energy,109736,796.60
"Department for Business, Energy and Industrial Strategy",The Coal Authority,06/08/2021,Minewater Power Costs,ENV - Mine Water Operations,Edf Energy,109736,39.69
"Department for Business, Energy and Industrial Strategy",The Coal Authority,06/08/2021,Minewater Power Costs,ENV - Mine Water Operations,Edf Energy,109736,"1,531.29"
"Department for Business, Energy and Industrial Strategy",The Coal Authority,06/08/2021,Minewater Power Costs,ENV - Mine Water Operations,Edf Energy,109736,"11,946.45"
"Department for Business, Energy and Industrial Strategy",The Coal Authority,06/08/2021,Minewater Power Costs,ENV - Mine Water Operations,Edf Energy,109736,60.91
"Department for Business, Energy and Industrial Strategy",The Coal Authority,06/08/2021,Minewater Power Costs,ENV - Mine Water Operations,Edf Energy,109736,"1,155.08"
"Department for Business, Energy and Industrial Strategy",The Coal Authority,06/08/2021,Minewater Power Costs,ENV - Mine Water Operations,Edf Energy,109736,"6,374.88"
"Department for Business, Energy and Industrial Strategy",The Coal Authority,06/08/2021,Minewater Power Costs,ENV - Mine Water Operations,Edf Energy,109736,499.97
"Department for Business, Energy and Industrial Strategy",The Coal Authority,06/08/2021,Minewater Power Costs,ENV - Mine Water Operations,Edf Energy,109736,"2,573.51"
"Department for Business, Energy and Industrial Strategy",The Coal Authority,06/08/2021,Minewater Power Costs,ENV - Mine Water Operations,Edf Energy,109736,"5,427.11"
"Department for Business, Energy and Industrial Strategy",The Coal Authority,06/08/2021,Minewater Power Costs,ENV - Mine Water Operations,Edf Energy,109736,"1,172.56"
"Department for Business, Energy and Industrial Strategy",The Coal Authority,06/08/2021,Minewater Power Costs,ENV - Mine Water Operations,Edf Energy,109736,702.97
"Department for Business, Energy and Industrial Strategy",The Coal Authority,06/08/2021,Minewater Power Costs,ENV - Mine Water Operations,Edf Energy,109736,588.78
"Department for Business, Energy and Industrial Strategy",The Coal Authority,06/08/2021,Minewater Power Costs,ENV - Mine Water Operations,Edf Energy,109736,208.21
"Department for Business, Energy and Industrial Strategy",The Coal Authority,06/08/2021,Minewater Power Costs,ENV - Mine Water Operations,Edf Energy,109736,161.33
"Department for Business, Energy and Industrial Strategy",The Coal Authority,06/08/2021,Minewater Power Costs,ENV - Mine Water Operations,Edf Energy,109736,51.54
"Department for Business, Energy and Industrial Strategy",The Coal Authority,06/08/2021,Minewater Power Costs,ENV - Mine Water Operations,Edf Energy,109736,"12,884.31"
"Department for Business, Energy and Industrial Strategy",The Coal Authority,06/08/2021,Minewater Power Costs,ENV - Mine Water Operations,Edf Energy,109736,"18,170.32"
"Department for Business, Energy and Industrial Strategy",The Coal Authority,06/08/2021,Minewater Power Costs,ENV - Mine Water Operations,Edf Energy,109736,"5,368.15"
"Department for Business, Energy and Industrial Strategy",The Coal Authority,06/08/2021,Minewater Power Costs,ENV - Mine Water Operations,Edf Energy,109736,"1,841.55"
"Department for Business, Energy and Industrial Strategy",The Coal Authority,06/08/2021,Minewater Power Costs,ENV - Mine Water Operations,Edf Energy,109736,"2,586.15"
"Department for Business, Energy and Industrial Strategy",The Coal Authority,06/08/2021,Minewater Power Costs,ENV - Mine Water Operations,Edf Energy,109736,293.14
"Department for Business, Energy and Industrial Strategy",The Coal Authority,06/08/2021,Minewater Power Costs,ENV - Mine Water Operations,Edf Energy,109736,"1,485.00"
"Department for Business, Energy and Industrial Strategy",The Coal Authority,06/08/2021,Minewater Power Costs,ENV - Mine Water Operations,Edf Energy,109736,"1,081.57"
"Department for Business, Energy and Industrial Strategy",The Coal Authority,06/08/2021,Minewater Power Costs,ENV - Mine Water Operations,Edf Energy,109736,"1,177.75"
"Department for Business, Energy and Industrial Strategy",The Coal Authority,06/08/2021,Minewater Power Costs,ENV - Mine Water Operations,Edf Energy,109736,"1,473.07"
"Department for Business, Energy and Industrial Strategy",The Coal Authority,06/08/2021,Minewater Power Costs,ENV - Mine Water Operations,Edf Energy,109736,847.70
"Department for Business, Energy and Industrial Strategy",The Coal Authority,06/08/2021,Minewater Power Costs,ENV - Mine Water Operations,Edf Energy,109736,"1,073.23"
"Department for Business, Energy and Industrial Strategy",The Coal Authority,06/08/2021,Minewater Power Costs,ENV - Mine Water Operations,Edf Energy,109736,453.66
"Department for Business, Energy and Industrial Strategy",The Coal Authority,06/08/2021,Minewater Power Costs,ENV - Mine Water Operations,Edf Energy,109736,"10,192.69"
"Department for Business, Energy and Industrial Strategy",The Coal Authority,06/08/2021,Minewater Power Costs,ENV - Mine Water Operations,Edf Energy,109736,"14,296.19"
"Department for Business, Energy and Industrial Strategy",The Coal Authority,06/08/2021,Minewater Power Costs,ENV - Mine Water Operations,Edf Energy,109736,745.21
"Department for Business, Energy and Industrial Strategy",The Coal Authority,06/08/2021,Minewater Power Costs,ENV - Mine Water Operations,Edf Energy,109736,"4,332.51"
"Department for Business, Energy and Industrial Strategy",The Coal Authority,06/08/2021,Minewater Power Costs,ENV - Mine Water Operations,Edf Energy,109736,296.58
"Department for Business, Energy and Industrial Strategy",The Coal Authority,06/08/2021,Minewater Power Costs,ENV - Mine Water Operations,Edf Energy,109736,"34,835.71"
"Department for Business, Energy and Industrial Strategy",The Coal Authority,06/08/2021,Minewater Power Costs,ENV - Mine Water Operations,Edf Energy,109736,"5,821.47"
"Department for Business, Energy and Industrial Strategy",The Coal Authority,06/08/2021,Minewater Power Costs,ENV - Mine Water Operations,Edf Energy,109736,"1,815.52"
"Department for Business, Energy and Industrial Strategy",The Coal Authority,06/08/2021,Minewater Power Costs,ENV - Mine Water Operations,Edf Energy,109736,"2,576.08"
"Department for Business, Energy and Industrial Strategy",The Coal Authority,06/08/2021,Minewater Power Costs,ENV - Mine Water Operations,Edf Energy,109736,"3,334.35"
"Department for Business, Energy and Industrial Strategy",The Coal Authority,06/08/2021,Minewater Power Costs,ENV - Mine Water Operations,Edf Energy,109736,"7,433.26"
"Department for Business, Energy and Industrial Strategy",The Coal Authority,06/08/2021,Minewater Power Costs,ENV - Mine Water Operations,Edf Energy,109736,"12,982.73"
"Department for Business, Energy and Industrial Strategy",The Coal Authority,06/08/2021,Minewater Power Costs,ENV - Mine Water Operations,Edf Energy,109736,888.99
"Department for Business, Energy and Industrial Strategy",The Coal Authority,06/08/2021,Minewater Power Costs,ENV - Mine Water Operations,Edf Energy,109736,"17,604.77"
"Department for Business, Energy and Industrial Strategy",The Coal Authority,06/08/2021,Minewater Power Costs,ENV - Mine Water Operations,Edf Energy,109736,"7,663.72"
"Department for Business, Energy and Industrial Strategy",The Coal Authority,06/08/2021,Minewater Power Costs,ENV - Mine Water Operations,Edf Energy,109736,"16,033.19"
"Department for Business, Energy and Industrial Strategy",The Coal Authority,06/08/2021,Minewater Power Costs,ENV - Mine Water Operations,Edf Energy,109736,"17,925.59"
"Department for Business, Energy and Industrial Strategy",The Coal Authority,06/08/2021,Minewater Power Costs,ENV - Mine Water Operations,Edf Energy,109736,158.74
"Department for Business, Energy and Industrial Strategy",The Coal Authority,06/08/2021,Minewater Power Costs,ENV - Mine Water Operations,Edf Energy,109736,721.01
"Department for Business, Energy and Industrial Strategy",The Coal Authority,06/08/2021,Minewater Power Costs,ENV - Mine Water Operations,Edf Energy,109736,"3,615.55"
"Department for Business, Energy and Industrial Strategy",The Coal Authority,06/08/2021,Minewater Pumping Tests,ENV - Projects & Delivery,Edf Energy,109736,"3,857.12"
"Department for Business, Energy and Industrial Strategy",The Coal Authority,06/08/2021,Subsidence Pumping Maintenance - Power,ENV - Mine Water Operations,Edf Energy,109736,306.69
"Department for Business, Energy and Industrial Strategy",The Coal Authority,06/08/2021,Subsidence Pumping Maintenance - Power,ENV - Mine Water Operations,Edf Energy,109736,378.44
"Department for Business, Energy and Industrial Strategy",The Coal Authority,06/08/2021,Subsidence Pumping Maintenance - Power,ENV - Mine Water Operations,Edf Energy,109736,21.23
"Department for Business, Energy and Industrial Strategy",The Coal Authority,06/08/2021,Subsidence Pumping Maintenance - Power,ENV - Mine Water Operations,Edf Energy,109736,354.45
"Department for Business, Energy and Industrial Strategy",The Coal Authority,06/08/2021,Subsidence Pumping Maintenance - Power,ENV - Mine Water Operations,Edf Energy,109736,52.80
"Department for Business, Energy and Industrial Strategy",The Coal Authority,06/08/2021,Subsidence Pumping Maintenance - Power,ENV - Mine Water Operations,Edf Energy,109736,53.00
"Department for Business, Energy and Industrial Strategy",The Coal Authority,06/08/2021,Subsidence Pumping Maintenance - Power,ENV - Mine Water Operations,Edf Energy,109736,48.74
"Department for Business, Energy and Industrial Strategy",The Coal Authority,06/08/2021,Subsidence Pumping Maintenance - Power,ENV - Mine Water Operations,Edf Energy,109736,168.45
"Department for Business, Energy and Industrial Strategy",The Coal Authority,06/08/2021,Subsidence Pumping Maintenance - Power,ENV - Mine Water Operations,Edf Energy,109736,670.12
"Department for Business, Energy and Industrial Strategy",The Coal Authority,06/08/2021,Subsidence Pumping Maintenance - Power,ENV - Mine Water Operations,Edf Energy,109736,403.04
"Department for Business, Energy and Industrial Strategy",The Coal Authority,06/08/2021,Subsidence Pumping Maintenance - Power,ENV - Mine Water Operations,Edf Energy,109736,364.95
"Department for Business, Energy and Industrial Strategy",The Coal Authority,06/08/2021,Subsidence Pumping Maintenance - Power,ENV - Mine Water Operations,Edf Energy,109736,29.76
"Department for Business, Energy and Industrial Strategy",The Coal Authority,06/08/2021,Subsidence Pumping Maintenance - Power,ENV - Mine Water Operations,Edf Energy,109736,276.05
"Department for Business, Energy and Industrial Strategy",The Coal Authority,06/08/2021,Subsidence Pumping Maintenance - Power,ENV - Mine Water Operations,Edf Energy,109736,324.08
"Department for Business, Energy and Industrial Strategy",The Coal Authority,06/08/2021,Subsidence Pumping Maintenance - Power,ENV - Mine Water Operations,Edf Energy,109736,152.11
"Department for Business, Energy and Industrial Strategy",The Coal Authority,06/08/2021,Subsidence Pumping Maintenance - Power,ENV - Mine Water Operations,Edf Energy,109736,110.59
"Department for Business, Energy and Industrial Strategy",The Coal Authority,06/08/2021,Subsidence Pumping Maintenance - Power,ENV - Mine Water Operations,Edf Energy,109736,543.39
"Department for Business, Energy and Industrial Strategy",The Coal Authority,06/08/2021,Subsidence Pumping Maintenance - Power,ENV - Mine Water Operations,Edf Energy,109736,766.61
"Department for Business, Energy and Industrial Strategy",The Coal Authority,06/08/2021,Subsidence Pumping Maintenance - Power,ENV - Mine Water Operations,Edf Energy,109736,116.43
"Department for Business, Energy and Industrial Strategy",The Coal Authority,06/08/2021,Subsidence Pumping Maintenance - Power,ENV - Mine Water Operations,Edf Energy,109736,219.96
"Department for Business, Energy and Industrial Strategy",The Coal Authority,07/07/2021,Temporary Contractors,ENV - Projects & Delivery,Severn Trent Water Ltd-Consultants,109737,"4,383.58"
"Department for Business, Energy and Industrial Strategy",The Coal Authority,30/07/2021,Temporary Contractors,ENV - Projects & Delivery,Severn Trent Water Ltd-Consultants,109738,"4,383.58"
"Department for Business, Energy and Industrial Strategy",The Coal Authority,31/03/2021,Subsidence Pumping - Management Fees,ENV - Mine Water Operations,Doncaster East I D B,109740,129.01
"Department for Business, Energy and Industrial Strategy",The Coal Authority,31/03/2021,Subsidence Pumping Maintenance - Ad Hoc,ENV - Mine Water Operations,Doncaster East I D B,109740,30.72
"Department for Business, Energy and Industrial Strategy",The Coal Authority,31/03/2021,Subsidence Pumping Maintenance - Planned,ENV - Mine Water Operations,Doncaster East I D B,109740,88.03
"Department for Business, Energy and Industrial Strategy",The Coal Authority,31/03/2021,Subsidence Pumping Maintenance - Power,ENV - Mine Water Operations,Doncaster East I D B,109740,"1,171.34"
"Department for Business, Energy and Industrial Strategy",The Coal Authority,11/08/2021,Other Hosting / IaaS,Mining Reports,Bytemark Limited,109758,158.00
"Department for Business, Energy and Industrial Strategy",The Coal Authority,30/07/2021,Research & Development (BEIS Funded),Heat & By-Product Innovation,Socotec,109821,385.92
"Department for Business, Energy and Industrial Strategy",The Coal Authority,14/07/2021,Minewater Contractor Maint. Visits - Ops Site,ENV - Mine Water Operations,Severn Trent Serv Ops Uk Ltd,109834,"8,077.76"
"Department for Business, Energy and Industrial Strategy",The Coal Authority,11/08/2021,Minewater Contractor Maint. Visits - Ops Site,ENV - Mine Water Operations,Severn Trent Serv Ops Uk Ltd,109838,"432,875.04"
"Department for Business, Energy and Industrial Strategy",The Coal Authority,17/03/2021,Minewater Pump Overhauls,DEFRA Metal Mine Programme,Severn Trent Serv Ops Uk Ltd,109839,316.12
"Department for Business, Energy and Industrial Strategy",The Coal Authority,11/08/2021,Subsidence - Contractor Costs,PS&S - Thoresby,Pierrepont Estate Management Ltd,109855,-187.50
"Department for Business, Energy and Industrial Strategy",The Coal Authority,11/08/2021,Temporary Contractors,Business Intelligence,Pitch Consultants (Temporary) Ltd,109856,837.05
"Department for Business, Energy and Industrial Strategy",The Coal Authority,30/07/2021,Legal - Property Title Search,Legal & Governance,Land Registry,109869,63.00
"Department for Business, Energy and Industrial Strategy",The Coal Authority,02/08/2021,Hardware Equipment & Support,DIG - Service & Assurance,Canon (Uk) Ltd,109878,117.00
"Department for Business, Energy and Industrial Strategy",The Coal Authority,02/08/2021,Hardware Equipment & Support,DIG - Service & Assurance,Canon (Uk) Ltd,109878,162.50
"Department for Business, Energy and Industrial Strategy",The Coal Authority,05/08/2021,Software Licenses - On Premise,Engineering,Causeway Technologies Ltd,109884,"3,498.00"
"Department for Business, Energy and Industrial Strategy",The Coal Authority,31/07/2021,Surface Hazards - Contractor Costs,PS&S - General Claims,Compensation Payment,109887,255.00
"Department for Business, Energy and Industrial Strategy",The Coal Authority,25/07/2021,Surface Hazards - Contractor Costs,PS&S - General Claims,Compensation Payment,109888,205.00
"Department for Business, Energy and Industrial Strategy",The Coal Authority,11/08/2021,CY - Minewater Scheme - Additions,ENV - Mine Water Operations,Severn Trent Serv Ops Uk Ltd,109896,79.03
"Department for Business, Energy and Industrial Strategy",The Coal Authority,11/08/2021,CY - Minewater Scheme - Additions,ENV - Mine Water Operations,Severn Trent Serv Ops Uk Ltd,109896,299.20
"Department for Business, Energy and Industrial Strategy",The Coal Authority,11/08/2021,CY - Minewater Scheme - Additions,ENV - Mine Water Operations,Severn Trent Serv Ops Uk Ltd,109896,748.98
"Department for Business, Energy and Industrial Strategy",The Coal Authority,11/08/2021,CY - Minewater Scheme - Additions,ENV - Mine Water Operations,Severn Trent Serv Ops Uk Ltd,109896,"2,124.73"
"Department for Business, Energy and Industrial Strategy",The Coal Authority,11/08/2021,CY - Minewater Scheme - Additions,ENV - Mine Water Operations,Severn Trent Serv Ops Uk Ltd,109896,34.36
"Department for Business, Energy and Industrial Strategy",The Coal Authority,11/08/2021,CY - Minewater Scheme - Additions,ENV - Mine Water Operations,Severn Trent Serv Ops Uk Ltd,109896,34.36
"Department for Business, Energy and Industrial Strategy",The Coal Authority,11/08/2021,CY - Minewater Scheme - Additions,ENV - Mine Water Operations,Severn Trent Serv Ops Uk Ltd,109896,239.36
"Department for Business, Energy and Industrial Strategy",The Coal Authority,11/08/2021,CY - Minewater Scheme - Additions,ENV - Mine Water Operations,Severn Trent Serv Ops Uk Ltd,109896,"35,951.52"
"Department for Business, Energy and Industrial Strategy",The Coal Authority,11/08/2021,CY - Minewater Scheme - Additions,ENV - Mine Water Operations,Severn Trent Serv Ops Uk Ltd,109896,"3,961.49"
"Department for Business, Energy and Industrial Strategy",The Coal Authority,11/08/2021,CY - Minewater Scheme - Additions,ENV - Mine Water Operations,Severn Trent Serv Ops Uk Ltd,109896,"8,326.63"
"Department for Business, Energy and Industrial Strategy",The Coal Authority,11/08/2021,CY - Minewater Scheme - Additions,ENV - Mine Water Operations,Severn Trent Serv Ops Uk Ltd,109896,5.68
"Department for Business, Energy and Industrial Strategy",The Coal Authority,11/08/2021,CY - Minewater Scheme - Additions,ENV - Mine Water Operations,Severn Trent Serv Ops Uk Ltd,109896,553.26
"Department for Business, Energy and Industrial Strategy",The Coal Authority,11/08/2021,CY - Minewater Scheme - Additions,ENV - Mine Water Operations,Severn Trent Serv Ops Uk Ltd,109896,18.94
"Department for Business, Energy and Industrial Strategy",The Coal Authority,11/08/2021,CY - Minewater Scheme - Additions,ENV - Mine Water Operations,Severn Trent Serv Ops Uk Ltd,109896,"1,018.97"
"Department for Business, Energy and Industrial Strategy",The Coal Authority,11/08/2021,CY - Minewater Scheme - Additions,ENV - Mine Water Operations,Severn Trent Serv Ops Uk Ltd,109896,"6,464.61"
"Department for Business, Energy and Industrial Strategy",The Coal Authority,11/08/2021,CY - Minewater Scheme - Additions,ENV - Mine Water Operations,Severn Trent Serv Ops Uk Ltd,109896,"7,808.66"
"Department for Business, Energy and Industrial Strategy",The Coal Authority,11/08/2021,CY - Minewater Scheme - Additions,ENV - Mine Water Operations,Severn Trent Serv Ops Uk Ltd,109896,"8,926.99"
"Department for Business, Energy and Industrial Strategy",The Coal Authority,11/08/2021,CY - Minewater Scheme - Additions,ENV - Mine Water Operations,Severn Trent Serv Ops Uk Ltd,109896,889.88
"Department for Business, Energy and Industrial Strategy",The Coal Authority,11/08/2021,CY - Minewater Scheme - Additions,ENV - Mine Water Operations,Severn Trent Serv Ops Uk Ltd,109896,"2,205.12"
"Department for Business, Energy and Industrial Strategy",The Coal Authority,11/08/2021,CY - Minewater Scheme - Additions,ENV - Mine Water Operations,Severn Trent Serv Ops Uk Ltd,109896,"6,879.90"
"Department for Business, Energy and Industrial Strategy",The Coal Authority,11/08/2021,CY - Minewater Scheme - Additions,ENV - Mine Water Operations,Severn Trent Serv Ops Uk Ltd,109896,"1,266.41"
"Department for Business, Energy and Industrial Strategy",The Coal Authority,11/08/2021,CY - Minewater Scheme - Additions,ENV - Mine Water Operations,Severn Trent Serv Ops Uk Ltd,109896,"2,130.63"
"Department for Business, Energy and Industrial Strategy",The Coal Authority,11/08/2021,CY - Minewater Scheme - Additions,ENV - Mine Water Operations,Severn Trent Serv Ops Uk Ltd,109896,"13,661.41"
"Department for Business, Energy and Industrial Strategy",The Coal Authority,11/08/2021,CY - Minewater Scheme - Additions,ENV - Mine Water Operations,Severn Trent Serv Ops Uk Ltd,109896,715.46
"Department for Business, Energy and Industrial Strategy",The Coal Authority,11/08/2021,CY - Minewater Scheme - Additions,ENV - Mine Water Operations,Severn Trent Serv Ops Uk Ltd,109896,574.25
"Department for Business, Energy and Industrial Strategy",The Coal Authority,11/08/2021,CY - Minewater Scheme - Additions,ENV - Mine Water Operations,Severn Trent Serv Ops Uk Ltd,109896,654.65
"Department for Business, Energy and Industrial Strategy",The Coal Authority,11/08/2021,CY - Minewater Scheme - Additions,ENV - Mine Water Operations,Severn Trent Serv Ops Uk Ltd,109896,"2,306.19"
"Department for Business, Energy and Industrial Strategy",The Coal Authority,11/08/2021,CY - Minewater Scheme - Additions,ENV - Mine Water Operations,Severn Trent Serv Ops Uk Ltd,109896,"7,990.86"
"Department for Business, Energy and Industrial Strategy",The Coal Authority,11/08/2021,CY - Minewater Scheme - Additions,ENV - Mine Water Operations,Severn Trent Serv Ops Uk Ltd,109896,"30,139.51"
"Department for Business, Energy and Industrial Strategy",The Coal Authority,11/08/2021,CY - Minewater Scheme - Additions,ENV - Projects & Delivery,Severn Trent Serv Ops Uk Ltd,109896,369.49
"Department for Business, Energy and Industrial Strategy",The Coal Authority,11/08/2021,CY - Minewater Scheme - Additions,ENV - Projects & Delivery,Severn Trent Serv Ops Uk Ltd,109896,25.30
"Department for Business, Energy and Industrial Strategy",The Coal Authority,11/08/2021,CY - Minewater Scheme - Additions,ENV - Projects & Delivery,Severn Trent Serv Ops Uk Ltd,109896,211.52
"Department for Business, Energy and Industrial Strategy",The Coal Authority,11/08/2021,CY - Minewater Scheme - Additions,ENV - Projects & Delivery,Severn Trent Serv Ops Uk Ltd,109896,"3,988.34"
"Department for Business, Energy and Industrial Strategy",The Coal Authority,11/08/2021,CY - Plant & Machinery - Additions,ENV - Mine Water Operations,Severn Trent Serv Ops Uk Ltd,109896,"4,095.36"
"Department for Business, Energy and Industrial Strategy",The Coal Authority,11/08/2021,Innovation Costs,Environment - Innovation Concept & Feasibility,Severn Trent Serv Ops Uk Ltd,109896,"2,875.67"
"Department for Business, Energy and Industrial Strategy",The Coal Authority,11/08/2021,Innovation Costs,Heat & By-Product Innovation,Severn Trent Serv Ops Uk Ltd,109896,104.66
"Department for Business, Energy and Industrial Strategy",The Coal Authority,11/08/2021,Innovation Costs,Heat & By-Product Innovation,Severn Trent Serv Ops Uk Ltd,109896,353.61
"Department for Business, Energy and Industrial Strategy",The Coal Authority,11/08/2021,Minewater Contractor Add. Task Order - Ops Site,ENV - Mine Water Operations,Severn Trent Serv Ops Uk Ltd,109896,237.09
"Department for Business, Energy and Industrial Strategy",The Coal Authority,11/08/2021,Minewater Contractor Add. Task Order - Ops Site,ENV - Mine Water Operations,Severn Trent Serv Ops Uk Ltd,109896,"2,287.30"
"Department for Business, Energy and Industrial Strategy",The Coal Authority,11/08/2021,Minewater Contractor Add. Task Order - Ops Site,ENV - Mine Water Operations,Severn Trent Serv Ops Uk Ltd,109896,"3,600.83"
"Department for Business, Energy and Industrial Strategy",The Coal Authority,11/08/2021,Minewater Contractor Maint. Visits - Ops Site,ENV - Mine Water Operations,Severn Trent Serv Ops Uk Ltd,109896,"2,708.00"
"Department for Business, Energy and Industrial Strategy",The Coal Authority,11/08/2021,Minewater Contractor Maint. Visits - Ops Site,ENV - Mine Water Operations,Severn Trent Serv Ops Uk Ltd,109896,"33,909.58"
"Department for Business, Energy and Industrial Strategy",The Coal Authority,11/08/2021,Minewater Liability & Monitoring Sites - Ad-hoc,ENV - Mine Water Operations,Severn Trent Serv Ops Uk Ltd,109896,"3,973.81"
"Department for Business, Energy and Industrial Strategy",The Coal Authority,11/08/2021,Minewater Liability & Monitoring Sites - Ad-hoc,ENV - Mine Water Operations,Severn Trent Serv Ops Uk Ltd,109896,19.99
"Department for Business, Energy and Industrial Strategy",The Coal Authority,11/08/2021,Minewater Liability & Monitoring Sites - Ad-hoc,ENV - Mine Water Operations,Severn Trent Serv Ops Uk Ltd,109896,"2,044.33"
"Department for Business, Energy and Industrial Strategy",The Coal Authority,11/08/2021,Minewater Management Fees,ENV - Mine Water Operations,Severn Trent Serv Ops Uk Ltd,109896,24.80
"Department for Business, Energy and Industrial Strategy",The Coal Authority,11/08/2021,Minewater Pump Overhauls,ENV - Mine Water Operations,Severn Trent Serv Ops Uk Ltd,109896,79.03
"Department for Business, Energy and Industrial Strategy",The Coal Authority,11/08/2021,Minewater Pump Overhauls,ENV - Mine Water Operations,Severn Trent Serv Ops Uk Ltd,109896,79.03
"Department for Business, Energy and Industrial Strategy",The Coal Authority,11/08/2021,Minewater Pump Overhauls,ENV - Mine Water Operations,Severn Trent Serv Ops Uk Ltd,109896,79.03
"Department for Business, Energy and Industrial Strategy",The Coal Authority,11/08/2021,Minewater Pumping Tests,ENV - Mine Water Operations,Severn Trent Serv Ops Uk Ltd,109896,169.74
"Department for Business, Energy and Industrial Strategy",The Coal Authority,11/08/2021,Minewater Pumping Tests,ENV - Mine Water Operations,Severn Trent Serv Ops Uk Ltd,109896,"13,028.70"
"Department for Business, Energy and Industrial Strategy",The Coal Authority,11/08/2021,Minewater Pumping Tests,ENV - Mine Water Operations,Severn Trent Serv Ops Uk Ltd,109896,"33,730.44"
"Department for Business, Energy and Industrial Strategy",The Coal Authority,11/08/2021,Minewater Pumping Tests,ENV - Projects & Delivery,Severn Trent Serv Ops Uk Ltd,109896,293.83
"Department for Business, Energy and Industrial Strategy",The Coal Authority,11/08/2021,Minewater Pumping Tests,ENV - Projects & Delivery,Severn Trent Serv Ops Uk Ltd,109896,87.73
"Department for Business, Energy and Industrial Strategy",The Coal Authority,11/08/2021,Minewater Pumping Tests,ENV - Technical,Severn Trent Serv Ops Uk Ltd,109896,"8,312.98"
"Department for Business, Energy and Industrial Strategy",The Coal Authority,11/08/2021,Minewater Remediation,ENV - Mine Water Operations,Severn Trent Serv Ops Uk Ltd,109896,"1,673.36"
"Department for Business, Energy and Industrial Strategy",The Coal Authority,11/08/2021,Minewater Remediation,ENV - Mine Water Operations,Severn Trent Serv Ops Uk Ltd,109896,75.80
"Department for Business, Energy and Industrial Strategy",The Coal Authority,11/08/2021,Minewater Sampling - 'Non-operational' Sites,ENV - Projects & Delivery,Severn Trent Serv Ops Uk Ltd,109896,865.33
"Department for Business, Energy and Industrial Strategy",The Coal Authority,11/08/2021,Minewater Sampling - Operational Sites,ENV - Projects & Delivery,Severn Trent Serv Ops Uk Ltd,109896,432.76
"Department for Business, Energy and Industrial Strategy",The Coal Authority,11/08/2021,Minewater Sludge Disposal,ENV - Mine Water Operations,Severn Trent Serv Ops Uk Ltd,109896,972.94
"Department for Business, Energy and Industrial Strategy",The Coal Authority,11/08/2021,Minewater Sludge Disposal,ENV - Mine Water Operations,Severn Trent Serv Ops Uk Ltd,109896,11.49
"Department for Business, Energy and Industrial Strategy",The Coal Authority,11/08/2021,Minewater Sludge Disposal,ENV - Mine Water Operations,Severn Trent Serv Ops Uk Ltd,109896,"33,851.65"
"Department for Business, Energy and Industrial Strategy",The Coal Authority,11/08/2021,Minewater Sludge Disposal,ENV - Mine Water Operations,Severn Trent Serv Ops Uk Ltd,109896,953.95
"Department for Business, Energy and Industrial Strategy",The Coal Authority,11/08/2021,Minewater Sludge Disposal,ENV - Mine Water Operations,Severn Trent Serv Ops Uk Ltd,109896,299.20
"Department for Business, Energy and Industrial Strategy",The Coal Authority,11/08/2021,Minewater Sludge Disposal,ENV - Mine Water Operations,Severn Trent Serv Ops Uk Ltd,109896,"37,092.46"
"Department for Business, Energy and Industrial Strategy",The Coal Authority,11/08/2021,Minewater Sludge Disposal,ENV - Mine Water Operations,Severn Trent Serv Ops Uk Ltd,109896,179.52
"Department for Business, Energy and Industrial Strategy",The Coal Authority,11/08/2021,Minewater Sludge Disposal,ENV - Mine Water Operations,Severn Trent Serv Ops Uk Ltd,109896,"1,767.32"
"Department for Business, Energy and Industrial Strategy",The Coal Authority,11/08/2021,Minewater Sludge Disposal,ENV - Mine Water Operations,Severn Trent Serv Ops Uk Ltd,109896,476.98
"Department for Business, Energy and Industrial Strategy",The Coal Authority,11/08/2021,Subsidence Pumping Maintenance - Planned,ENV - Projects & Delivery,Severn Trent Serv Ops Uk Ltd,109896,340.26
"Department for Business, Energy and Industrial Strategy",The Coal Authority,30/07/2021,Minewater Sampling - 'Non-operational' Sites,ENV - Technical,Socotec,109897,228.99
"Department for Business, Energy and Industrial Strategy",The Coal Authority,30/07/2021,Minewater Sampling - 'Non-operational' Sites,ENV - Technical,Socotec,109897,0.01
"Department for Business, Energy and Industrial Strategy",The Coal Authority,16/07/2021,Gas / Other Fuels,Facilities,Calor Gas Limited,109913,34.25
"Department for Business, Energy and Industrial Strategy",The Coal Authority,31/07/2021,Outsourced Security Staff,Facilities,Regent Office Care Ltd T/A Regent Samsic,109914,"9,668.19"
"Department for Business, Energy and Industrial Strategy",The Coal Authority,31/07/2021,Outsourced Security Staff,Facilities,Regent Office Care Ltd T/A Regent Samsic,109915,13.24
"Department for Business, Energy and Industrial Strategy",The Coal Authority,16/07/2021,Subsidence - Contractor Costs,PS&S - Kellingley,Valuation Office Agency,109918,360.00
"Department for Business, Energy and Industrial Strategy",The Coal Authority,31/07/2021,Surface Hazards - Contractor Costs,PS&S - General Claims,Thomas Menzies Builders Ltd,109937,5.80
"Department for Business, Energy and Industrial Strategy",The Coal Authority,31/07/2021,Surface Hazards - Contractor Costs,PS&S - General Claims,Thomas Menzies Builders Ltd,109937,200.00
"Department for Business, Energy and Industrial Strategy",The Coal Authority,31/07/2021,Surface Hazards - Contractor Costs,PS&S - General Claims,Thomas Menzies Builders Ltd,109937,168.00
"Department for Business, Energy and Industrial Strategy",The Coal Authority,31/07/2021,Surface Hazards - Contractor Costs,PS&S - General Claims,Thomas Menzies Builders Ltd,109937,46.38
"Department for Business, Energy and Industrial Strategy",The Coal Authority,12/08/2021,Minewater Chemicals - Operational Sites,DEFRA Metal Mine Programme,John F Hunt Regeneration Ltd,109938,"11,406.20"
"Department for Business, Energy and Industrial Strategy",The Coal Authority,12/08/2021,Minewater Contractor Add. Task Order - Ops Site,DEFRA Metal Mine Programme,John F Hunt Regeneration Ltd,109938,"1,747.27"
"Department for Business, Energy and Industrial Strategy",The Coal Authority,12/08/2021,Minewater Contractor Maint. Visits - Ops Site,DEFRA Metal Mine Programme,John F Hunt Regeneration Ltd,109938,"1,289.89"
"Department for Business, Energy and Industrial Strategy",The Coal Authority,12/08/2021,Minewater Management Fees,DEFRA Metal Mine Programme,John F Hunt Regeneration Ltd,109938,"36,373.98"
"Department for Business, Energy and Industrial Strategy",The Coal Authority,12/08/2021,Minewater Sampling - Operational Sites,DEFRA Metal Mine Programme,John F Hunt Regeneration Ltd,109938,"9,722.17"
"Department for Business, Energy and Industrial Strategy",The Coal Authority,31/07/2021,Surface Hazards - Contractor Costs,PS&S - General Claims,Thomas Menzies Builders Ltd,109939,540.00
"Department for Business, Energy and Industrial Strategy",The Coal Authority,31/07/2021,Surface Hazards - Contractor Costs,PS&S - General Claims,Thomas Menzies Builders Ltd,109940,540.00
"Department for Business, Energy and Industrial Strategy",The Coal Authority,31/07/2021,Surface Hazards - Contractor Costs,PS&S - General Claims,Thomas Menzies Builders Ltd,109940,324.00
"Department for Business, Energy and Industrial Strategy",The Coal Authority,31/07/2021,Surface Hazards - Contractor Costs,PS&S - General Claims,Thomas Menzies Builders Ltd,109941,30.00
"Department for Business, Energy and Industrial Strategy",The Coal Authority,31/07/2021,Surface Hazards - Contractor Costs,PS&S - General Claims,Thomas Menzies Builders Ltd,109941,280.40
"Department for Business, Energy and Industrial Strategy",The Coal Authority,31/07/2021,Surface Hazards - Contractor Costs,PS&S - General Claims,Thomas Menzies Builders Ltd,109941,111.00
"Department for Business, Energy and Industrial Strategy",The Coal Authority,31/07/2021,Surface Hazards - Contractor Costs,PS&S - General Claims,Thomas Menzies Builders Ltd,109941,35.00
"Department for Business, Energy and Industrial Strategy",The Coal Authority,31/07/2021,Surface Hazards - Contractor Costs,PS&S - General Claims,Thomas Menzies Builders Ltd,109941,"1,950.00"
"Department for Business, Energy and Industrial Strategy",The Coal Authority,31/07/2021,Surface Hazards - Contractor Costs,PS&S - General Claims,Thomas Menzies Builders Ltd,109941,22.40
"Department for Business, Energy and Industrial Strategy",The Coal Authority,31/07/2021,Surface Hazards - Contractor Costs,PS&S - General Claims,Thomas Menzies Builders Ltd,109941,407.88
"Department for Business, Energy and Industrial Strategy",The Coal Authority,31/07/2021,Surface Hazards - Contractor Costs,PS&S - General Claims,Thomas Menzies Builders Ltd,109941,32.84
"Department for Business, Energy and Industrial Strategy",The Coal Authority,31/07/2021,Surface Hazards - Contractor Costs,PS&S - General Claims,Thomas Menzies Builders Ltd,109941,369.12
"Department for Business, Energy and Industrial Strategy",The Coal Authority,31/07/2021,Surface Hazards - Contractor Costs,PS&S - General Claims,Thomas Menzies Builders Ltd,109941,262.00
"Department for Business, Energy and Industrial Strategy",The Coal Authority,31/07/2021,Surface Hazards - Contractor Costs,PS&S - General Claims,Thomas Menzies Builders Ltd,109941,19.20
"Department for Business, Energy and Industrial Strategy",The Coal Authority,31/07/2021,Surface Hazards - Contractor Costs,PS&S - General Claims,Thomas Menzies Builders Ltd,109941,357.00
"Department for Business, Energy and Industrial Strategy",The Coal Authority,31/07/2021,Surface Hazards - Contractor Costs,PS&S - General Claims,Thomas Menzies Builders Ltd,109941,92.22
"Department for Business, Energy and Industrial Strategy",The Coal Authority,31/07/2021,Surface Hazards - Contractor Costs,PS&S - General Claims,Thomas Menzies Builders Ltd,109941,100.00
"Department for Business, Energy and Industrial Strategy",The Coal Authority,31/07/2021,Surface Hazards - Contractor Costs,PS&S - General Claims,Thomas Menzies Builders Ltd,109941,370.40
"Department for Business, Energy and Industrial Strategy",The Coal Authority,31/07/2021,Surface Hazards - Contractor Costs,PS&S - General Claims,Thomas Menzies Builders Ltd,109941,400.00
"Department for Business, Energy and Industrial Strategy",The Coal Authority,31/07/2021,Surface Hazards - Contractor Costs,PS&S - General Claims,Thomas Menzies Builders Ltd,109941,78.72
"Department for Business, Energy and Industrial Strategy",The Coal Authority,31/07/2021,Surface Hazards - Contractor Costs,PS&S - General Claims,Thomas Menzies Builders Ltd,109941,336.00
"Department for Business, Energy and Industrial Strategy",The Coal Authority,31/07/2021,Surface Hazards - Contractor Costs,PS&S - General Claims,Thomas Menzies Builders Ltd,109941,45.44
"Department for Business, Energy and Industrial Strategy",The Coal Authority,31/07/2021,Subsidence - Contractor Costs,PS&S - Kellingley,Ray Holt Land Drainage Ltd,109946,"6,196.25"
"Department for Business, Energy and Industrial Strategy",The Coal Authority,12/08/2021,Surface Hazards - Contractor Costs,PS&S - General Claims,Llettyshenkin Cons Co Ltd,109947,"1,644.00"
"Department for Business, Energy and Industrial Strategy",The Coal Authority,12/08/2021,Surface Hazards - Contractor Costs,PS&S - General Claims,Llettyshenkin Cons Co Ltd,109947,226.32
"Department for Business, Energy and Industrial Strategy",The Coal Authority,12/08/2021,Surface Hazards - Contractor Costs,PS&S - General Claims,Llettyshenkin Cons Co Ltd,109947,230.00
"Department for Business, Energy and Industrial Strategy",The Coal Authority,12/08/2021,Surface Hazards - Contractor Costs,PS&S - General Claims,Llettyshenkin Cons Co Ltd,109947,"2,702.63"
"Department for Business, Energy and Industrial Strategy",The Coal Authority,12/08/2021,Surface Hazards - Contractor Costs,PS&S - General Claims,Llettyshenkin Cons Co Ltd,109947,"3,276.00"
"Department for Business, Energy and Industrial Strategy",The Coal Authority,12/08/2021,Surface Hazards - Contractor Costs,PS&S - General Claims,Llettyshenkin Cons Co Ltd,109947,"1,800.00"
"Department for Business, Energy and Industrial Strategy",The Coal Authority,12/08/2021,Surface Hazards - Contractor Costs,PS&S - General Claims,Llettyshenkin Cons Co Ltd,109947,520.00
"Department for Business, Energy and Industrial Strategy",The Coal Authority,12/08/2021,Surface Hazards - Contractor Costs,PS&S - General Claims,Llettyshenkin Cons Co Ltd,109947,"2,340.00"
"Department for Business, Energy and Industrial Strategy",The Coal Authority,12/08/2021,Surface Hazards - Contractor Costs,PS&S - General Claims,Llettyshenkin Cons Co Ltd,109947,90.87
"Department for Business, Energy and Industrial Strategy",The Coal Authority,12/08/2021,Surface Hazards - Contractor Costs,PS&S - General Claims,Llettyshenkin Cons Co Ltd,109947,"2,640.00"
"Department for Business, Energy and Industrial Strategy",The Coal Authority,12/08/2021,Surface Hazards - Contractor Costs,PS&S - General Claims,Llettyshenkin Cons Co Ltd,109947,627.27
"Department for Business, Energy and Industrial Strategy",The Coal Authority,12/08/2021,Surface Hazards - Contractor Costs,PS&S - General Claims,Llettyshenkin Cons Co Ltd,109947,43.92
"Department for Business, Energy and Industrial Strategy",The Coal Authority,12/08/2021,Surface Hazards - Contractor Costs,PS&S - General Claims,Llettyshenkin Cons Co Ltd,109947,950.00
"Department for Business, Energy and Industrial Strategy",The Coal Authority,12/08/2021,Surface Hazards - Contractor Costs,PS&S - General Claims,Llettyshenkin Cons Co Ltd,109947,"1,400.00"
"Department for Business, Energy and Industrial Strategy",The Coal Authority,12/08/2021,Surface Hazards - Contractor Costs,PS&S - General Claims,Llettyshenkin Cons Co Ltd,109947,15.13
"Department for Business, Energy and Industrial Strategy",The Coal Authority,12/08/2021,Surface Hazards - Contractor Costs,PS&S - General Claims,Llettyshenkin Cons Co Ltd,109947,116.12
"Department for Business, Energy and Industrial Strategy",The Coal Authority,12/08/2021,Surface Hazards - Contractor Costs,PS&S - General Claims,Llettyshenkin Cons Co Ltd,109947,108.72
"Department for Business, Energy and Industrial Strategy",The Coal Authority,12/08/2021,Surface Hazards - Contractor Costs,PS&S - General Claims,Llettyshenkin Cons Co Ltd,109947,14.22
"Department for Business, Energy and Industrial Strategy",The Coal Authority,12/08/2021,Surface Hazards - Contractor Costs,PS&S - General Claims,Llettyshenkin Cons Co Ltd,109947,247.64
"Department for Business, Energy and Industrial Strategy",The Coal Authority,12/08/2021,Surface Hazards - Contractor Costs,PS&S - General Claims,Llettyshenkin Cons Co Ltd,109947,"4,935.80"
"Department for Business, Energy and Industrial Strategy",The Coal Authority,12/08/2021,Surface Hazards - Contractor Costs,PS&S - General Claims,Llettyshenkin Cons Co Ltd,109947,186.81
"Department for Business, Energy and Industrial Strategy",The Coal Authority,12/08/2021,Surface Hazards - Contractor Costs,PS&S - General Claims,Llettyshenkin Cons Co Ltd,109947,29.00
"Department for Business, Energy and Industrial Strategy",The Coal Authority,12/08/2021,Surface Hazards - Contractor Costs,PS&S - General Claims,Llettyshenkin Cons Co Ltd,109947,459.73
"Department for Business, Energy and Industrial Strategy",The Coal Authority,12/08/2021,Surface Hazards - Contractor Costs,PS&S - General Claims,Llettyshenkin Cons Co Ltd,109947,216.55
"Department for Business, Energy and Industrial Strategy",The Coal Authority,12/08/2021,Surface Hazards - Contractor Costs,PS&S - General Claims,Cornerstone  Projects Ltd,109948,98.00
"Department for Business, Energy and Industrial Strategy",The Coal Authority,12/08/2021,Surface Hazards - Contractor Costs,PS&S - General Claims,Cornerstone  Projects Ltd,109949,115.24
"Department for Business, Energy and Industrial Strategy",The Coal Authority,10/08/2021,Minewater Feasibility / Scoping,DEFRA Metal Mine Programme,Socotec,109952,809.30
"Department for Business, Energy and Industrial Strategy",The Coal Authority,21/04/2021,Minewater Feasibility / Scoping,DEFRA Metal Mine Programme,Socotec,109953,414.65
"Department for Business, Energy and Industrial Strategy",The Coal Authority,06/04/2021,Recruitment Advertising,People & Organisational Development,Redactive Publishing Limited,109957,"1,250.00"
"Department for Business, Energy and Industrial Strategy",The Coal Authority,07/07/2021,Site Services,Facilities,Restore Datashred,109958,79.99
"Department for Business, Energy and Industrial Strategy",The Coal Authority,07/07/2021,Site Services,Facilities,Restore Datashred,109958,0.01
"Department for Business, Energy and Industrial Strategy",The Coal Authority,24/07/2021,Subsidence - Contractor Costs,PS&S - General Claims,CJW Surveyors Limited,109959,"4,000.00"
"Department for Business, Energy and Industrial Strategy",The Coal Authority,29/07/2021,Training & Education,Executive,Oe Cam Llp,109970,"3,866.00"
"Department for Business, Energy and Industrial Strategy",The Coal Authority,07/08/2021,Minewater Telecoms & Telemetry,ENV - Mine Water Operations,KORE Wireless UK PLC,109971,15.00
"Department for Business, Energy and Industrial Strategy",The Coal Authority,05/08/2021,Minewater Telecoms & Telemetry,ENV - Mine Water Operations,KORE Wireless UK PLC,109972,35.00
"Department for Business, Energy and Industrial Strategy",The Coal Authority,02/08/2021,Research & Development (Non BEIS Funded),DEFRA Metal Mine Programme,Alliance Contracting Solutions Ltd,109978,"1,549.80"
"Department for Business, Energy and Industrial Strategy",The Coal Authority,30/07/2021,Subsidence - Contractor Costs,PS&S - General Claims,Mar Scaffolding Scotland Ltd,109979,763.80
"Department for Business, Energy and Industrial Strategy",The Coal Authority,29/06/2021,Subsidence - Contractor Costs,PS&S - General Claims,Mar Scaffolding Scotland Ltd,109980,738.00
"Department for Business, Energy and Industrial Strategy",The Coal Authority,13/08/2021,Minewater Monitoring & Flow Measurement,ENV - Technical,Somer GBH,109983,-18.13
"Department for Business, Energy and Industrial Strategy",The Coal Authority,12/08/2021,Water Charges,Facilities,Water Plus Limited,109989,617.27
"Department for Business, Energy and Industrial Strategy",The Coal Authority,09/07/2021,Consultancy - Property Management,DEV - Property Management,Cooke & Arkwright,109991,691.19
"Department for Business, Energy and Industrial Strategy",The Coal Authority,10/08/2021,Central Training,Procurement,Staff Expenses Control,109992,190.00
"Department for Business, Energy and Industrial Strategy",The Coal Authority,09/06/2021,Fares - Rail,DEV - Property Management,Staff Expenses Control,109992,21.20
"Department for Business, Energy and Industrial Strategy",The Coal Authority,09/08/2021,Incidentals,Innovation By-Product & Services Delivery,Staff Expenses Control,109992,1.90
"Department for Business, Energy and Industrial Strategy",The Coal Authority,21/07/2021,Mileage Payments,ENV - Projects & Delivery,Staff Expenses Control,109992,54.11
"Department for Business, Energy and Industrial Strategy",The Coal Authority,21/07/2021,Mileage Payments,ENV - Projects & Delivery,Staff Expenses Control,109992,53.90
"Department for Business, Energy and Industrial Strategy",The Coal Authority,23/07/2021,Mileage Payments,ENV - Projects & Delivery,Staff Expenses Control,109992,95.14
"Department for Business, Energy and Industrial Strategy",The Coal Authority,23/07/2021,Mileage Payments,ENV - Projects & Delivery,Staff Expenses Control,109992,94.72
"Department for Business, Energy and Industrial Strategy",The Coal Authority,23/07/2021,Mileage Payments,ENV - Technical,Staff Expenses Control,109992,30.60
"Department for Business, Energy and Industrial Strategy",The Coal Authority,02/08/2021,Mileage Payments,PS&S - Industry Claims,Staff Expenses Control,109992,14.40
"Department for Business, Energy and Industrial Strategy",The Coal Authority,03/08/2021,Mileage Payments,DIG - Technical Delivery,Staff Expenses Control,109992,4.22
"Department for Business, Energy and Industrial Strategy",The Coal Authority,03/08/2021,Mileage Payments,DIG - Technical Delivery,Staff Expenses Control,109992,4.45
"Department for Business, Energy and Industrial Strategy",The Coal Authority,03/08/2021,Mileage Payments,PS&S - Industry Claims,Staff Expenses Control,109992,14.40
"Department for Business, Energy and Industrial Strategy",The Coal Authority,04/08/2021,Mileage Payments,ENV - Projects & Delivery,Staff Expenses Control,109992,66.71
"Department for Business, Energy and Industrial Strategy",The Coal Authority,04/08/2021,Mileage Payments,ENV - Projects & Delivery,Staff Expenses Control,109992,18.66
"Department for Business, Energy and Industrial Strategy",The Coal Authority,04/08/2021,Mileage Payments,ENV - Projects & Delivery,Staff Expenses Control,109992,54.12
"Department for Business, Energy and Industrial Strategy",The Coal Authority,04/08/2021,Mileage Payments,PS&S - Industry Claims,Staff Expenses Control,109992,14.40
"Department for Business, Energy and Industrial Strategy",The Coal Authority,05/08/2021,Mileage Payments,DEFRA Metal Mine Programme,Staff Expenses Control,109992,21.60
"Department for Business, Energy and Industrial Strategy",The Coal Authority,05/08/2021,Mileage Payments,PS&S - Industry Claims,Staff Expenses Control,109992,14.40
"Department for Business, Energy and Industrial Strategy",The Coal Authority,06/08/2021,Mileage Payments,ENV - Technical,Staff Expenses Control,109992,47.61
"Department for Business, Energy and Industrial Strategy",The Coal Authority,06/08/2021,Mileage Payments,ENV - Technical,Staff Expenses Control,109992,47.61
"Department for Business, Energy and Industrial Strategy",The Coal Authority,09/08/2021,Mileage Payments,Innovation By-Product & Services Delivery,Staff Expenses Control,109992,85.95
"Department for Business, Energy and Industrial Strategy",The Coal Authority,09/08/2021,Mileage Payments,Innovation By-Product & Services Delivery,Staff Expenses Control,109992,89.10
"Department for Business, Energy and Industrial Strategy",The Coal Authority,10/08/2021,Mileage Payments,DEV - Planning & Local Authority Liaison,Staff Expenses Control,109992,7.20
"Department for Business, Energy and Industrial Strategy",The Coal Authority,10/08/2021,Mileage Payments,Heat & By-Product Innovation,Staff Expenses Control,109992,63.95
"Department for Business, Energy and Industrial Strategy",The Coal Authority,10/08/2021,Mileage Payments,Heat & By-Product Innovation,Staff Expenses Control,109992,64.09
"Department for Business, Energy and Industrial Strategy",The Coal Authority,02/08/2021,Peripherals / Consumables (MEP),DIG - Service & Assurance,Staff Expenses Control,109992,12.00
"Department for Business, Energy and Industrial Strategy",The Coal Authority,08/08/2021,Peripherals / Consumables (MEP),DIG - Service & Assurance,Staff Expenses Control,109992,12.48
"Department for Business, Energy and Industrial Strategy",The Coal Authority,08/08/2021,Peripherals / Consumables (MEP),DIG - Service & Assurance,Staff Expenses Control,109992,6.24
"Department for Business, Energy and Industrial Strategy",The Coal Authority,24/07/2021,Postage & Couriers,DIG - Service & Assurance,Staff Expenses Control,109992,12.60
"Department for Business, Energy and Industrial Strategy",The Coal Authority,07/08/2021,Postage & Couriers,DIG - Service & Assurance,Staff Expenses Control,109992,4.20
"Department for Business, Energy and Industrial Strategy",The Coal Authority,11/08/2021,Postage & Couriers,DIG - Service & Assurance,Staff Expenses Control,109992,13.25
"Department for Business, Energy and Industrial Strategy",The Coal Authority,23/07/2021,Subsistence Allowances,ENV - Technical,Staff Expenses Control,109992,3.85
"Department for Business, Energy and Industrial Strategy",The Coal Authority,04/08/2021,Subsistence Allowances,ENV - Projects & Delivery,Staff Expenses Control,109992,4.69
"Department for Business, Energy and Industrial Strategy",The Coal Authority,10/08/2021,Subsistence Allowances,Heat & By-Product Innovation,Staff Expenses Control,109992,9.25
"Department for Business, Energy and Industrial Strategy",The Coal Authority,11/08/2021,Subsidence - Contractor Costs,PS&S - General Claims,Remax First,110002,"2,700.00"
"Department for Business, Energy and Industrial Strategy",The Coal Authority,11/08/2021,Subsidence - Contractor Costs,PS&S - General Claims,Compensation Payment,110003,"1,229.88"
"Department for Business, Energy and Industrial Strategy",The Coal Authority,12/08/2021,Surface Hazards - Contractor Costs,PS&S - General Claims,Compensation Payment,110004,122.22
"Department for Business, Energy and Industrial Strategy",The Coal Authority,10/08/2021,Subsidence - Contractor Costs,PS&S - General Claims,Compensation Payment,110005,416.94
"Department for Business, Energy and Industrial Strategy",The Coal Authority,10/08/2021,Subsidence - Contractor Costs,PS&S - General Claims,Compensation Payment,110005,"1,050.00"
"Department for Business, Energy and Industrial Strategy",The Coal Authority,10/08/2021,Surface Hazards - Contractor Costs,PS&S - General Claims,Compensation Payment,110006,"1,200.00"
"Department for Business, Energy and Industrial Strategy",The Coal Authority,10/08/2021,Surface Hazards - Contractor Costs,PS&S - General Claims,Compensation Payment,110006,800.00
"Department for Business, Energy and Industrial Strategy",The Coal Authority,12/08/2021,Subsidence - Contractor Costs,PS&S - General Claims,Compensation Payment,110007,"1,950.00"
"Department for Business, Energy and Industrial Strategy",The Coal Authority,12/08/2021,Surface Hazards - Contractor Costs,PS&S - General Claims,Compensation Payment,110008,"1,400.00"
"Department for Business, Energy and Industrial Strategy",The Coal Authority,12/08/2021,Surface Hazards - Contractor Costs,PS&S - General Claims,Compensation Payment,110009,"3,000.00"
"Department for Business, Energy and Industrial Strategy",The Coal Authority,11/08/2021,Minewater Rent,ENV - Mine Water Operations,EPC UK LTD,110010,"1,446.00"
"Department for Business, Energy and Industrial Strategy",The Coal Authority,30/05/2021,Subsidence - Contractor Costs,PS&S - Thoresby,Pierrepont Estate Management Ltd,110013,"5,251.13"
"Department for Business, Energy and Industrial Strategy",The Coal Authority,06/08/2021,Postage & Couriers,Customer Services & Strategy,FedEx Express UK Transportaion Limited,110014,44.95
"Department for Business, Energy and Industrial Strategy",The Coal Authority,13/08/2021,Subsidence - Contractor Costs,PS&S - General Claims,Allerdale Borough Council,110020,-995.71
"Department for Business, Energy and Industrial Strategy",The Coal Authority,13/08/2021,Subsidence - Contractor Costs,PS&S - General Claims,Allerdale Borough Council,110021,-76.20
"Department for Business, Energy and Industrial Strategy",The Coal Authority,13/08/2021,Subsidence - Contractor Costs,PS&S - General Claims,Allerdale Borough Council,110022,-10.34
"Department for Business, Energy and Industrial Strategy",The Coal Authority,13/08/2021,Subsidence - Contractor Costs,PS&S - General Claims,Allerdale Borough Council,110022,-985.37
"Department for Business, Energy and Industrial Strategy",The Coal Authority,31/05/2021,Incidentals,Mining Reports,Security Plus Limited,110029,26.72
"Department for Business, Energy and Industrial Strategy",The Coal Authority,01/06/2021,Incidentals,Mining Reports,Security Plus Limited,110030,30.06
"Department for Business, Energy and Industrial Strategy",The Coal Authority,01/07/2021,eCommerce Commission Charges,Mining Reports,Worldpay Limited,110031,394.20
"Department for Business, Energy and Industrial Strategy",The Coal Authority,01/08/2021,eCommerce Commission Charges,Mining Reports,Worldpay Limited,110032,366.37
"Department for Business, Energy and Industrial Strategy",The Coal Authority,02/08/2021,Postage & Couriers,Customer Services & Strategy,Postage By Phone -Pitney Bowes,110033,"1,604.23"
"Department for Business, Energy and Industrial Strategy",The Coal Authority,30/07/2021,CY - Minewater Scheme - Additions,ENV - Projects & Delivery,Turner and Townsend Project Management Ltd.,110036,"4,964.44"
"Department for Business, Energy and Industrial Strategy",The Coal Authority,30/07/2021,CY - Minewater Scheme - Additions,ENV - Projects & Delivery,Turner and Townsend Project Management Ltd.,110036,640.60
"Department for Business, Energy and Industrial Strategy",The Coal Authority,30/07/2021,CY - Minewater Scheme - Additions,ENV - Projects & Delivery,Turner and Townsend Project Management Ltd.,110036,124.20
"Department for Business, Energy and Industrial Strategy",The Coal Authority,20/07/2021,CY - Non-coal Minewater - Additions,DEFRA LEP Funding,Aecom Infrastructure & Env,110037,"4,987.53"
"Department for Business, Energy and Industrial Strategy",The Coal Authority,20/07/2021,CY - Non-coal Minewater - Additions,DEFRA LEP Funding,Aecom Infrastructure & Env,110037,"4,738.39"
"Department for Business, Energy and Industrial Strategy",The Coal Authority,20/07/2021,CY - Non-coal Minewater - Additions,DEFRA LEP Funding,Aecom Infrastructure & Env,110037,"2,380.00"
"Department for Business, Energy and Industrial Strategy",The Coal Authority,20/07/2021,Minewater Feasibility / Scoping,DEFRA LEP Funding,Aecom Infrastructure & Env,110037,"4,630.00"
"Department for Business, Energy and Industrial Strategy",The Coal Authority,28/05/2021,Bank Charges,Finance,National Westminster Bank Plc,110040,61.77
"Department for Business, Energy and Industrial Strategy",The Coal Authority,20/07/2021,Minewater Feasibility / Scoping,ENV - Projects & Delivery,WSP UK Ltd,110041,"9,763.14"
"Department for Business, Energy and Industrial Strategy",The Coal Authority,10/08/2021,Software Licenses - On Premise,Finance,Sapphire Systems Plc,110045,"3,744.00"
"Department for Business, Energy and Industrial Strategy",The Coal Authority,10/08/2021,Software Support & Maintenance - On Premise,Finance,Sapphire Systems Plc,110045,748.80
"Department for Business, Energy and Industrial Strategy",The Coal Authority,06/08/2021,Temporary Contractors,DEV - Permissions,Key Personnel Solutions Ltd,110046,421.50
"Department for Business, Energy and Industrial Strategy",The Coal Authority,01/08/2021,eCommerce Commission Charges,DEV - Permissions,Worldpay Limited,110047,7.65
"Department for Business, Energy and Industrial Strategy",The Coal Authority,22/07/2021,Payroll Processing Fees,Finance,Cgi It Uk Ltd,110060,685.34
"Department for Business, Energy and Industrial Strategy",The Coal Authority,22/07/2021,Payroll Processing Fees,Finance,Cgi It Uk Ltd,110061,"1,881.55"
"Department for Business, Energy and Industrial Strategy",The Coal Authority,08/07/2021,Recruitment Advertising,People & Organisational Development,Job Ladder Ltd,110067,275.00
"Department for Business, Energy and Industrial Strategy",The Coal Authority,14/06/2021,Software Licenses - SaaS,DIG - Service & Assurance,Slack Technologies Limited,110076,"2,646.00"
"Department for Business, Energy and Industrial Strategy",The Coal Authority,14/06/2021,Software Licenses - SaaS,DIG - Service & Assurance,Slack Technologies Limited,110076,62.26
"Department for Business, Energy and Industrial Strategy",The Coal Authority,04/08/2021,Fuel (Vehicle),PS&S - General Claims,Allstar Business Solutions Ltd,110077,51.72
"Department for Business, Energy and Industrial Strategy",The Coal Authority,04/08/2021,Fuel (Vehicle),PS&S - General Claims,Allstar Business Solutions Ltd,110077,47.23
"Department for Business, Energy and Industrial Strategy",The Coal Authority,04/08/2021,Fuel (Vehicle),PS&S - General Claims,Allstar Business Solutions Ltd,110077,33.33
"Department for Business, Energy and Industrial Strategy",The Coal Authority,04/08/2021,Fuel (Vehicle),PS&S - General Claims,Allstar Business Solutions Ltd,110077,41.14
"Department for Business, Energy and Industrial Strategy",The Coal Authority,04/08/2021,Fuel (Vehicle),PS&S - General Claims,Allstar Business Solutions Ltd,110077,54.38
"Department for Business, Energy and Industrial Strategy",The Coal Authority,04/08/2021,Fuel (Vehicle),PS&S - General Claims,Allstar Business Solutions Ltd,110077,67.72
"Department for Business, Energy and Industrial Strategy",The Coal Authority,04/08/2021,Fuel (Vehicle),PS&S - General Claims,Allstar Business Solutions Ltd,110077,7.60
"Department for Business, Energy and Industrial Strategy",The Coal Authority,31/10/2020,Plant Maintenance,Facilities,Briggs & Forrester Building Services Maintenance L,110084,"1,013.36"
"Department for Business, Energy and Industrial Strategy",The Coal Authority,31/10/2020,Plant Maintenance,Facilities,Briggs & Forrester Building Services Maintenance L,110084,93.21
"Department for Business, Energy and Industrial Strategy",The Coal Authority,31/10/2020,Plant Maintenance,Facilities,Briggs & Forrester Building Services Maintenance L,110084,116.90
"Department for Business, Energy and Industrial Strategy",The Coal Authority,28/07/2021,Innovation Costs,Heat & By-Product Innovation,SUEZ Advanced Solutions UK Ltd,110085,157.81
"Department for Business, Energy and Industrial Strategy",The Coal Authority,31/07/2021,Surface Hazards - Contractor Costs,PS&S - General Claims,Thomas Menzies Builders Ltd,110089,270.00
"Department for Business, Energy and Industrial Strategy",The Coal Authority,26/07/2021,Tips - Maintenance,Tips Response,Jim Davies Civil Engineering,110095,313.95
"Department for Business, Energy and Industrial Strategy",The Coal Authority,26/07/2021,Tips - Maintenance,Tips Response,Jim Davies Civil Engineering,110095,199.92
"Department for Business, Energy and Industrial Strategy",The Coal Authority,26/07/2021,Tips - Maintenance,Tips Response,Jim Davies Civil Engineering,110095,40.56
"Department for Business, Energy and Industrial Strategy",The Coal Authority,26/07/2021,Tips - Maintenance,Tips Response,Jim Davies Civil Engineering,110095,99.96
"Department for Business, Energy and Industrial Strategy",The Coal Authority,26/07/2021,Tips - Maintenance,Tips Response,Jim Davies Civil Engineering,110095,43.00
"Department for Business, Energy and Industrial Strategy",The Coal Authority,26/07/2021,Tips - Maintenance,Tips Response,Jim Davies Civil Engineering,110095,756.00
"Department for Business, Energy and Industrial Strategy",The Coal Authority,26/07/2021,Tips - Maintenance,Tips Response,Jim Davies Civil Engineering,110095,313.95
"Department for Business, Energy and Industrial Strategy",The Coal Authority,26/07/2021,Tips - Maintenance,Tips Response,Jim Davies Civil Engineering,110095,60.00
"Department for Business, Energy and Industrial Strategy",The Coal Authority,26/07/2021,Tips - Maintenance,Tips Response,Jim Davies Civil Engineering,110095,"3,628.80"
"Department for Business, Energy and Industrial Strategy",The Coal Authority,26/07/2021,Tips - Maintenance,Tips Response,Jim Davies Civil Engineering,110095,302.40
"Department for Business, Energy and Industrial Strategy",The Coal Authority,26/07/2021,Tips - Maintenance,Tips Response,Jim Davies Civil Engineering,110095,32.43
"Department for Business, Energy and Industrial Strategy",The Coal Authority,26/07/2021,Tips - Maintenance,Tips Response,Jim Davies Civil Engineering,110095,230.40
"Department for Business, Energy and Industrial Strategy",The Coal Authority,26/07/2021,Tips - Maintenance,Tips Response,Jim Davies Civil Engineering,110095,971.20
"Department for Business, Energy and Industrial Strategy",The Coal Authority,26/07/2021,Tips - Maintenance,Tips Response,Jim Davies Civil Engineering,110095,298.26
"Department for Business, Energy and Industrial Strategy",The Coal Authority,26/07/2021,Tips - Maintenance,Tips Response,Jim Davies Civil Engineering,110095,94.80
"Department for Business, Energy and Industrial Strategy",The Coal Authority,26/07/2021,Tips - Maintenance,Tips Response,Jim Davies Civil Engineering,110095,10.41
"Department for Business, Energy and Industrial Strategy",The Coal Authority,26/07/2021,Tips - Maintenance,Tips Response,Jim Davies Civil Engineering,110095,273.22
"Department for Business, Energy and Industrial Strategy",The Coal Authority,26/07/2021,Tips - Maintenance,Tips Response,Jim Davies Civil Engineering,110095,702.72
"Department for Business, Energy and Industrial Strategy",The Coal Authority,26/07/2021,Tips - Maintenance,Tips Response,Jim Davies Civil Engineering,110095,190.40
"Department for Business, Energy and Industrial Strategy",The Coal Authority,26/07/2021,Tips - Maintenance,Tips Response,Jim Davies Civil Engineering,110095,"1,267.20"
"Department for Business, Energy and Industrial Strategy",The Coal Authority,26/07/2021,Tips - Maintenance,Tips Response,Jim Davies Civil Engineering,110095,247.08
"Department for Business, Energy and Industrial Strategy",The Coal Authority,26/07/2021,Tips - Maintenance,Tips Response,Jim Davies Civil Engineering,110095,220.80
"Department for Business, Energy and Industrial Strategy",The Coal Authority,26/07/2021,Tips - Maintenance,Tips Response,Jim Davies Civil Engineering,110095,607.36
"Department for Business, Energy and Industrial Strategy",The Coal Authority,26/07/2021,Tips - Maintenance,Tips Response,Jim Davies Civil Engineering,110095,116.78
"Department for Business, Energy and Industrial Strategy",The Coal Authority,26/07/2021,Tips - Maintenance,Tips Response,Jim Davies Civil Engineering,110095,36.00
"Department for Business, Energy and Industrial Strategy",The Coal Authority,26/07/2021,Tips - Maintenance,Tips Response,Jim Davies Civil Engineering,110095,810.00
"Department for Business, Energy and Industrial Strategy",The Coal Authority,26/07/2021,Tips - Maintenance,Tips Response,Jim Davies Civil Engineering,110095,85.42
"Department for Business, Energy and Industrial Strategy",The Coal Authority,26/07/2021,Tips - Maintenance,Tips Response,Jim Davies Civil Engineering,110095,32.43
"Department for Business, Energy and Industrial Strategy",The Coal Authority,16/08/2021,Surface Hazards - Contractor Costs,PS&S - General Claims,Cornerstone  Projects Ltd,110096,117.48
"Department for Business, Energy and Industrial Strategy",The Coal Authority,08/06/2021,Short Term Vehicle Hire,ENV - Projects & Delivery,Enterprise Rent A Car,110097,55.00
"Department for Business, Energy and Industrial Strategy",The Coal Authority,13/08/2021,Tips - Maintenance,Tips Response,Jim Davies Civil Engineering,110098,475.20
"Department for Business, Energy and Industrial Strategy",The Coal Authority,13/08/2021,Tips - Maintenance,Tips Response,Jim Davies Civil Engineering,110098,94.50
"Department for Business, Energy and Industrial Strategy",The Coal Authority,13/08/2021,Tips - Maintenance,Tips Response,Jim Davies Civil Engineering,110098,380.00
"Department for Business, Energy and Industrial Strategy",The Coal Authority,13/08/2021,Tips - Maintenance,Tips Response,Jim Davies Civil Engineering,110098,"2,200.00"
"Department for Business, Energy and Industrial Strategy",The Coal Authority,13/08/2021,Tips - Maintenance,Tips Response,Jim Davies Civil Engineering,110098,387.00
"Department for Business, Energy and Industrial Strategy",The Coal Authority,11/08/2021,Fuel (Vehicle),Facilities,Allstar Business Solutions Ltd,110104,64.12
"Department for Business, Energy and Industrial Strategy",The Coal Authority,11/08/2021,Fuel (Vehicle),Facilities,Allstar Business Solutions Ltd,110104,45.20
"Department for Business, Energy and Industrial Strategy",The Coal Authority,11/08/2021,Fuel (Vehicle),Facilities,Allstar Business Solutions Ltd,110104,3.80
"Department for Business, Energy and Industrial Strategy",The Coal Authority,04/08/2021,Fuel (Vehicle),Facilities,Allstar Business Solutions Ltd,110105,50.81
"Department for Business, Energy and Industrial Strategy",The Coal Authority,04/08/2021,Fuel (Vehicle),Facilities,Allstar Business Solutions Ltd,110105,40.58
"Department for Business, Energy and Industrial Strategy",The Coal Authority,04/08/2021,Fuel (Vehicle),Facilities,Allstar Business Solutions Ltd,110105,3.80
"Department for Business, Energy and Industrial Strategy",The Coal Authority,11/08/2021,Fuel (Vehicle),PS&S - General Claims,Allstar Business Solutions Ltd,110109,27.08
"Department for Business, Energy and Industrial Strategy",The Coal Authority,11/08/2021,Fuel (Vehicle),PS&S - General Claims,Allstar Business Solutions Ltd,110109,33.90
"Department for Business, Energy and Industrial Strategy",The Coal Authority,11/08/2021,Fuel (Vehicle),PS&S - General Claims,Allstar Business Solutions Ltd,110109,46.57
"Department for Business, Energy and Industrial Strategy",The Coal Authority,11/08/2021,Fuel (Vehicle),PS&S - General Claims,Allstar Business Solutions Ltd,110109,48.66
"Department for Business, Energy and Industrial Strategy",The Coal Authority,11/08/2021,Fuel (Vehicle),PS&S - General Claims,Allstar Business Solutions Ltd,110109,58.59
"Department for Business, Energy and Industrial Strategy",The Coal Authority,11/08/2021,Fuel (Vehicle),PS&S - General Claims,Allstar Business Solutions Ltd,110109,9.50
"Department for Business, Energy and Industrial Strategy",The Coal Authority,11/08/2021,Fuel (Vehicle),Tips Response,Allstar Business Solutions Ltd,110109,69.83
"Department for Business, Energy and Industrial Strategy",The Coal Authority,16/08/2021,Other Hosting / IaaS,Mining Reports,Bytemark Limited,110111,1.56
"Department for Business, Energy and Industrial Strategy",The Coal Authority,27/07/2021,Recruitment Advertising,People & Organisational Development,Redactive Publishing Limited,110113,995.00
"Department for Business, Energy and Industrial Strategy",The Coal Authority,02/07/2021,Applications Consultancy,DIG - Management,Scisys Uk Ltd,110117,"7,638.96"
"Department for Business, Energy and Industrial Strategy",The Coal Authority,02/07/2021,Applications Consultancy,DIG - Technical Delivery,Scisys Uk Ltd,110117,"1,621.46"
"Department for Business, Energy and Industrial Strategy",The Coal Authority,02/07/2021,CY - Intangible IT - Additions,DEV - Permissions,Scisys Uk Ltd,110117,"9,355.93"
"Department for Business, Energy and Industrial Strategy",The Coal Authority,02/07/2021,CY - Intangible IT - Additions,Records Management,Scisys Uk Ltd,110117,"24,254.64"
"Department for Business, Energy and Industrial Strategy",The Coal Authority,02/07/2021,Software Support & Maintenance - On Premise,DIG - Data Licensing,Scisys Uk Ltd,110117,"1,050.07"
"Department for Business, Energy and Industrial Strategy",The Coal Authority,02/07/2021,Software Support & Maintenance - On Premise,Mining Reports,Scisys Uk Ltd,110117,"5,156.68"
"Department for Business, Energy and Industrial Strategy",The Coal Authority,02/07/2021,Temporary Contractors,DIG - Management,Scisys Uk Ltd,110117,"7,006.62"
"Department for Business, Energy and Industrial Strategy",The Coal Authority,03/08/2021,Contract Hire Vehicles,ENV - Projects & Delivery,Lex Autolease Ltd,110121,562.00
"Department for Business, Energy and Industrial Strategy",The Coal Authority,30/07/2021,Contract Hire Vehicles,ENV - Projects & Delivery,Lex Autolease Ltd,110122,439.81
"Department for Business, Energy and Industrial Strategy",The Coal Authority,27/07/2021,Annual Report & Accounts,Business Intelligence,Allied Publicity Services Manchester Ltd,110126,"1,366.55"
"Department for Business, Energy and Industrial Strategy",The Coal Authority,27/07/2021,Annual Report & Accounts,Business Intelligence,Allied Publicity Services Manchester Ltd,110126,0.01
"Department for Business, Energy and Industrial Strategy",The Coal Authority,22/07/2021,Central Training,People & Organisational Development,9.9 World Class Performance,110130,"4,000.00"
"Department for Business, Energy and Industrial Strategy",The Coal Authority,30/06/2021,Subsidence Pumping Maintenance - Ad Hoc,ENV - Mine Water Operations,Ouse&Derwnt Intern Drainge Brd,110131,6.01
"Department for Business, Energy and Industrial Strategy",The Coal Authority,30/06/2021,Subsidence Pumping Maintenance - Ad Hoc,ENV - Mine Water Operations,Ouse&Derwnt Intern Drainge Brd,110131,29.73
"Department for Business, Energy and Industrial Strategy",The Coal Authority,30/06/2021,Subsidence Pumping Maintenance - Planned,ENV - Mine Water Operations,Ouse&Derwnt Intern Drainge Brd,110131,192.27
"Department for Business, Energy and Industrial Strategy",The Coal Authority,16/08/2021,Subsidence Pumping Maintenance - Ad Hoc,ENV - Mine Water Operations,Ouse&Derwnt Intern Drainge Brd,110132,-29.73
"Department for Business, Energy and Industrial Strategy",The Coal Authority,16/08/2021,Subsidence Pumping Maintenance - Ad Hoc,ENV - Mine Water Operations,Ouse&Derwnt Intern Drainge Brd,110132,-6.01
"Department for Business, Energy and Industrial Strategy",The Coal Authority,16/08/2021,Subsidence Pumping Maintenance - Planned,ENV - Mine Water Operations,Ouse&Derwnt Intern Drainge Brd,110132,-192.27
"Department for Business, Energy and Industrial Strategy",The Coal Authority,16/08/2021,Subsidence Pumping Maintenance - Power,ENV - Mine Water Operations,Ouse&Derwnt Intern Drainge Brd,110132,-367.96
"Department for Business, Energy and Industrial Strategy",The Coal Authority,06/08/2021,Temporary Contractors,Heat & By-Product Innovation,Key Personnel Solutions Ltd,110142,828.60
"Department for Business, Energy and Industrial Strategy",The Coal Authority,15/08/2021,CY - Non-coal Minewater - Additions,DEFRA Metal Mine Programme,Detectronic Limited,110143,500.00
"Department for Business, Energy and Industrial Strategy",The Coal Authority,31/07/2021,Mine Entry Inspection - Contractor Costs,Tips Response,Interlocks Surveys,110150,"10,764.00"
"Department for Business, Energy and Industrial Strategy",The Coal Authority,04/08/2021,Minewater Feasibility / Scoping,DEFRA Metal Mine Programme,Wear Rivers Trust,110153,"1,371.96"
"Department for Business, Energy and Industrial Strategy",The Coal Authority,04/08/2021,Minewater Feasibility / Scoping,DEFRA Metal Mine Programme,Wear Rivers Trust,110153,"5,580.54"
"Department for Business, Energy and Industrial Strategy",The Coal Authority,16/08/2021,CY - Minewater Scheme - Additions,ENV - Projects & Delivery,AECOM Ltd,110154,"3,138.00"
"Department for Business, Energy and Industrial Strategy",The Coal Authority,16/08/2021,CY - Minewater Scheme - Additions,ENV - Projects & Delivery,AECOM Ltd,110154,"1,744.64"
"Department for Business, Energy and Industrial Strategy",The Coal Authority,16/08/2021,Temporary Contractors,Procurement,Hays Specialist Recruitment,110162,"2,173.55"
"Department for Business, Energy and Industrial Strategy",The Coal Authority,16/08/2021,Temporary Contractors,Procurement,Hays Specialist Recruitment,110162,4.85
"Department for Business, Energy and Industrial Strategy",The Coal Authority,16/08/2021,Temporary Contractors,Procurement,Hays Specialist Recruitment,110163,"2,173.55"
"Department for Business, Energy and Industrial Strategy",The Coal Authority,16/08/2021,Temporary Contractors,Procurement,Hays Specialist Recruitment,110163,4.85
"Department for Business, Energy and Industrial Strategy",The Coal Authority,17/08/2021,Subsidence - Contractor Costs,PS&S - General Claims,Compensation Payment,110170,450.40
"Department for Business, Energy and Industrial Strategy",The Coal Authority,16/08/2021,Subsidence - Contractor Costs,PS&S - General Claims,Compensation Payment,110171,400.00
"Department for Business, Energy and Industrial Strategy",The Coal Authority,17/08/2021,Subsidence - Contractor Costs,PS&S - General Claims,Compensation Payment,110172,960.00
"Department for Business, Energy and Industrial Strategy",The Coal Authority,16/08/2021,Surface Hazards - Contractor Costs,PS&S - General Claims,McGowan Homes & Property Services,110173,825.00
"Department for Business, Energy and Industrial Strategy",The Coal Authority,16/08/2021,Minewater Site Surveys,DEFRA LEP Funding,AECOM Ltd,110176,"2,192.63"
"Department for Business, Energy and Industrial Strategy",The Coal Authority,17/08/2021,Subsidence - Contractor Costs,PS&S - General Claims,MGL Demolition Limited,110179,"43,374.40"
"Department for Business, Energy and Industrial Strategy",The Coal Authority,17/08/2021,Minewater Site Surveys,NRW Metal Mine Programme,Gwynedd Archaeological Trust,110183,"2,802.50"
"Department for Business, Energy and Industrial Strategy",The Coal Authority,16/08/2021,Subsidence - Contractor Costs,PS&S - General Claims,Marsh & Riddell Ltd,110184,"1,712.50"
"Department for Business, Energy and Industrial Strategy",The Coal Authority,17/08/2021,Minewater Feasibility / Scoping,ENV - Projects & Delivery,WSP UK Ltd,110188,"-9,763.14"
"Department for Business, Energy and Industrial Strategy",The Coal Authority,17/08/2021,Site Services,Facilities,Personnel Hygiene Services Ltd,110189,-217.70
"Department for Business, Energy and Industrial Strategy",The Coal Authority,17/08/2021,Contract Hire Vehicles,ENV - Projects & Delivery,Lex Autolease Ltd,110191,-54.23
"Department for Business, Energy and Industrial Strategy",The Coal Authority,17/08/2021,Contract Hire Vehicles,ENV - Projects & Delivery,Lex Autolease Ltd,110191,-385.58
"Department for Business, Energy and Industrial Strategy",The Coal Authority,17/08/2021,Contract Hire Vehicles,ENV - Projects & Delivery,Lex Autolease Ltd,110191,-38.56
"Department for Business, Energy and Industrial Strategy",The Coal Authority,05/08/2021,Temporary Contractors,ENV - Projects & Delivery,Severn Trent Water Ltd-Consultants,110195,"4,383.58"
"Department for Business, Energy and Industrial Strategy",The Coal Authority,17/08/2021,Temporary Contractors,ENV - Projects & Delivery,Severn Trent Water Ltd-Consultants,110196,"-4,383.58"
"Department for Business, Energy and Industrial Strategy",The Coal Authority,06/08/2021,Legal - General,Legal & Governance,Dla Piper Uk Llp,110207,179.72
"Department for Business, Energy and Industrial Strategy",The Coal Authority,06/08/2021,Legal - General,Legal & Governance,Dla Piper Uk Llp,110207,157.25
"Department for Business, Energy and Industrial Strategy",The Coal Authority,06/08/2021,Legal - General,Legal & Governance,Dla Piper Uk Llp,110207,106.00
"Department for Business, Energy and Industrial Strategy",The Coal Authority,06/08/2021,Legal - Property Title Search,Legal & Governance,Land Registry,110222,54.00
"Department for Business, Energy and Industrial Strategy",The Coal Authority,05/07/2021,Applications Consultancy,DIG - Management,Scisys Uk Ltd,110224,"10,048.87"
"Department for Business, Energy and Industrial Strategy",The Coal Authority,05/07/2021,Applications Consultancy,DIG - Technical Delivery,Scisys Uk Ltd,110224,"1,280.10"
"Department for Business, Energy and Industrial Strategy",The Coal Authority,05/07/2021,CY - Intangible IT - Additions,DEV - Permissions,Scisys Uk Ltd,110224,"7,904.48"
"Department for Business, Energy and Industrial Strategy",The Coal Authority,05/07/2021,CY - Intangible IT - Additions,Records Management,Scisys Uk Ltd,110224,"7,374.63"
"Department for Business, Energy and Industrial Strategy",The Coal Authority,05/07/2021,Software Support & Maintenance - On Premise,DEV - Historic Property Liabilities,Scisys Uk Ltd,110224,412.53
"Department for Business, Energy and Industrial Strategy",The Coal Authority,05/07/2021,Software Support & Maintenance - On Premise,DEV - Planning & Local Authority Liaison,Scisys Uk Ltd,110224,618.80
"Department for Business, Energy and Industrial Strategy",The Coal Authority,05/07/2021,Software Support & Maintenance - On Premise,DIG - Data Licensing,Scisys Uk Ltd,110224,"7,613.15"
"Department for Business, Energy and Industrial Strategy",The Coal Authority,05/07/2021,Software Support & Maintenance - On Premise,PS&S - General Claims,Scisys Uk Ltd,110224,-0.95
"Department for Business, Energy and Industrial Strategy",The Coal Authority,05/07/2021,Software Support & Maintenance - On Premise,PS&S - General Claims,Scisys Uk Ltd,110224,"5,156.68"
"Department for Business, Energy and Industrial Strategy",The Coal Authority,05/07/2021,Software Support & Maintenance - On Premise,Tips Response,Scisys Uk Ltd,110224,618.80
"Department for Business, Energy and Industrial Strategy",The Coal Authority,05/07/2021,Temporary Contractors,DIG - Management,Scisys Uk Ltd,110224,"8,844.31"
"Department for Business, Energy and Industrial Strategy",The Coal Authority,18/08/2021,Subsidence - Contractor Costs,PS&S - General Claims,Cornerstone  Projects Ltd,110230,199.70
"Department for Business, Energy and Industrial Strategy",The Coal Authority,11/08/2021,Temporary Contractors,Finance,Cherry Professional Limited,110242,"1,838.53"
"Department for Business, Energy and Industrial Strategy",The Coal Authority,18/08/2021,Surface Hazards - Contractor Costs,PS&S - General Claims,Luddon Construction Limited,110246,720.16
"Department for Business, Energy and Industrial Strategy",The Coal Authority,31/07/2021,Surface Hazards - Contractor Costs,PS&S - General Claims,Thomas Menzies Builders Ltd,110252,163.20
"Department for Business, Energy and Industrial Strategy",The Coal Authority,31/07/2021,Surface Hazards - Contractor Costs,PS&S - General Claims,Thomas Menzies Builders Ltd,110252,"3,000.00"
"Department for Business, Energy and Industrial Strategy",The Coal Authority,31/07/2021,Surface Hazards - Contractor Costs,PS&S - General Claims,Thomas Menzies Builders Ltd,110252,900.00
"Department for Business, Energy and Industrial Strategy",The Coal Authority,31/07/2021,Surface Hazards - Contractor Costs,PS&S - General Claims,Thomas Menzies Builders Ltd,110252,91.64
"Department for Business, Energy and Industrial Strategy",The Coal Authority,31/07/2021,Surface Hazards - Contractor Costs,PS&S - General Claims,Thomas Menzies Builders Ltd,110252,"1,152.00"
"Department for Business, Energy and Industrial Strategy",The Coal Authority,31/07/2021,Surface Hazards - Contractor Costs,PS&S - General Claims,Thomas Menzies Builders Ltd,110252,"1,158.91"
"Department for Business, Energy and Industrial Strategy",The Coal Authority,31/07/2021,Surface Hazards - Contractor Costs,PS&S - General Claims,Thomas Menzies Builders Ltd,110252,30.00
"Department for Business, Energy and Industrial Strategy",The Coal Authority,31/07/2021,Surface Hazards - Contractor Costs,PS&S - General Claims,Thomas Menzies Builders Ltd,110252,828.00
"Department for Business, Energy and Industrial Strategy",The Coal Authority,31/07/2021,Surface Hazards - Contractor Costs,PS&S - General Claims,Thomas Menzies Builders Ltd,110252,560.00
"Department for Business, Energy and Industrial Strategy",The Coal Authority,31/07/2021,Surface Hazards - Contractor Costs,PS&S - General Claims,Thomas Menzies Builders Ltd,110252,"1,606.48"
"Department for Business, Energy and Industrial Strategy",The Coal Authority,31/07/2021,Surface Hazards - Contractor Costs,PS&S - General Claims,Thomas Menzies Builders Ltd,110252,"5,621.25"
"Department for Business, Energy and Industrial Strategy",The Coal Authority,31/07/2021,Surface Hazards - Contractor Costs,PS&S - General Claims,Thomas Menzies Builders Ltd,110252,122.96
"Department for Business, Energy and Industrial Strategy",The Coal Authority,31/07/2021,Surface Hazards - Contractor Costs,PS&S - General Claims,Thomas Menzies Builders Ltd,110252,90.87
"Department for Business, Energy and Industrial Strategy",The Coal Authority,31/07/2021,Surface Hazards - Contractor Costs,PS&S - General Claims,Thomas Menzies Builders Ltd,110252,"3,125.00"
"Department for Business, Energy and Industrial Strategy",The Coal Authority,31/07/2021,Surface Hazards - Contractor Costs,PS&S - General Claims,Thomas Menzies Builders Ltd,110252,"2,383.40"
"Department for Business, Energy and Industrial Strategy",The Coal Authority,31/07/2021,Surface Hazards - Contractor Costs,PS&S - General Claims,Thomas Menzies Builders Ltd,110252,566.40
"Department for Business, Energy and Industrial Strategy",The Coal Authority,31/07/2021,Surface Hazards - Contractor Costs,PS&S - General Claims,Thomas Menzies Builders Ltd,110252,"1,911.00"
"Department for Business, Energy and Industrial Strategy",The Coal Authority,31/07/2021,Surface Hazards - Contractor Costs,PS&S - General Claims,Thomas Menzies Builders Ltd,110252,100.00
"Department for Business, Energy and Industrial Strategy",The Coal Authority,31/07/2021,Surface Hazards - Contractor Costs,PS&S - General Claims,Thomas Menzies Builders Ltd,110252,143.28
"Department for Business, Energy and Industrial Strategy",The Coal Authority,31/07/2021,Surface Hazards - Contractor Costs,PS&S - General Claims,Thomas Menzies Builders Ltd,110252,"2,625.00"
"Department for Business, Energy and Industrial Strategy",The Coal Authority,31/07/2021,Surface Hazards - Contractor Costs,PS&S - General Claims,Thomas Menzies Builders Ltd,110252,693.29
"Department for Business, Energy and Industrial Strategy",The Coal Authority,31/07/2021,Surface Hazards - Contractor Costs,PS&S - General Claims,Thomas Menzies Builders Ltd,110252,159.21
"Department for Business, Energy and Industrial Strategy",The Coal Authority,31/07/2021,Surface Hazards - Contractor Costs,PS&S - General Claims,Thomas Menzies Builders Ltd,110252,552.81
"Department for Business, Energy and Industrial Strategy",The Coal Authority,31/07/2021,Surface Hazards - Contractor Costs,PS&S - General Claims,Thomas Menzies Builders Ltd,110252,75.42
"Department for Business, Energy and Industrial Strategy",The Coal Authority,31/07/2021,Surface Hazards - Contractor Costs,PS&S - General Claims,Thomas Menzies Builders Ltd,110252,396.00
"Department for Business, Energy and Industrial Strategy",The Coal Authority,31/07/2021,Surface Hazards - Contractor Costs,PS&S - General Claims,Thomas Menzies Builders Ltd,110252,32.84
"Department for Business, Energy and Industrial Strategy",The Coal Authority,31/07/2021,Surface Hazards - Contractor Costs,PS&S - General Claims,Thomas Menzies Builders Ltd,110252,63.36
"Department for Business, Energy and Industrial Strategy",The Coal Authority,31/07/2021,Surface Hazards - Contractor Costs,PS&S - General Claims,Thomas Menzies Builders Ltd,110252,550.18
"Department for Business, Energy and Industrial Strategy",The Coal Authority,31/07/2021,Surface Hazards - Contractor Costs,PS&S - General Claims,Thomas Menzies Builders Ltd,110252,"2,893.75"
"Department for Business, Energy and Industrial Strategy",The Coal Authority,31/07/2021,Surface Hazards - Contractor Costs,PS&S - General Claims,Thomas Menzies Builders Ltd,110252,634.48
"Department for Business, Energy and Industrial Strategy",The Coal Authority,31/07/2021,Surface Hazards - Contractor Costs,PS&S - General Claims,Thomas Menzies Builders Ltd,110252,198.00
"Department for Business, Energy and Industrial Strategy",The Coal Authority,30/07/2021,Minewater Feasibility / Scoping,ENV - Projects & Delivery,WSP UK Ltd,110256,"15,499.74"
"Department for Business, Energy and Industrial Strategy",The Coal Authority,31/07/2021,Software Support & Maintenance - SaaS,Finance,Bottomline Technologies D/D,110257,165.17
"Department for Business, Energy and Industrial Strategy",The Coal Authority,31/07/2021,Surface Hazards - Contractor Costs,PS&S - General Claims,JMC Engineering Uk Ltd,110262,239.52
"Department for Business, Energy and Industrial Strategy",The Coal Authority,18/08/2021,Stationery,Customer Services & Strategy,Imprint,110271,42.50
"Department for Business, Energy and Industrial Strategy",The Coal Authority,18/08/2021,Surface Hazards - Contractor Costs,PS&S - General Claims,Cornerstone  Projects Ltd,110272,267.70
"Department for Business, Energy and Industrial Strategy",The Coal Authority,13/08/2021,Postage & Couriers,Customer Services & Strategy,FedEx Express UK Transportaion Limited,110273,52.54
"Department for Business, Energy and Industrial Strategy",The Coal Authority,30/06/2021,Subsidence - Contractor Costs,PS&S - General Claims,Savills (Uk) Ltd,110274,"2,000.00"
"Department for Business, Energy and Industrial Strategy",The Coal Authority,18/08/2021,Staff Events,Executive,Imprint,110289,19.19
"Department for Business, Energy and Industrial Strategy",The Coal Authority,31/07/2021,Incidentals,Mining Reports,Security Plus Limited,110290,30.06
"Department for Business, Energy and Industrial Strategy",The Coal Authority,16/08/2021,Minewater Sampling - Operational Sites,ENV - Mine Water Operations,Socotec,110295,166.25
"Department for Business, Energy and Industrial Strategy",The Coal Authority,16/08/2021,Minewater Sampling - Operational Sites,ENV - Mine Water Operations,Socotec,110295,250.99
"Department for Business, Energy and Industrial Strategy",The Coal Authority,12/08/2021,Subsidence - Contractor Costs,PS&S - General Claims,Edf Energy,110296,4.67
"Department for Business, Energy and Industrial Strategy",The Coal Authority,17/08/2021,Subsidence - Contractor Costs,PS&S - General Claims,OVO Energy,110297,26.57
"Department for Business, Energy and Industrial Strategy",The Coal Authority,13/08/2021,Temporary Contractors,DEV - Permissions,Key Personnel Solutions Ltd,110299,421.50
"Department for Business, Energy and Industrial Strategy",The Coal Authority,18/08/2021,Fuel (Vehicle),Facilities,Allstar Business Solutions Ltd,110303,42.08
"Department for Business, Energy and Industrial Strategy",The Coal Authority,18/08/2021,Fuel (Vehicle),Facilities,Allstar Business Solutions Ltd,110303,42.52
"Department for Business, Energy and Industrial Strategy",The Coal Authority,18/08/2021,Fuel (Vehicle),Facilities,Allstar Business Solutions Ltd,110303,41.67
"Department for Business, Energy and Industrial Strategy",The Coal Authority,19/08/2021,Plant Maintenance,Facilities,Briggs & Forrester Building Services Maintenance L,110329,876.96
"Department for Business, Energy and Industrial Strategy",The Coal Authority,30/07/2021,Site Repairs & Maintenance,Facilities,Berrisford Sweeper Hire Ltd,110336,370.00
"Department for Business, Energy and Industrial Strategy",The Coal Authority,01/08/2021,Office Telephony - Call Charges,DIG - Service & Assurance,Daisy Corporate Services Trading Services Ltd,110337,57.12
"Department for Business, Energy and Industrial Strategy",The Coal Authority,01/08/2021,Office Telephony - Line Rent,DIG - Service & Assurance,Daisy Corporate Services Trading Services Ltd,110337,659.03
"Department for Business, Energy and Industrial Strategy",The Coal Authority,01/08/2021,Mobiles Phones - Call Charges,DIG - Service & Assurance,Daisy Corporate Services Trading Services Ltd,110338,35.34
"Department for Business, Energy and Industrial Strategy",The Coal Authority,01/08/2021,Mobiles Phones - Line Rent,DIG - Service & Assurance,Daisy Corporate Services Trading Services Ltd,110338,"1,381.12"
"Department for Business, Energy and Industrial Strategy",The Coal Authority,03/08/2021,Legal - General,PS&S - General Claims,Geldards LLP,110349,"3,300.00"
"Department for Business, Energy and Industrial Strategy",The Coal Authority,04/08/2021,Minewater Rates,ENV - Mine Water Operations,City And County Of Swansea,110360,"1,872.50"
"Department for Business, Energy and Industrial Strategy",The Coal Authority,17/08/2021,Office Printing Services,DIG - Service & Assurance,Konica Minolta Business Sltns Ltd,110368,0.88
"Department for Business, Energy and Industrial Strategy",The Coal Authority,17/08/2021,Office Printing Services,DIG - Service & Assurance,Konica Minolta Business Sltns Ltd,110369,0.27
"Department for Business, Energy and Industrial Strategy",The Coal Authority,17/08/2021,Office Printing Services,DIG - Service & Assurance,Konica Minolta Business Sltns Ltd,110370,1.39
"Department for Business, Energy and Industrial Strategy",The Coal Authority,17/08/2021,Office Printing Services,DIG - Service & Assurance,Konica Minolta Business Sltns Ltd,110371,1.38
"Department for Business, Energy and Industrial Strategy",The Coal Authority,17/08/2021,Office Printing Services,DIG - Service & Assurance,Konica Minolta Business Sltns Ltd,110372,1.59
"Department for Business, Energy and Industrial Strategy",The Coal Authority,16/08/2021,Minewater Site Surveys,ENV - Projects & Delivery,AECOM Ltd,110373,969.00
"Department for Business, Energy and Industrial Strategy",The Coal Authority,16/08/2021,Minewater Site Surveys,ENV - Projects & Delivery,AECOM Ltd,110373,615.00
"Department for Business, Energy and Industrial Strategy",The Coal Authority,14/07/2021,Incidentals,Mining Reports,Staff Expenses Control,110377,8.33
"Department for Business, Energy and Industrial Strategy",The Coal Authority,18/08/2021,Innovation Costs,ENV - Technical,Staff Expenses Control,110377,10.82
"Department for Business, Energy and Industrial Strategy",The Coal Authority,14/07/2021,Mileage Payments,Mining Reports,Staff Expenses Control,110377,64.28
"Department for Business, Energy and Industrial Strategy",The Coal Authority,15/07/2021,Mileage Payments,Mining Reports,Staff Expenses Control,110377,4.45
"Department for Business, Energy and Industrial Strategy",The Coal Authority,15/07/2021,Mileage Payments,Mining Reports,Staff Expenses Control,110377,60.64
"Department for Business, Energy and Industrial Strategy",The Coal Authority,23/07/2021,Mileage Payments,ENV - Technical,Staff Expenses Control,110377,9.91
"Department for Business, Energy and Industrial Strategy",The Coal Authority,23/07/2021,Mileage Payments,ENV - Technical,Staff Expenses Control,110377,9.90
"Department for Business, Energy and Industrial Strategy",The Coal Authority,10/08/2021,Mileage Payments,DEFRA Metal Mine Programme,Staff Expenses Control,110377,2.88
"Department for Business, Energy and Industrial Strategy",The Coal Authority,10/08/2021,Mileage Payments,ENV - Technical,Staff Expenses Control,110377,58.34
"Department for Business, Energy and Industrial Strategy",The Coal Authority,10/08/2021,Mileage Payments,ENV - Technical,Staff Expenses Control,110377,2.85
"Department for Business, Energy and Industrial Strategy",The Coal Authority,11/08/2021,Mileage Payments,DEFRA Metal Mine Programme,Staff Expenses Control,110377,2.89
"Department for Business, Energy and Industrial Strategy",The Coal Authority,11/08/2021,Mileage Payments,DEFRA Metal Mine Programme,Staff Expenses Control,110377,2.88
"Department for Business, Energy and Industrial Strategy",The Coal Authority,11/08/2021,Mileage Payments,ENV - Technical,Staff Expenses Control,110377,57.76
"Department for Business, Energy and Industrial Strategy",The Coal Authority,11/08/2021,Mileage Payments,ENV - Technical,Staff Expenses Control,110377,2.83
"Department for Business, Energy and Industrial Strategy",The Coal Authority,12/08/2021,Mileage Payments,DEFRA Metal Mine Programme,Staff Expenses Control,110377,2.88
"Department for Business, Energy and Industrial Strategy",The Coal Authority,12/08/2021,Mileage Payments,DEFRA Metal Mine Programme,Staff Expenses Control,110377,56.98
"Department for Business, Energy and Industrial Strategy",The Coal Authority,17/08/2021,Mileage Payments,Innovation By-Product & Services Delivery,Staff Expenses Control,110377,36.00
"Department for Business, Energy and Industrial Strategy",The Coal Authority,18/08/2021,Mileage Payments,ENV - Technical,Staff Expenses Control,110377,1.39
"Department for Business, Energy and Industrial Strategy",The Coal Authority,18/08/2021,Mileage Payments,ENV - Technical,Staff Expenses Control,110377,23.27
"Department for Business, Energy and Industrial Strategy",The Coal Authority,18/08/2021,Mileage Payments,ENV - Technical,Staff Expenses Control,110377,23.26
"Department for Business, Energy and Industrial Strategy",The Coal Authority,13/08/2021,Staff Events,ENV - Mine Water Operations,Staff Expenses Control,110377,74.56
"Department for Business, Energy and Industrial Strategy",The Coal Authority,09/08/2021,Subsistence Allowances,DEFRA Metal Mine Programme,Staff Expenses Control,110377,4.04
"Department for Business, Energy and Industrial Strategy",The Coal Authority,10/08/2021,Subsistence Allowances,DEFRA Metal Mine Programme,Staff Expenses Control,110377,17.92
"Department for Business, Energy and Industrial Strategy",The Coal Authority,10/08/2021,Subsistence Allowances,ENV - Technical,Staff Expenses Control,110377,9.05
"Department for Business, Energy and Industrial Strategy",The Coal Authority,10/08/2021,Subsistence Allowances,ENV - Technical,Staff Expenses Control,110377,11.85
"Department for Business, Energy and Industrial Strategy",The Coal Authority,11/08/2021,Subsistence Allowances,DEFRA Metal Mine Programme,Staff Expenses Control,110377,7.15
"Department for Business, Energy and Industrial Strategy",The Coal Authority,11/08/2021,Subsistence Allowances,DEFRA Metal Mine Programme,Staff Expenses Control,110377,18.80
"Department for Business, Energy and Industrial Strategy",The Coal Authority,11/08/2021,Subsistence Allowances,ENV - Technical,Staff Expenses Control,110377,5.00
"Department for Business, Energy and Industrial Strategy",The Coal Authority,12/08/2021,Subsistence Allowances,DEFRA Metal Mine Programme,Staff Expenses Control,110377,4.60
"Department for Business, Energy and Industrial Strategy",The Coal Authority,12/08/2021,Subsistence Allowances,DEFRA Metal Mine Programme,Staff Expenses Control,110377,6.40
"Department for Business, Energy and Industrial Strategy",The Coal Authority,17/08/2021,Subsistence Allowances,Community Response,Staff Expenses Control,110377,3.90
"Department for Business, Energy and Industrial Strategy",The Coal Authority,17/08/2021,Subsistence Allowances,Executive,Staff Expenses Control,110377,2.20
"Department for Business, Energy and Industrial Strategy",The Coal Authority,16/08/2021,CY - Non-coal Minewater - Additions,DEFRA Metal Mine Programme,AECOM Ltd,110383,"2,948.00"
"Department for Business, Energy and Industrial Strategy",The Coal Authority,11/08/2021,Minewater Feasibility / Scoping,DEFRA Metal Mine Programme,Socotec,110384,177.86
"Department for Business, Energy and Industrial Strategy",The Coal Authority,16/08/2021,Minewater Site Surveys,NRW Metal Mine Programme,AECOM Ltd,110385,"1,806.89"
"Department for Business, Energy and Industrial Strategy",The Coal Authority,16/08/2021,Minewater Site Surveys,NRW Metal Mine Programme,AECOM Ltd,110385,"2,388.00"
"Department for Business, Energy and Industrial Strategy",The Coal Authority,20/08/2021,Surface Hazards - Contractor Costs,PS&S - General Claims,Llettyshenkin Cons Co Ltd,110393,"1,080.00"
"Department for Business, Energy and Industrial Strategy",The Coal Authority,20/08/2021,Surface Hazards - Contractor Costs,PS&S - General Claims,Llettyshenkin Cons Co Ltd,110393,16.50
"Department for Business, Energy and Industrial Strategy",The Coal Authority,20/08/2021,Surface Hazards - Contractor Costs,PS&S - General Claims,Llettyshenkin Cons Co Ltd,110393,840.00
"Department for Business, Energy and Industrial Strategy",The Coal Authority,20/08/2021,Surface Hazards - Contractor Costs,PS&S - General Claims,Llettyshenkin Cons Co Ltd,110393,720.00
"Department for Business, Energy and Industrial Strategy",The Coal Authority,20/08/2021,Surface Hazards - Contractor Costs,PS&S - General Claims,Llettyshenkin Cons Co Ltd,110393,"1,559.04"
"Department for Business, Energy and Industrial Strategy",The Coal Authority,20/08/2021,Surface Hazards - Contractor Costs,PS&S - General Claims,Llettyshenkin Cons Co Ltd,110393,81.25
"Department for Business, Energy and Industrial Strategy",The Coal Authority,20/08/2021,Surface Hazards - Contractor Costs,PS&S - General Claims,Llettyshenkin Cons Co Ltd,110393,56.25
"Department for Business, Energy and Industrial Strategy",The Coal Authority,20/08/2021,Surface Hazards - Contractor Costs,PS&S - General Claims,Llettyshenkin Cons Co Ltd,110393,"1,344.00"
"Department for Business, Energy and Industrial Strategy",The Coal Authority,20/08/2021,Surface Hazards - Contractor Costs,PS&S - General Claims,Llettyshenkin Cons Co Ltd,110393,40.99
"Department for Business, Energy and Industrial Strategy",The Coal Authority,20/08/2021,Surface Hazards - Contractor Costs,PS&S - General Claims,Llettyshenkin Cons Co Ltd,110393,838.15
"Department for Business, Energy and Industrial Strategy",The Coal Authority,20/08/2021,Surface Hazards - Contractor Costs,PS&S - General Claims,Llettyshenkin Cons Co Ltd,110393,301.60
"Department for Business, Energy and Industrial Strategy",The Coal Authority,20/08/2021,Surface Hazards - Contractor Costs,PS&S - General Claims,Llettyshenkin Cons Co Ltd,110393,75.50
"Department for Business, Energy and Industrial Strategy",The Coal Authority,20/08/2021,Surface Hazards - Contractor Costs,PS&S - General Claims,Llettyshenkin Cons Co Ltd,110393,37.72
"Department for Business, Energy and Industrial Strategy",The Coal Authority,20/08/2021,Surface Hazards - Contractor Costs,PS&S - General Claims,Llettyshenkin Cons Co Ltd,110393,128.00
"Department for Business, Energy and Industrial Strategy",The Coal Authority,20/08/2021,Surface Hazards - Contractor Costs,PS&S - General Claims,Llettyshenkin Cons Co Ltd,110393,560.00
"Department for Business, Energy and Industrial Strategy",The Coal Authority,20/08/2021,Subsidence - Contractor Costs,PS&S - General Claims,Thomas Menzies Builders Ltd,110394,231.00
"Department for Business, Energy and Industrial Strategy",The Coal Authority,20/08/2021,Subsidence - Contractor Costs,PS&S - General Claims,Thomas Menzies Builders Ltd,110394,10.00
"Department for Business, Energy and Industrial Strategy",The Coal Authority,20/08/2021,Subsidence - Contractor Costs,PS&S - General Claims,Thomas Menzies Builders Ltd,110394,194.59
"Department for Business, Energy and Industrial Strategy",The Coal Authority,20/08/2021,Surface Hazards - Contractor Costs,PS&S - General Claims,Llettyshenkin Cons Co Ltd,110395,360.00
"Department for Business, Energy and Industrial Strategy",The Coal Authority,20/08/2021,Surface Hazards - Contractor Costs,PS&S - General Claims,Llettyshenkin Cons Co Ltd,110395,450.00
"Department for Business, Energy and Industrial Strategy",The Coal Authority,20/08/2021,Surface Hazards - Contractor Costs,PS&S - General Claims,Llettyshenkin Cons Co Ltd,110395,350.00
"Department for Business, Energy and Industrial Strategy",The Coal Authority,20/08/2021,Surface Hazards - Contractor Costs,PS&S - General Claims,Llettyshenkin Cons Co Ltd,110395,96.00
"Department for Business, Energy and Industrial Strategy",The Coal Authority,20/08/2021,Surface Hazards - Contractor Costs,PS&S - General Claims,Llettyshenkin Cons Co Ltd,110395,672.00
"Department for Business, Energy and Industrial Strategy",The Coal Authority,20/08/2021,Surface Hazards - Contractor Costs,PS&S - General Claims,Llettyshenkin Cons Co Ltd,110395,668.16
"Department for Business, Energy and Industrial Strategy",The Coal Authority,20/08/2021,Surface Hazards - Contractor Costs,PS&S - General Claims,Llettyshenkin Cons Co Ltd,110395,"1,523.20"
"Department for Business, Energy and Industrial Strategy",The Coal Authority,20/08/2021,Surface Hazards - Contractor Costs,PS&S - General Claims,Llettyshenkin Cons Co Ltd,110395,75.44
"Department for Business, Energy and Industrial Strategy",The Coal Authority,20/08/2021,Surface Hazards - Contractor Costs,PS&S - General Claims,Llettyshenkin Cons Co Ltd,110395,272.81
"Department for Business, Energy and Industrial Strategy",The Coal Authority,20/08/2021,Surface Hazards - Contractor Costs,PS&S - General Claims,Llettyshenkin Cons Co Ltd,110395,35.00
"Department for Business, Energy and Industrial Strategy",The Coal Authority,20/08/2021,Surface Hazards - Contractor Costs,PS&S - General Claims,Llettyshenkin Cons Co Ltd,110395,756.00
"Department for Business, Energy and Industrial Strategy",The Coal Authority,20/08/2021,Surface Hazards - Contractor Costs,PS&S - General Claims,Llettyshenkin Cons Co Ltd,110395,50.00
"Department for Business, Energy and Industrial Strategy",The Coal Authority,20/08/2021,Surface Hazards - Contractor Costs,PS&S - General Claims,Llettyshenkin Cons Co Ltd,110395,226.20
"Department for Business, Energy and Industrial Strategy",The Coal Authority,20/08/2021,Surface Hazards - Contractor Costs,PS&S - General Claims,Llettyshenkin Cons Co Ltd,110395,360.00
"Department for Business, Energy and Industrial Strategy",The Coal Authority,23/08/2021,Surface Hazards - Contractor Costs,PS&S - General Claims,Llettyshenkin Cons Co Ltd,110396,720.00
"Department for Business, Energy and Industrial Strategy",The Coal Authority,23/08/2021,Surface Hazards - Contractor Costs,PS&S - General Claims,Llettyshenkin Cons Co Ltd,110396,280.15
"Department for Business, Energy and Industrial Strategy",The Coal Authority,23/08/2021,Surface Hazards - Contractor Costs,PS&S - General Claims,Llettyshenkin Cons Co Ltd,110396,96.00
"Department for Business, Energy and Industrial Strategy",The Coal Authority,23/08/2021,Surface Hazards - Contractor Costs,PS&S - General Claims,Llettyshenkin Cons Co Ltd,110396,360.00
"Department for Business, Energy and Industrial Strategy",The Coal Authority,23/08/2021,Surface Hazards - Contractor Costs,PS&S - General Claims,Llettyshenkin Cons Co Ltd,110396,480.00
"Department for Business, Energy and Industrial Strategy",The Coal Authority,23/08/2021,Surface Hazards - Contractor Costs,PS&S - General Claims,Llettyshenkin Cons Co Ltd,110396,226.20
"Department for Business, Energy and Industrial Strategy",The Coal Authority,23/08/2021,Surface Hazards - Contractor Costs,PS&S - General Claims,Llettyshenkin Cons Co Ltd,110396,668.16
"Department for Business, Energy and Industrial Strategy",The Coal Authority,23/08/2021,Surface Hazards - Contractor Costs,PS&S - General Claims,Llettyshenkin Cons Co Ltd,110396,672.00
"Department for Business, Energy and Industrial Strategy",The Coal Authority,12/08/2021,Office Furniture,Facilities,Gresham Office Furniture,110400,"3,388.00"
"Department for Business, Energy and Industrial Strategy",The Coal Authority,20/08/2021,Surface Hazards - Contractor Costs,PS&S - General Claims,Cornerstone  Projects Ltd,110405,267.70
"Department for Business, Energy and Industrial Strategy",The Coal Authority,23/08/2021,Subsidence - Contractor Costs,PS&S - General Claims,Cornerstone  Projects Ltd,110406,80.00
"Department for Business, Energy and Industrial Strategy",The Coal Authority,12/08/2021,Recruitment Advertising,People & Organisational Development,Working Planet Limited,110409,199.00
"Department for Business, Energy and Industrial Strategy",The Coal Authority,23/08/2021,Surface Hazards - Contractor Costs,PS&S - General Claims,Cornerstone  Projects Ltd,110410,35.70
"Department for Business, Energy and Industrial Strategy",The Coal Authority,20/08/2021,Temporary Contractors,Procurement,Hays Specialist Recruitment,110418,4.85
"Department for Business, Energy and Industrial Strategy",The Coal Authority,20/08/2021,Temporary Contractors,Procurement,Hays Specialist Recruitment,110418,"2,173.55"
"Department for Business, Energy and Industrial Strategy",The Coal Authority,17/08/2021,Subsidence - Contractor Costs,PS&S - General Claims,Compensation Payment,110419,450.40
"Department for Business, Energy and Industrial Strategy",The Coal Authority,05/08/2021,External Agency / Introduction Fees,People & Organisational Development,Matchtech Group UK Ltd,110427,"7,020.00"
"Department for Business, Energy and Industrial Strategy",The Coal Authority,05/08/2021,Contract Hire Vehicles,PS&S - General Claims,Lex Autolease Ltd,110431,232.84
"Department for Business, Energy and Industrial Strategy",The Coal Authority,05/08/2021,Contract Hire Vehicles,PS&S - General Claims,Lex Autolease Ltd,110431,23.29
"Department for Business, Energy and Industrial Strategy",The Coal Authority,05/08/2021,Contract Hire Vehicles,PS&S - General Claims,Lex Autolease Ltd,110431,33.76
"Department for Business, Energy and Industrial Strategy",The Coal Authority,20/08/2021,Surface Hazards - Contractor Costs,PS&S - General Claims,Nal Plant Limited,110461,18.50
"Department for Business, Energy and Industrial Strategy",The Coal Authority,20/08/2021,Surface Hazards - Contractor Costs,PS&S - General Claims,Nal Plant Limited,110461,60.00
"Department for Business, Energy and Industrial Strategy",The Coal Authority,20/08/2021,Surface Hazards - Contractor Costs,PS&S - General Claims,Nal Plant Limited,110461,280.00
"Department for Business, Energy and Industrial Strategy",The Coal Authority,20/08/2021,Surface Hazards - Contractor Costs,PS&S - General Claims,Nal Plant Limited,110461,125.00
"Department for Business, Energy and Industrial Strategy",The Coal Authority,20/08/2021,Surface Hazards - Contractor Costs,PS&S - General Claims,Nal Plant Limited,110461,305.48
"Department for Business, Energy and Industrial Strategy",The Coal Authority,20/08/2021,Subsidence - Contractor Costs,PS&S - General Claims,Nal Plant Limited,110462,320.00
"Department for Business, Energy and Industrial Strategy",The Coal Authority,20/08/2021,Subsidence - Contractor Costs,PS&S - General Claims,Nal Plant Limited,110462,197.04
"Department for Business, Energy and Industrial Strategy",The Coal Authority,20/08/2021,Subsidence - Contractor Costs,PS&S - General Claims,Nal Plant Limited,110462,50.00
"Department for Business, Energy and Industrial Strategy",The Coal Authority,20/08/2021,Surface Hazards - Contractor Costs,PS&S - General Claims,Nal Plant Limited,110463,486.24
"Department for Business, Energy and Industrial Strategy",The Coal Authority,20/08/2021,Surface Hazards - Contractor Costs,PS&S - General Claims,Nal Plant Limited,110463,158.76
"Department for Business, Energy and Industrial Strategy",The Coal Authority,20/08/2021,Surface Hazards - Contractor Costs,PS&S - General Claims,Nal Plant Limited,110463,55.76
"Department for Business, Energy and Industrial Strategy",The Coal Authority,20/08/2021,Surface Hazards - Contractor Costs,PS&S - General Claims,Nal Plant Limited,110463,283.04
"Department for Business, Energy and Industrial Strategy",The Coal Authority,20/08/2021,Surface Hazards - Contractor Costs,PS&S - General Claims,Nal Plant Limited,110463,640.00
"Department for Business, Energy and Industrial Strategy",The Coal Authority,20/08/2021,Surface Hazards - Contractor Costs,PS&S - General Claims,Nal Plant Limited,110463,50.00
"Department for Business, Energy and Industrial Strategy",The Coal Authority,20/08/2021,Surface Hazards - Contractor Costs,PS&S - General Claims,Nal Plant Limited,110463,26.45
"Department for Business, Energy and Industrial Strategy",The Coal Authority,20/08/2021,Subsidence - Contractor Costs,PS&S - General Claims,Nal Plant Limited,110464,320.00
"Department for Business, Energy and Industrial Strategy",The Coal Authority,20/08/2021,Subsidence - Contractor Costs,PS&S - General Claims,Nal Plant Limited,110464,141.52
"Department for Business, Energy and Industrial Strategy",The Coal Authority,20/08/2021,Subsidence - Contractor Costs,PS&S - General Claims,Nal Plant Limited,110464,2.87
"Department for Business, Energy and Industrial Strategy",The Coal Authority,20/08/2021,Subsidence - Contractor Costs,PS&S - General Claims,Nal Plant Limited,110464,8.00
"Department for Business, Energy and Industrial Strategy",The Coal Authority,20/08/2021,Subsidence - Contractor Costs,PS&S - General Claims,Nal Plant Limited,110464,9.80
"Department for Business, Energy and Industrial Strategy",The Coal Authority,20/08/2021,Subsidence - Contractor Costs,PS&S - General Claims,Nal Plant Limited,110464,93.04
"Department for Business, Energy and Industrial Strategy",The Coal Authority,20/08/2021,Subsidence - Contractor Costs,PS&S - General Claims,Nal Plant Limited,110464,16.00
"Department for Business, Energy and Industrial Strategy",The Coal Authority,20/08/2021,Subsidence - Contractor Costs,PS&S - General Claims,Nal Plant Limited,110464,4.72
"Department for Business, Energy and Industrial Strategy",The Coal Authority,20/08/2021,Subsidence - Contractor Costs,PS&S - General Claims,Nal Plant Limited,110464,13.32
"Department for Business, Energy and Industrial Strategy",The Coal Authority,20/08/2021,Subsidence - Contractor Costs,PS&S - General Claims,Nal Plant Limited,110464,50.00
"Department for Business, Energy and Industrial Strategy",The Coal Authority,23/08/2021,Subsidence - Contractor Costs,PS&S - General Claims,Compensation Payment,110465,80.00
"Department for Business, Energy and Industrial Strategy",The Coal Authority,13/08/2021,Minewater Power Costs,ENV - Mine Water Operations,IMServ Europe Limited,110492,18.37
"Department for Business, Energy and Industrial Strategy",The Coal Authority,13/08/2021,Minewater Power Costs,ENV - Mine Water Operations,IMServ Europe Limited,110492,18.37
"Department for Business, Energy and Industrial Strategy",The Coal Authority,13/08/2021,Minewater Power Costs,ENV - Mine Water Operations,IMServ Europe Limited,110492,18.37
"Department for Business, Energy and Industrial Strategy",The Coal Authority,13/08/2021,Minewater Power Costs,ENV - Mine Water Operations,IMServ Europe Limited,110492,18.37
"Department for Business, Energy and Industrial Strategy",The Coal Authority,13/08/2021,Minewater Power Costs,ENV - Mine Water Operations,IMServ Europe Limited,110492,18.37
